Workbook

Sheet Introduction
B2: Informing Interventions to reduce health Inequalities ('Triple I'):
B3: Lifestyle Weight Management Services
B7: Informing Interventions to reduce health Inequalities ('Triple I') is a collaboration between NHS Health Scotland and the Scottish Public Health Observatory (ScotPHO).
B8: Triple I provides national and local decision makers with practical tools and interpreted results about investing in interventions to reduce health inequalities in Scotland.
B9: It does this by modelling the potential impact of different interventions and policies on overall population health and health inequalities.
B10: This tool is part of a set of 9 spreadsheets and associated documentation, produced as an update and extension of our 2014 Triple I work.
B11: Data and evidence have been updated where applicable, new interventions have been included, and presentation of the results has been improved.
B12: The tool can be used to produce detailed results for different geographies (Scotland, Local Authorities, Health Boards, City Regions, or Integrated Joint Boards).
B13: Results are provided for three health outcomes: premature mortality, years of life lost, and hospital stays.
B15: The interventions:
B16: The interventions were chosen based on the highest quality and most generalisable evidence linking them to changes in all-cause mortality and hospital admissions.
B17: The topics addressed by the interventions span the determinants of health (including ‘upstream’, ‘downstream’, individual-level and population-wide).
B18: There are 9 Triple I spreadsheet tools (corresponding to the topic areas below).
C20: Individual-level interventions: | H20: Population-wide interventions:
C21: (N.B. modelled as being implemented in year 1 only) | H21: (N.B. permanent: modelled as remaining
C22: Topic | D22: Intervention(s) | H22: in place after implementation in year 1)
C23: Mental Health | D23: Interventions for depression | H23: Topic | J23: Intervention(s)
C24: Obesity | D24: Weight management service | H24: Physical Environment | J24: 20 mph speed limits
C25: Physical inactivity | D25: Physical activity interventions | H25: Smoking | J25: Tobacco taxation
C26: Smoking | D26: Smoking cessation | H26: Income | J26: Income-based policies
C27: Alcohol consumption | D27: Alcohol Brief Interventions (ABIs)
C28: Unemployment | D28: Job provision
B30: Pages in this spreadsheet tool:
C31: Introduction | E31: >> | F31: Information about the Triple I project
C32: User guide | E32: >> | F32: How to use this spreadsheet tool
C33: Options | E33: >> | F33: Where users can change the model options, and see high-level results
C34: Results | E34: >> | F34: Full results for the chosen model options
C35: Evidence | E35: >> | F35: Summary of the evidence underpinning the model, and definitions of the policies/interventions
B37: Further information is available on the Triple I website: | G37: Triple I website
C38: Interactive results browser | E38: >> | F38: An online interactive results browser for comparing different interventions (April 2019)
C39: National Overview Report | E39: >> | F39: A summary report of the national-level findings (April 2019)
C40: Technical Report | E40: >> | F40: Details of Triple I's methods and data sources (April 2019)
C41: Frequently Asked Questions | E41: >> | F41: Answers to frequently-asked questions about Triple I (April 2019)
C42: Income-based policies | E42: >> | F42: Report and Supplementary Information about the income-based policies work (October 2018)
C43: nhs.triple.i@nhs.net | E43: >> | F43: Email us for more information.
B45: Abbreviations used
B46: IJB | C46: Integrated Joint Board
B47: LA | C47: Local Authority
B48: RII | C48: Relative Index of Inequality
B49: SII | C49: Slope Index of Inequality
B50: SIMD | C50: Scottish Index of Multiple Deprivation
B51: Q1 - Q5 | C51: Quintiles of the SIMD: Q1 contains the 20% most deprived areas, and Q5 contains the 20% least deprived areas.

Sheet User Guide
B2: User Guide
B4: Please note: Macros need to be enabled for the tools to work properly.
B5: How to do this in a recent version of Excel: File > Options > Trust Center > Trust Center Settings > Macro Settings > "Enable all macros"
B6: How to do this in an older version of Excel: Tools > Options > Security > Macro Security > "Medium"
B8: Changing the intervention details:
B9: You can interact with the Triple I model from the Options tab.
B10: Any changes made to the shaded cells (blue) on this tab will cause Excel to recalculate the model and present new results.
B11: Below are the options available (N.B. not every spreadsheet will have all of these options):
B13: Intervention:
B14: Choose the intervention of interest (only relevant for tools covering more than one intervention: Mental health, Physical activity, and Income-based interventions)
B16: Area:
B17: Choose the area to run the model for. The available geographies are listed below.
C18: 1. Health Boards: | F18: The 14 territorial NHS health boards responsible for delivery of frontline healthcare services in Scotland (2014 boundaries).
C19: 2. Local Authorities: | F19: The 32 elected councils that provide a range of services to local people, including education and care.
F20: The Gaelic name of Eilean Siar is used for the local authority covering the Western Isles.
C21: 3. Integrated Joint Boards: | F21: 31 integration authorities were created by The Public Bodies (Joint Working) Act 2014, in order to integrate the health
F22: and social care functions of health boards and local authorities.
F23: These Integrated Joint Boards (IJBs) or Partnerships correspond to local authority areas, with the exception of
F24: Clackmannanshire and Stirling IJB which combines two local authorities.
F25: The Gaelic name of Eilean Siar is used for the IJB covering the Western Isles.
C26: 4. City Region Deals: | F26: City Region Deals are agreements between the Scottish Government, the UK Government and local government.
F27: They have been designed to bring about long-term strategic approaches to improving regional economies.
F28: The following 6 city regions are included:
F30: City Region: | J30: Local Authorities (LAs) included:
F31: Aberdeen City Region Deal | J31: Aberdeen and Aberdeenshire
F32: Edinburgh & Southeast Scotland City Region Deal | J32: Edinburgh, Fife, East Lothian, Midlothian, West Lothian, Borders
F33: Glasgow City Region Deal | J33: East Dunbartonshire, East Renfrewshire, Glasgow City, Inverclyde,
J34: North Lanarkshire, Renfrewshire, South Lanarkshire, West Dunbartonshire
F35: Inverness & Highland City Region Deal | J35: Highland
F36: Stirling and Clackmannanshire City Region Deal | J36: Stirling and Clackmannanshire
F37: Tay Cities Region Deal | J37: Dundee, Perth & Kinross, Angus, Fife
B39: Targeting strategy:
B40: The strategy for delivering the individual-level* interventions can be altered by the user.
B41: *Interventions delivered to individuals: mental health, weight management, physical activity, smoking cessation, alcohol brief interventions, and job provision.
B42: Four options are available:
B43: · Even distribution: treat the same proportion of the eligible population in each subgroup (i.e., age group, sex and SIMD 2016 quintile).
B44: · Proportionate to need: the proportion of each subgroup treated is proportionate to the subgroup's prevalence of the exposure (e.g., smoking or depression).
B45: · Most deprived 20% only**: treat only those in SIMD quintile 1 (even distribution within this quintile).
B46: · Most deprived 40% only: treat only those in SIMD quintiles 1 and 2 (even distribution within these quintiles).
B47: **The Orkney Islands, Shetland Islands and the Western Isles do not have population in SIMD 2016 quintile 1, so targeting to quintile 1 will produce an error message.
B49: Number to treat:
B50: For individual-level interventions you can choose the number of people to be treated.
B51: · For information the maximum number of people who are eligible to be treated will be calculated in the preceding cell.
B52: · If a higher number is entered an error message will prevent the calculation from occurring.
B53: · Be aware that the model will run and produce results if changes to another cell mean that the number of people then exceeds the new maximum number.
B55: Number of years:
B56: The interventions are delivered in year 1.
B57: Their effects can be modelled from year 2 (the first year of follow-up) to year 20.
B58: N.B. Individual-level interventions are delivered for a single year, while the population-level interventions are modelled as remaining in place after year 1.
B60: Viewing the results:
B61: Options tab | D61: A summary of the results is shown on the Options tab.
B62: Results tab | D62: More detailed results are shown on the Results tab.
B63: Technical Report | D63: Further information about how the results are calculated, and how to interpret them, can be found in the Triple I Technical Report.
B65: For advanced users: How to make more advanced changes to the model
B66: The inner workings of the Triple I tools are described in the Technical Report. We recommend you consult the report before making any advanced changes.
B67: The model data and calculations can be found in a number of 'hidden' tabs.
B68: These are hidden to simplify the spreadsheet for users.
B69: To see the hidden tabs, right-click on any tab, select 'Unhide', then select the tab you want to unhide.
B70: The hidden tabs include population data, prevalence data, targeting calculations, and result calculations.
B71: VBA (Visual Basic for Applications) code has been written to create bespoke functions for the calculations.
B72: The code can be found from the Developer tab > Visual Basic.
B73: If the Developer tab is not shown in your version of Excel go to File > Options > Customize Ribbon and switch on the Developer tab (recent Excel versions only).

Sheet Options
B2: Options for changing the model: | E2: Results summary:
B4: Change the shaded cells (blue) to recalculate results. | E4: Check the Results tab for a detailed breakdown of the results
B5: N.B. Results may take a few seconds to change. | E5: Results shown as cumulative difference from baseline over the follow-up period (% difference in brackets).
B7: Intervention: (defined on Evidence tab) | E7: POLICY IMPACT ON HEALTH* | F7: Whole population | G7: SIMD Q1 & Q2 | H7: SIMD Q1
B8: Lifestyle weight management services | E8: Hospital stays prevented | F8: =CONCATENATE(FIXED(Results!E16,0)," (",FIXED(Results!F16,2),"%)") -> 6,716 (0.59%) | G8: =CONCATENATE(FIXED(Results!E17,0)," (",FIXED(Results!F17,2),"%)") -> 3,145 (0.58%) | H8: =IF(OR(Calculations!$E$2="Orkney Health Board",Calculations!$E$2="Orkney Islands Local Authority",Calculations!$E$2="Shetland Health Board",Calculations!$E$2="Western Isles Health Board",Calculations!$E$2="Shetland Islands Local Authority",Calculations!$E$2="Eilean Siar Local Authority"),"N/A", CONCATENATE(FIXED(Results!E18,0)," (",FIXED(Results!F18,2),"%)")) -> 1,677 (0.58%)
E9: Premature deaths prevented | F9: =CONCATENATE(FIXED(Results!E20,0)," (",FIXED(Results!F20,2),"%)") -> 752 (3.48%) | G9: =CONCATENATE(FIXED(Results!E21,0)," (",FIXED(Results!F21,2),"%)") -> 389 (3.41%) | H9: =IF(OR(Calculations!$E$2="Orkney Health Board",Calculations!$E$2="Orkney Islands Local Authority",Calculations!$E$2="Shetland Health Board",Calculations!$E$2="Western Isles Health Board",Calculations!$E$2="Shetland Islands Local Authority",Calculations!$E$2="Eilean Siar Local Authority"),"N/A", CONCATENATE(FIXED(Results!E22,0)," (",FIXED(Results!F22,2),"%)")) -> 219 (3.42%)
B10: Choose the area to run the model for: | E10: Years of life saved | F10: =CONCATENATE(FIXED(Results!E24,0)," (",FIXED(Results!F24,2),"%)") -> 20,908 (3.51%) | G10: =CONCATENATE(FIXED(Results!E25,0)," (",FIXED(Results!F25,2),"%)") -> 10,928 (3.44%) | H10: =IF(OR(Calculations!$E$2="Orkney Health Board",Calculations!$E$2="Orkney Islands Local Authority",Calculations!$E$2="Shetland Health Board",Calculations!$E$2="Western Isles Health Board",Calculations!$E$2="Shetland Islands Local Authority",Calculations!$E$2="Eilean Siar Local Authority"),"N/A", CONCATENATE(FIXED(Results!E26,0)," (",FIXED(Results!F26,2),"%)")) -> 6,163 (3.44%)
B11: Scotland | E11: *N.B. a positive figure indicates an improvement in health outcomes.
B13: Choose the targeting strategy: | E13: POLICY IMPACT ON HEALTH INEQUALITIES**
B14: Even distribution | E14: Gap between most and least deprived | F14: Absolute | G14: Relative
E15: Hospital stays | F15: =CONCATENATE(FIXED(Results!E29,0)," (",FIXED(Results!F29,3),"%)") -> -74 (-0.553%) | G15: =CONCATENATE(FIXED(Results!E33,4)," (",FIXED(Results!F33,3),"%)") -> 0.0005 (0.025%)
B16: Max no. people available to be treated: | E16: Premature deaths | F16: =CONCATENATE(FIXED(Results!E30,0)," (",FIXED(Results!F30,3),"%)") -> -15 (-3.246%) | G16: =CONCATENATE(FIXED(Results!E34,4)," (",FIXED(Results!F34,3),"%)") -> 0.0100 (0.332%)
B17: =ROUNDDOWN(IF(OR($B$14="Even distribution",$B$14="Proportionate to need"),HLOOKUP(Calculations!$E$2,'Population at Risk'!$C$3:$BC$257,'Population at Risk'!BD255,FALSE),IF($B$14="Targeting to SIMD Q1",HLOOKUP(Calculations!$E$2,'Population at Risk'!$C$3:$BC$257,'Population at Risk'!BD256,FALSE),IF($B$14="Targeting to SIMD Q1 & Q2",HLOOKUP(Calculations!$E$2,'Population at Risk'!$C$3:$BC$257,'Population at Risk'!BD257,FALSE),"error"))),0) -> 905724 | E17: Years of life lost | F17: =CONCATENATE(FIXED(Results!E31,0)," (",FIXED(Results!F31,3),"%)") -> -406 (-3.259%) | G17: =CONCATENATE(FIXED(Results!E35,4)," (",FIXED(Results!F35,3),"%)") -> 0.0104 (0.348%)
E18: Population-wide inequalities slope | F18: Absolute (SII) | G18: Relative (RII)
B19: Choose the number of people to treat: | E19: Hospital stays | F19: =CONCATENATE(FIXED(Results!E37,0)," (",FIXED(Results!F37,3),"%)") -> -88 (-0.548%) | G19: =CONCATENATE(FIXED(Results!E41,4)," (",FIXED(Results!F41,3),"%)") -> 0.0003 (0.041%)
B20: (in addition to current number treated) | E20: Premature deaths | F20: =CONCATENATE(FIXED(Results!E38,0)," (",FIXED(Results!F38,3),"%)") -> -17 (-3.220%) | G20: =CONCATENATE(FIXED(Results!E42,4)," (",FIXED(Results!F42,3),"%)") -> 0.0033 (0.260%)
B21: 905724 | E21: Years of life lost | F21: =CONCATENATE(FIXED(Results!E39,0)," (",FIXED(Results!F39,3),"%)") -> -475 (-3.235%) | G21: =CONCATENATE(FIXED(Results!E43,4)," (",FIXED(Results!F43,3),"%)") -> 0.0036 (0.283%)
B22: =IF(AND(OR(Calculations!$E$2="Orkney Health Board",Calculations!$E$2="Orkney Islands Local Authority",Calculations!$E$2="Shetland Health Board",Calculations!$E$2="Western Isles Health Board",Calculations!$E$2="Shetland Islands Local Authority",Calculations!$E$2="Eilean Siar Local Authority"),B14="Targeting to SIMD Q1"),"Error: No Q1 population for this area", IF(B21>B17,"Too high: please check and re-enter","")) ->  | E22: **N.B. Based on rates per 100,000. A negative figure indicates reduced inequalities / narrowing of the gap.
B23: Calculate health impact after this many years:
B24: 2 | E24: SELECTED COSTS AND SAVINGS*** | G24: £
E25: Direct financial cost of the intervention (£): | G25: =Results!D50 -> 67929300
E26: Direct financial savings from reduced hospitalisations (£):
F27: Whole population | G27: =CONCATENATE(FIXED(Results!E54,0)," (",FIXED(Results!F54,3),"%)") -> 16,871,342 (0.587%)
F28: SIMD Q1 & Q2 | G28: =CONCATENATE(FIXED(Results!E55,0)," (",FIXED(Results!F55,3),"%)") -> 7,901,471 (0.580%)
F29: SIMD Q1 | G29: =IF(OR(Calculations!$E$2="Orkney Health Board",Calculations!$E$2="Orkney Islands Local Authority",Calculations!$E$2="Shetland Health Board",Calculations!$E$2="Western Isles Health Board",Calculations!$E$2="Shetland Islands Local Authority",Calculations!$E$2="Eilean Siar Local Authority"),"N/A", CONCATENATE(FIXED(Results!E56,0)," (",FIXED(Results!F56,3),"%)")) -> 4,213,371 (0.581%)
E30: ***Costs/savings from changes to other health outcomes and to health inequalities have not been estimated.

Sheet Results
B2: Detailed results for intervention: | D2: =Options!B8 -> Lifestyle weight management services
B4: Area of interest: | C4: =Options!B11 -> Scotland | D4: Targeting strategy: | E4: =Options!B14 -> Even distribution
B5: Age group: | C5: 16+ years | D5: Additional people to be treated: | E5: =Options!B21 -> 905724
B6: Baseline year (prevalence and population data): | C6: 2016 | D6: Health impact calculated after: | E6: =CONCATENATE(Options!B24," years") -> 2 years
B8: Baseline situation (2016): | C8: No. obese | D8: No. available for intervention | E8: No. all-cause hospital stays | F8: No. all-cause deaths | G8: No. all-cause premature deaths | H8: Years of life lost (all causes)
B9: Whole population | C9: =HLOOKUP(Calculations!$E$2,'Population at Risk'!$C$3:$BC$257,'Population at Risk'!BD251,FALSE) -> 1273874.741 | D9: =ROUNDDOWN(HLOOKUP(Calculations!$E$2,'Population at Risk'!$C$3:$BC$257,'Population at Risk'!BD255,FALSE),0) -> 905724 | E9: =HLOOKUP(Calculations!$E$2,'Health outcome totals 2016'!$C$3:$BC$17,'Health outcome totals 2016'!$BD6,FALSE) -> 1125093 | F9: =HLOOKUP(Calculations!$E$2,'Health outcome totals 2016'!$C$3:$BC$17,'Health outcome totals 2016'!$BD9,FALSE) -> 56725 | G9: =HLOOKUP(Calculations!$E$2,'Health outcome totals 2016'!$C$3:$BC$17,'Health outcome totals 2016'!$BD12,FALSE) -> 21313 | H9: =HLOOKUP(Calculations!$E$2,'Health outcome totals 2016'!$C$3:$BC$17,'Health outcome totals 2016'!$BD15,FALSE) -> 708624.0484
B10: Most deprived 40% (Q1 & Q2) | C10: =HLOOKUP(Calculations!$E$2,'Population at Risk'!$C$3:$BC$257,'Population at Risk'!BD253,FALSE) -> 573913.1422 | D10: =ROUNDDOWN(HLOOKUP(Calculations!$E$2,'Population at Risk'!$C$3:$BC$257,'Population at Risk'!BD257,FALSE),0) -> 408052 | E10: =HLOOKUP(Calculations!$E$2,'Health outcome totals 2016'!$C$3:$BC$17,'Health outcome totals 2016'!$BD8,FALSE) -> 534382 | F10: =HLOOKUP(Calculations!$E$2,'Health outcome totals 2016'!$C$3:$BC$17,'Health outcome totals 2016'!$BD11,FALSE) -> 26567 | G10: =HLOOKUP(Calculations!$E$2,'Health outcome totals 2016'!$C$3:$BC$17,'Health outcome totals 2016'!$BD14,FALSE) -> 11618 | H10: =HLOOKUP(Calculations!$E$2,'Health outcome totals 2016'!$C$3:$BC$17,'Health outcome totals 2016'!$BD17,FALSE) -> 372328.9705
B11: Most deprived 20% (Q1) | C11: =IF(OR(Calculations!$E$2="Orkney Health Board",Calculations!$E$2="Orkney Islands Local Authority",Calculations!$E$2="Shetland Health Board",Calculations!$E$2="Western Isles Health Board",Calculations!$E$2="Shetland Islands Local Authority",Calculations!$E$2="Eilean Siar Local Authority"),"N/A", HLOOKUP(Calculations!$E$2,'Population at Risk'!$C$3:$BC$257,'Population at Risk'!BD252,FALSE)) -> 281914.8309 | D11: =IF(OR(Calculations!$E$2="Orkney Health Board",Calculations!$E$2="Orkney Islands Local Authority",Calculations!$E$2="Shetland Health Board",Calculations!$E$2="Western Isles Health Board",Calculations!$E$2="Shetland Islands Local Authority",Calculations!$E$2="Eilean Siar Local Authority"),"N/A", ROUNDDOWN(HLOOKUP(Calculations!$E$2,'Population at Risk'!$C$3:$BC$257,'Population at Risk'!BD256,FALSE),0)) -> 200441 | E11: =IF(OR(Calculations!$E$2="Orkney Health Board",Calculations!$E$2="Orkney Islands Local Authority",Calculations!$E$2="Shetland Health Board",Calculations!$E$2="Western Isles Health Board",Calculations!$E$2="Shetland Islands Local Authority",Calculations!$E$2="Eilean Siar Local Authority"),"N/A", HLOOKUP(Calculations!$E$2,'Health outcome totals 2016'!$C$3:$BC$17,'Health outcome totals 2016'!$BD7,FALSE)) -> 283718 | F11: =IF(OR(Calculations!$E$2="Orkney Health Board",Calculations!$E$2="Orkney Islands Local Authority",Calculations!$E$2="Shetland Health Board",Calculations!$E$2="Western Isles Health Board",Calculations!$E$2="Shetland Islands Local Authority",Calculations!$E$2="Eilean Siar Local Authority"),"N/A", HLOOKUP(Calculations!$E$2,'Health outcome totals 2016'!$C$3:$BC$17,'Health outcome totals 2016'!$BD10,FALSE)) -> 13665 | G11: =IF(OR(Calculations!$E$2="Orkney Health Board",Calculations!$E$2="Orkney Islands Local Authority",Calculations!$E$2="Shetland Health Board",Calculations!$E$2="Western Isles Health Board",Calculations!$E$2="Shetland Islands Local Authority",Calculations!$E$2="Eilean Siar Local Authority"),"N/A", HLOOKUP(Calculations!$E$2,'Health outcome totals 2016'!$C$3:$BC$17,'Health outcome totals 2016'!$BD13,FALSE)) -> 6443 | H11: =IF(OR(Calculations!$E$2="Orkney Health Board",Calculations!$E$2="Orkney Islands Local Authority",Calculations!$E$2="Shetland Health Board",Calculations!$E$2="Western Isles Health Board",Calculations!$E$2="Shetland Islands Local Authority",Calculations!$E$2="Eilean Siar Local Authority"),"N/A", HLOOKUP(Calculations!$E$2,'Health outcome totals 2016'!$C$3:$BC$17,'Health outcome totals 2016'!$BD16,FALSE)) -> 203545.7107
B13: Health impact | C13: Without intervention | D13: With intervention | E13: Difference | F13: Difference | G13: Interpretation
B14: HEALTH OUTCOMES | C14: n | D14: n | E14: n | F14: %
B15: Hospital stays | F15: % prevented
B16: Whole population | C16: =Calculations!O5 -> 1143855.727 | D16: =Calculations!P5 -> 1137139.429 | E16: =C16-D16 -> 6716.298623 | F16: =E16*100/C16 -> 0.5871630891 | G16: Hospital stays prevented
B17: Q1 & Q2 | C17: =Calculations!O6 -> 542278.7308 | D17: =Calculations!P6 -> 539133.2408 | E17: =C17-D17 -> 3145.489934 | F17: =E17*100/C17 -> 0.5800503977 | G17: (N.B. positive difference =
B18: Q1 | C18: =IF(OR(Calculations!$E$2="Orkney Health Board",Calculations!$E$2="Orkney Islands Local Authority",Calculations!$E$2="Shetland Health Board",Calculations!$E$2="Western Isles Health Board",Calculations!$E$2="Shetland Islands Local Authority",Calculations!$E$2="Eilean Siar Local Authority"),"N/A", Calculations!O7) -> 288715.8401 | D18: =IF(OR(Calculations!$E$2="Orkney Health Board",Calculations!$E$2="Orkney Islands Local Authority",Calculations!$E$2="Shetland Health Board",Calculations!$E$2="Western Isles Health Board",Calculations!$E$2="Shetland Islands Local Authority",Calculations!$E$2="Eilean Siar Local Authority"),"N/A", Calculations!P7) -> 287038.5426 | E18: =IF(OR(Calculations!$E$2="Orkney Health Board",Calculations!$E$2="Orkney Islands Local Authority",Calculations!$E$2="Shetland Health Board",Calculations!$E$2="Western Isles Health Board",Calculations!$E$2="Shetland Islands Local Authority",Calculations!$E$2="Eilean Siar Local Authority"),"N/A", C18-D18) -> 1677.297511 | F18: =IF(OR(Calculations!$E$2="Orkney Health Board",Calculations!$E$2="Orkney Islands Local Authority",Calculations!$E$2="Shetland Health Board",Calculations!$E$2="Western Isles Health Board",Calculations!$E$2="Shetland Islands Local Authority",Calculations!$E$2="Eilean Siar Local Authority"),"N/A", E18*100/C18) -> 0.580950983 | G18: fewer stays)
B19: Premature deaths (<75 years) | F19: % prevented
B20: Whole population | C20: =Calculations!Q5 -> 21611.71302 | D20: =Calculations!R5 -> 20860.04963 | E20: =C20-D20 -> 751.6633891 | F20: =E20*100/C20 -> 3.478037064 | G20: Premature deaths prevented
B21: Q1 & Q2 | C21: =Calculations!Q6 -> 11397.40704 | D21: =Calculations!R6 -> 11008.41683 | E21: =C21-D21 -> 388.9902135 | F21: =E21*100/C21 -> 3.412971144 | G21: (N.B. positive difference =
B22: Q1 | C22: =IF(OR(Calculations!$E$2="Orkney Health Board",Calculations!$E$2="Orkney Islands Local Authority",Calculations!$E$2="Shetland Health Board",Calculations!$E$2="Western Isles Health Board",Calculations!$E$2="Shetland Islands Local Authority",Calculations!$E$2="Eilean Siar Local Authority"),"N/A", Calculations!Q7) -> 6419.014266 | D22: =IF(OR(Calculations!$E$2="Orkney Health Board",Calculations!$E$2="Orkney Islands Local Authority",Calculations!$E$2="Shetland Health Board",Calculations!$E$2="Western Isles Health Board",Calculations!$E$2="Shetland Islands Local Authority",Calculations!$E$2="Eilean Siar Local Authority"),"N/A", Calculations!R7) -> 6199.775066 | E22: =IF(OR(Calculations!$E$2="Orkney Health Board",Calculations!$E$2="Orkney Islands Local Authority",Calculations!$E$2="Shetland Health Board",Calculations!$E$2="Western Isles Health Board",Calculations!$E$2="Shetland Islands Local Authority",Calculations!$E$2="Eilean Siar Local Authority"),"N/A", C22-D22) -> 219.2392 | F22: =IF(OR(Calculations!$E$2="Orkney Health Board",Calculations!$E$2="Orkney Islands Local Authority",Calculations!$E$2="Shetland Health Board",Calculations!$E$2="Western Isles Health Board",Calculations!$E$2="Shetland Islands Local Authority",Calculations!$E$2="Eilean Siar Local Authority"),"N/A", E22*100/C22) -> 3.415465224 | G22: fewer premature deaths)
B23: Years of life lost | F23: % saved
B24: Whole population | C24: =Calculations!M5 -> 595150.8768 | D24: =Calculations!N5 -> 574243.1617 | E24: =C24-D24 -> 20907.71512 | F24: =E24*100/C24 -> 3.51301089 | G24: Years of life saved
B25: Q1 & Q2 | C25: =Calculations!M6 -> 317715.0433 | D25: =Calculations!N6 -> 306786.7921 | E25: =C25-D25 -> 10928.25122 | F25: =E25*100/C25 -> 3.439639214 | G25: (N.B. positive difference =
B26: Q1 | C26: =IF(OR(Calculations!$E$2="Orkney Health Board",Calculations!$E$2="Orkney Islands Local Authority",Calculations!$E$2="Shetland Health Board",Calculations!$E$2="Western Isles Health Board",Calculations!$E$2="Shetland Islands Local Authority",Calculations!$E$2="Eilean Siar Local Authority"),"N/A", Calculations!M7) -> 179386.3 | D26: =IF(OR(Calculations!$E$2="Orkney Health Board",Calculations!$E$2="Orkney Islands Local Authority",Calculations!$E$2="Shetland Health Board",Calculations!$E$2="Western Isles Health Board",Calculations!$E$2="Shetland Islands Local Authority",Calculations!$E$2="Eilean Siar Local Authority"),"N/A", Calculations!N7) -> 173223.6149 | E26: =IF(OR(Calculations!$E$2="Orkney Health Board",Calculations!$E$2="Orkney Islands Local Authority",Calculations!$E$2="Shetland Health Board",Calculations!$E$2="Western Isles Health Board",Calculations!$E$2="Shetland Islands Local Authority",Calculations!$E$2="Eilean Siar Local Authority"),"N/A", C26-D26) -> 6162.685082 | F26: =IF(OR(Calculations!$E$2="Orkney Health Board",Calculations!$E$2="Orkney Islands Local Authority",Calculations!$E$2="Shetland Health Board",Calculations!$E$2="Western Isles Health Board",Calculations!$E$2="Shetland Islands Local Authority",Calculations!$E$2="Eilean Siar Local Authority"),"N/A", E26*100/C26) -> 3.435426832 | G26: years of life saved)
B27: HEALTH INEQUALITIES | C27: rate* | D27: rate* | E27: rate* | F27: %
B28: Absolute gap (Q1 minus Q5**) | F28: % increase
B29: Hospital stays | C29: =Inequalities!H17 -> 13347.3262 | D29: =Inequalities!J17 -> 13273.49044 | E29: =D29-C29 -> -73.8357574 | F29: =E29*100/C29 -> -0.5531876296 | G29: Change in the absolute gap
B30: Premature deaths | C30: =Inequalities!N17 -> 452.9830565 | D30: =Inequalities!P17 -> 438.2771439 | E30: =D30-C30 -> -14.70591262 | F30: =E30*100/C30 -> -3.246459754 | G30: (N.B. negative = narrower gap)
B31: YLL | C31: =Inequalities!T17 -> 12469.16457 | D31: =Inequalities!V17 -> 12062.77598 | E31: =D31-C31 -> -406.3885896 | F31: =E31*100/C31 -> -3.259148497
B32: Relative gap Q1 to Q5** | F32: % increase
B33: Hospital stays | C33: =Inequalities!H18 -> 1.813617171 | D33: =Inequalities!J18 -> 1.814067177 | E33: =D33-C33 -> 0.0004500059317 | F33: =E33*100/C33 -> 0.02481261972 | G33: Change in the relative gap
B34: Premature deaths | C34: =Inequalities!N18 -> 3.002932138 | D34: =Inequalities!P18 -> 3.012910865 | E34: =D34-C34 -> 0.009978726578 | F34: =E34*100/C34 -> 0.3322994367 | G34: (N.B. negative = narrower gap)
B35: YLL | C35: =Inequalities!T18 -> 2.989725329 | D35: =Inequalities!V18 -> 3.000115985 | E35: =D35-C35 -> 0.01039065536 | F35: =E35*100/C35 -> 0.3475454838
B36: Slope Index of Inequality (SII) | F36: % increase
B37: Hospital stays | C37: =Inequalities!H15 -> 16090.34056 | D37: =Inequalities!J15 -> 16002.10103 | E37: =D37-C37 -> -88.2395237 | F37: =E37*100/C37 -> -0.5484005972 | G37: Change in absolute inequalities
B38: Premature deaths | C38: =Inequalities!N15 -> 533.6176624 | D38: =Inequalities!P15 -> 516.4354898 | E38: =D38-C38 -> -17.18217258 | F38: =E38*100/C38 -> -3.219940754 | G38: (N.B. negative = decreased inequalities)
B39: YLL | C39: =Inequalities!T15 -> 14691.5207 | D39: =Inequalities!V15 -> 14216.29747 | E39: =D39-C39 -> -475.2232303 | F39: =E39*100/C39 -> -3.234676926
B40: Relative Index of Inequality (RII) | F40: % increase
B41: Hospital stays | C41: =Inequalities!H16 -> 0.7333895263 | D41: =Inequalities!J16 -> 0.7336911073 | E41: =D41-C41 -> 0.0003015810508 | F41: =E41*100/C41 -> 0.04112153773 | G41: Change in relative inequalities
B42: Premature deaths | C42: =Inequalities!N16 -> 1.285265123 | D42: =Inequalities!P16 -> 1.288607758 | E42: =D42-C42 -> 0.00334263528 | F42: =E42*100/C42 -> 0.2600736003 | G42: (N.B. negative = decreased inequalities)
B43: YLL | C43: =Inequalities!T16 -> 1.280142305 | D43: =Inequalities!V16 -> 1.283770569 | E43: =D43-C43 -> 0.003628263955 | F43: =E43*100/C43 -> 0.2834266112
B45: * European age-standardised rate per 100,000
B46: ** or the most and least deprived quintiles in the area
B48: Economic impact | C48: Without intervention | D48: With intervention | E48: Difference | F48: Difference | G48: Interpretation
C49: £ | D49: £ | E49: £
B50: Direct financial cost: | C50: 0 | D50: =Evidence!D178*Results!E5 -> 67929300 | E50: =D50-C50 -> 67929300 | G50: Positive difference = net cost incurred
B52: Direct financial savings: | C52: £ | D52: £ | E52: £ | F52: % saved
B53: Hospital stays
B54: Whole population | C54: =Evidence!$D$186*Results!C16 -> 2873365587 | D54: =Evidence!$D$186*Results!D16 -> 2856494245 | E54: =C54-D54 -> 16871342.14 | F54: =E54*100/C54 -> 0.5871630891 | G54: Reduction in hospital stay costs
B55: Q1 & Q2 | C55: =Evidence!$D$186*Results!C17 -> 1362204172 | D55: =Evidence!$D$186*Results!D17 -> 1354302701 | E55: =C55-D55 -> 7901470.715 | F55: =E55*100/C55 -> 0.5800503977 | G55: (N.B. positive difference =
B56: Q1 | C56: =IF(OR(Calculations!$E$2="Orkney Health Board",Calculations!$E$2="Orkney Islands Local Authority",Calculations!$E$2="Shetland Health Board",Calculations!$E$2="Western Isles Health Board",Calculations!$E$2="Shetland Islands Local Authority",Calculations!$E$2="Eilean Siar Local Authority"),"N/A", Evidence!$D$186*Results!C18) -> 725254190.2 | D56: =IF(OR(Calculations!$E$2="Orkney Health Board",Calculations!$E$2="Orkney Islands Local Authority",Calculations!$E$2="Shetland Health Board",Calculations!$E$2="Western Isles Health Board",Calculations!$E$2="Shetland Islands Local Authority",Calculations!$E$2="Eilean Siar Local Authority"),"N/A", Evidence!$D$186*Results!D18) -> 721040818.9 | E56: =IF(OR(Calculations!$E$2="Orkney Health Board",Calculations!$E$2="Orkney Islands Local Authority",Calculations!$E$2="Shetland Health Board",Calculations!$E$2="Western Isles Health Board",Calculations!$E$2="Shetland Islands Local Authority",Calculations!$E$2="Eilean Siar Local Authority"),"N/A", C56-D56) -> 4213371.348 | F56: =IF(OR(Calculations!$E$2="Orkney Health Board",Calculations!$E$2="Orkney Islands Local Authority",Calculations!$E$2="Shetland Health Board",Calculations!$E$2="Western Isles Health Board",Calculations!$E$2="Shetland Islands Local Authority",Calculations!$E$2="Eilean Siar Local Authority"),"N/A", E56*100/C56) -> 0.580950983 | G56: money saved)
B57: Premature deaths (<75 years) | E57: Savings not estimated
B58: Years of life lost | E58: Savings not estimated
B59: Inequalities | E59: Savings not estimated

Sheet Evidence
B2: The intervention
B4: Intervention: lifestyle weight management services - incorporating the features detailed in NICE (2014) Guideline PH53:
B5: ● Multicomponent, addressing: dietary intake, physical activity levels and behaviour change.
B6: ● Last at least 3 months, with weekly or fortnightly meetings.
B7: ● Developed by a multidisciplinary team, and delivered by trained staff.
B8: ● Details of implementation may vary (individual or group delivery; self-referral or from health/social care practitioners, public sector/voluntary/private,
B9: delivered in community, primary care, workplace, or online).
B12: Exposure Rate Ratios (ERR) for obesity (Body Mass Index (BMI)>=30)
B14: Outcome | C14: Sex | D14: ERR (relative to non-obese) | E14: Source | F14: Quoted/calculated
B15: All-cause hospitalisation | C15: Men | D15: 1.49 | E15: 2015 Korda et al table 2 p9 | F15: Quoted
C16: Women | D16: 1.31 | E16: 2015 Korda et al table 2 p9 | F16: Quoted
B17: All-cause mortality | C17: All participants | D17: 1.79 | E17: 2016 Global BMI collaboration e-table 12, appendix p.25 | F17: Quoted
B20: Hospitalisation
B21: ERR drawn from a prospective cohort study (45 and Up Study, Korda et at, 2015).
B22: Results are presented stratified by age group and BMI.
B23: The selected ERR is for those aged 45-64 years (reflects average age of those likely to take up intervention)
B24: and for BMI 32.5 to <35 (mean BMI of Scottish population at risk is 34.5). Reference group BMI 22.5 to <25.
B26: Mortality
B27: ERR drawn from an individual-participant data meta-analysis (n=239 studies) (Global BMI Mortality Collaboration 2016).
B28: This meta-analysis accounts for potential reverse causality through adjustment for smoking status and prior disease, and excluding
B29: deaths in the first 5 years of follow-up. Reference group BMI 22.5 to <25.
B30: The presented ERR is for European studies (n=89); findings were consistent across regions, but largest effect in Europe.
B31: ERR is higher for men than women, but ERR is only available for BMI groups rather than all obese.
B34: Intervention Rate Ratios (IRR) for successful weight management interventions
B36: Outcome | C36: Sex | D36: IRR relative to untreated | E36: Sources | F36: Quoted/calculated
B37: All-cause hospitalisation | C37: All | D37: 0.98 | E37: Reeves et al (2014), NICE Ev1a (2013) , Ross et al (2008) | F37: Calculated
B38: All-cause mortality | C38: All | D38: 0.86 | E38: Ma et al (2017) | F38: Calculated
B40: How much weight is lost?
B41: NICE Ev1a (2013) provides an estimated average weight loss for lifestyle weight management services of 2.59kg.
B42: Data from the Counterweight evaluation (Ross et al 2008) provides data on average BMI (37), height (1.65m) and weight (101kg) of participants.
B43: Applying a 2.59kg weight loss to these base characteristics gives an average anticipated BMI change of -0.95kg/m2.
B44: Hence we assume that participants lose an average of 0.95 kg/m2 from the weight management programme.
B46: Hospitalisation
B47: No studies were identified that directly measured the effect of weight management services on the risk of hospitalisation.
B48: Reeves et al. 2014 provides an estimate of relative risk (RR) of hospitalisation of 1.12 (1.12-1.13) per 5kg/m2 over a 'healthy' weight (BMI 22.5-24.9).
B49: The Reeves et al. 2014 RR of 1.12 per 5 kg/m2 equates to a regression coefficient of ln(1.12)/5 = 0.02266 per BMI unit.
B50: Applying the coefficient to -0.95 kg/m2 BMI change gives an IRR = exp(0.02266*-0.95) = 0.98
B52: Mortality
B53: A risk reduction ratio of 0.82 was drawn from a systematic review and meta-analysis of weight loss interventions (Ma et al 2017).
B54: 34 studies, with 21,699 participants and 685 subsequent deaths contributed to the estimated effect size.
B55: Follow-up included all participants who entered the study, regardless of weight loss achieved.
B56: Mean weight loss was calculated to be -3.42kg after one year.
B57: Inclusion criteria for trials differ slightly from the studies that inform the NICE PH53 guideline: Ma et al's study required trials to be focused clearly on weight loss with a weight reducing diet, with or without a physical activity component, and to be compared to a control intervention.
B58: Applying a 3.42kg weight loss to the Counterweight base characteristics gives an average anticipated BMI change of -1.26kg/m2.
B59: The Ma et al. 2017 RR of 0.82 for -1.26 kg/m2 equates to a regression coefficient of ln(0.82)/-1.26 = 0.1575 per BMI unit.
B60: Applying the coefficient to the more conservative -0.95 kg/m2 BMI change derived above (using NICE and Counterweight data) gives an IRR = exp(0.1575*-0.95) = 0.86
B62: Weight regain
B63: We assume that participants lose an average of 0.95 kg/m2 in year 1 from the weight management programme.
B64: Li et al (2015) uses the 1958 birth cohort to give an estimate of background weight gain among the general adult population of 0.9% increase in BMI per year.
B65: NICE Ev1c (2013) provides evidence regarding differential weight gain between participants in lifestyle weight management services and controls, with participants gaining 0.047kg/month more than controls.
B66: Applying a 0.047kg/month weight gain to the Counterweight base characteristics gives an average anticipated BMI increase of 0.21 kg/m2 each year for the treated individuals.
B67: Assuming that without participation in services, individuals would continue to gain 0.9% BMI per year, and that after participation they regain BMI at 0.21 kg/m2 each year faster than this background weight, it is estimated that participants would regress to their original weight trajectory 7.5 years following the intervention.
B68: It is assumed that the effects of the intervention will reduce in a linear fashion over this time period.
B69: These values have been used to construct the BMI trajectories below, and their corresponding IRRs.
B70: Intervention drop-out rate has not be considered separately, as intervention evidence is drawn from randomised-controlled trials analysed on an intention-to-treat basis.
B71: Issues with adherence and drop-out are therefore accounted for in the overall effect size reported.
B72: No evidence of differential effect by age, sex, Scottish Index of Multiple Deprivation (SIMD) (NICE 2014 Ev1a).
F74: Coefficients per BMI unit change (see above)
F75: hospitalisation | G75: mortality
F76: 0.02266573706 | G76: 0.157500745
C77: BMI over time | F77: IRR for participants
B78: Year | C78: Participant BMI | D78: Non-participant BMI | E78: BMI difference | F78: hospitalisation | G78: mortality
B79: 0 (pre-intervention) | C79: 37.1 | D79: 37.1 | E79: =C79-D79 -> 0 | F79: 1 | G79: 1
B80: 1 (intervention) | C80: =C79-0.95 -> 36.15 | D80: 37.1 | E80: =C80-D80 -> -0.95 | F80: =EXP(E80*F$76) -> 0.978697718 | G80: =EXP(E80*G$76) -> 0.861030193
B81: 2 | C81: =(C80*1.009)+0.2072 -> 36.68255 | D81: =D80*1.009 -> 37.4339 | E81: =C81-D81 -> -0.75135 | F81: 0.9831142876 | G81: =EXP(E81*G$76) -> 0.88839556
B82: 3 | C82: =(C81*1.009)+0.2072 -> 37.21989295 | D82: 37.7708051 | E82: -0.55091215 | F82: 0.987590807 | G82: 0.9168888046
B83: 4 | C83: 37.76207199 | D83: 38.11074235 | E83: -0.3486703594 | F83: 0.9921282749 | G83: 0.9465648062
B84: 5 | C84: 38.30913063 | D84: 38.45373903 | E84: -0.1446083926 | F84: 0.9967277098 | G84: 0.9774814839
B85: 6 | C85: 38.86111281 | D85: =D84*1.009 -> 38.79982268 | E85: 0.06129013188 | F85: 1.001390151 | G85: 1.009699984
B86: 7 | C86: 39.41806283 | D86: 39.14902108 | E86: 0.2690417431 | F86: 1.00611666 | G86: 1.043284881
B87: 8 | C87: =D87 -> 39.50136227 | D87: =D86*1.009 -> 39.50136227 | E87: 0 | F87: 1 | G87: 1
B88: 9 | C88: (Same weight gain trajectory after year 8) | E88: 0 | F88: 1 | G88: 1
B89: 10 | E89: 0 | F89: 1 | G89: 1
B90: 11 | E90: 0 | F90: 1 | G90: 1
B91: 12 | E91: 0 | F91: 1 | G91: 1
B92: 13 | E92: 0 | F92: 1 | G92: 1
B93: 14 | E93: 0 | F93: 1 | G93: 1
B94: 15 | E94: 0 | F94: 1 | G94: 1
B95: 16 | E95: 0 | F95: 1 | G95: 1
B96: 17 | E96: 0 | F96: 1 | G96: 1
B97: 18 | E97: 0 | F97: 1 | G97: 1
B98: 19 | E98: 0 | F98: 1 | G98: 1
B99: 20 | E99: 0 | F99: 1 | G99: 1
B102: Prevalence of obesity
B104: Proportion of the population with BMI >= 30.
B105: The figures are weighted proportions from the Scottish Health Survey (2013-2016 combined).
B106: * indicates Local Authorities (LAs) with sample base <450: here aggregated LA estimates have been used, based on the most similar LAs identified by ONS (2011).
B108: Population at Risk (PAR) by Area (proportions) | F108: Population at Risk by deprivation quintile (proportions)
B109: Area | C109: Females | D109: Males | F109: SIMD 2016 quintile | G109: Age group | H109: Females | I109: Males
B110: SCOTLAND | C110: 0.2943987848 | D110: 0.2715281533 | F110: Quintile 1 (most deprived) | G110: 16-24 | H110: 21.51732402 | I110: 14.24014355
B111: Ayrshire & Arran Health Board | C111: 0.3497262739 | D111: 0.3176620207 | G111: 25-34 | H111: 28.54121047 | I111: 23.8606323
B112: Borders Health Board | C112: 0.2771180364 | D112: 0.2634265902 | G112: 35-44 | H112: 37.14560104 | I112: 32.36404062
B113: Dumfries & Galloway Health Board | C113: 0.3112223026 | D113: 0.309711675 | G113: 45-54 | H113: 41.90271098 | I113: 35.28343264
B114: Fife Health Board | C114: 0.3315404384 | D114: 0.3070041136 | G114: 55-64 | H114: 40.94434826 | I114: 33.13598623
B115: Forth Valley Health Board | C115: 0.3332911141 | D115: 0.2912956707 | G115: 65-74 | H115: 42.33911697 | I115: 39.69263423
B116: Grampian Health Board | C116: 0.2790117782 | D116: 0.2818567346 | G116: 75+ | H116: 38.31043691 | I116: 25.12395985
B117: Greater Glasgow & Clyde Health Board | C117: 0.2681576676 | D117: 0.2448458727 | F117: Q2 | G117: 16-24 | H117: 12.74116291 | I117: 12.66709337
B118: Highland Health Board | C118: 0.3078839287 | D118: 0.2340355293 | G118: 25-34 | H118: 33.07499409 | I118: 28.46077823
B119: Lanarkshire Health Board | C119: 0.3176429054 | D119: 0.3284624461 | G119: 35-44 | H119: 38.89368769 | I119: 29.76679532
B120: Lothian Health Board | C120: 0.2478491294 | D120: 0.2250475058 | G120: 45-54 | H120: 35.1778194 | I120: 39.06835332
B121: Orkney Health Board | C121: 0.3644824674 | D121: 0.311091482 | G121: 55-64 | H121: 38.95245751 | I121: 39.787569
B122: Shetland Health Board | C122: 0.3696545978 | D122: 0.3874091928 | G122: 65-74 | H122: 38.36280017 | I122: 42.26827382
B123: Tayside Health Board | C123: 0.3074182704 | D123: 0.265721672 | G123: 75+ | H123: 32.18852918 | I123: 31.74756183
B124: Western Isles Health Board | C124: 0.3911854326 | D124: 0.2895365842 | F124: Q3 | G124: 16-24 | H124: 24.53114834 | I124: 11.20509831
B125: Aberdeen City Local Authority | C125: 0.249874422 | D125: 0.2412378313 | G125: 25-34 | H125: 28.82425594 | I125: 21.34704174
B126: Aberdeenshire Local Authority | C126: 0.2965768092 | D126: 0.2836644131 | G126: 35-44 | H126: 37.01550529 | I126: 25.58700283
B127: Angus Local Authority | C127: 0.3499739139 | D127: 0.2817694701 | E127: * | G127: 45-54 | H127: 35.32063922 | I127: 33.79682751
B128: Argyll & Bute Local Authority | C128: 0.3078839287 | D128: 0.2340355293 | E128: * | G128: 55-64 | H128: 35.60295955 | I128: 38.38316332
B129: Clackmannanshire Local Authority | C129: 0.3415098548 | D129: 0.2866855735 | E129: * | G129: 65-74 | H129: 42.90178455 | I129: 41.61839496
B130: Dumfries & Galloway Local Authority | C130: 0.3112223026 | D130: 0.309711675 | G130: 75+ | H130: 31.56378958 | I130: 25.20710863
B131: Dundee City Local Authority | C131: 0.2641494 | D131: 0.2452732575 | F131: Q4 | G131: 16-24 | H131: 10.69469751 | I131: 10.87238605
B132: East Ayrshire Local Authority | C132: 0.3531202173 | D132: 0.3277810734 | G132: 25-34 | H132: 16.03529201 | I132: 15.43450004
B133: East Dunbartonshire Local Authority | C133: 0.2030283966 | D133: 0.2034099335 | E133: * | G133: 35-44 | H133: 23.52081968 | I133: 30.47614803
B134: East Lothian Local Authority | C134: 0.3194512359 | D134: 0.3115761301 | E134: * | G134: 45-54 | H134: 31.42963459 | I134: 31.28993167
B135: East Renfrewshire Local Authority | C135: 0.2030283966 | D135: 0.2034099335 | E135: * | G135: 55-64 | H135: 29.6337836 | I135: 37.75432668
B136: Edinburgh, City of Local Authority | C136: 0.1820675552 | D136: 0.1852590927 | G136: 65-74 | H136: 31.75438646 | I136: 30.87513084
B137: Eilean Siar Local Authority | C137: 0.3911854326 | D137: 0.2895365842 | G137: 75+ | H137: 29.13746423 | I137: 20.44544723
B138: Falkirk Local Authority | C138: 0.3256381011 | D138: 0.2900136165 | F138: Q5 (least deprived) | G138: 16-24 | H138: 10.6465205 | I138: 5.575895996
B139: Fife Local Authority | C139: 0.3315404384 | D139: 0.3070041136 | G139: 25-34 | H139: 14.03653685 | I139: 17.60137925
B140: Glasgow City Local Authority | C140: 0.2899072863 | D140: 0.2166527941 | G140: 35-44 | H140: 21.21137832 | I140: 17.04926233
B141: Highland Local Authority | C141: 0.3127937178 | D141: 0.2622630736 | G141: 45-54 | H141: 21.63074775 | I141: 25.39000079
B142: Inverclyde Local Authority | C142: 0.2559929608 | D142: 0.3121122303 | E142: * | G142: 55-64 | H142: 23.86729845 | I142: 33.14927787
B143: Midlothian Local Authority | C143: 0.3194512359 | D143: 0.3115761301 | E143: * | G143: 65-74 | H143: 23.12150962 | I143: 27.01638044
B144: Moray Local Authority | C144: 0.2952072126 | D144: 0.3677954096 | G144: 75+ | H144: 25.78704699 | I144: 16.61716621
B145: North Ayrshire Local Authority | C145: 0.4128510446 | D145: 0.3103120365
B146: North Lanarkshire Local Authority | C146: 0.3434695304 | D146: 0.3309875603
B147: Orkney Islands Local Authority | C147: 0.3644824674 | D147: 0.311091482
B148: Perth & Kinross Local Authority | C148: 0.26192852 | D148: 0.2657835727
B149: Renfrewshire Local Authority | C149: 0.2238106986 | D149: 0.3119648684
B150: Scottish Borders Local Authority | C150: 0.3499739139 | D150: 0.2817694701
B151: Shetland Islands Local Authority | C151: 0.3696545978 | D151: 0.3874091928 | E151: *
B152: South Ayrshire Local Authority | C152: 0.2674332589 | D152: 0.3153991849
B153: South Lanarkshire Local Authority | C153: 0.2892766577 | D153: 0.3292098134
B154: Stirling Local Authority | C154: 0.3286056951 | D154: 0.3043073199
B155: West Dunbartonshire Local Authority | C155: 0.2517421542 | D155: 0.3184459837 | E155: *
B156: West Lothian Local Authority | C156: 0.3398133277 | D156: 0.2574016685 | E156: *
B157: Aberdeen City Region Deal | C157: 0.2754083954 | D157: 0.2646860596
B158: Edinburgh & SE Scotland City Region Deal | C158: 0.2737425294 | D158: 0.2496318377
B159: Glasgow City Region Deal | C159: 0.2863776246 | D159: 0.2750959984
B160: Inverness & Highland City Region Deal | C160: 0.3127937178 | D160: 0.2622630736
B161: Tay Cities Region Deal | C161: 0.3182388714 | D161: 0.2860426542
B162: Clackmannanshire & Stirling IJB | C162: 0.3409712556 | D162: 0.2878361722
B165: Proportion who seek help
B167: Description | C167: Gender | D167: Value | E167: Sources | F167: Quoted/calculated
B168: Proportion of obese population who wish to lose weight | C168: All | D168: 0.711 | E168: Scottish Health Survey (SHeS) 2008-2011 Knowledge and Attitudes Module (KAM) | F168: Calculated
B170: Eligible population:
B171: Those with obesity (BMI>=30), aged 18+ years, who want to lose weight.
B172: Motivation to lose weight is estimated from the Scottish Health Survey Knowledge, Attitudes and Motivation module (2008-2011).
B173: The figure of 71.1% represents all those with a BMI>=30 who are in the contemplation, planning, action or maintenance stages of change.
B176: Intervention costs
B178: Cost of providing lifestyle weight management services | D178: 75
B179: Source: Fuller et al (2013) inflated using Hospital and Community Health Service (HCHS) inflation index for financial year 2015/16.
B182: Hospitalisation costs
B184: The cost of a continuous inpatient stay was estimated to be £2,113 in 2006/07 (Geue et al 2012; based on healthcare resource groups and the English tariff).
B185: This was inflated to £2,512 for 2015/16 using the Hospital and Community Health Service (HCHS) inflation index.
B186: Cost of continuous Inpatient stay | D186: 2512
B189: References
B190: Fuller et al (2013) | C190: A within‐trial cost‐effectiveness analysis of primary care referral to a commercial provider for weight loss treatment, relative to standard care‐an international randomised controlled trial. Int J Obes (Lond) 2013; 37: 828–834
B191: Global BMI Collaboration (2016) | C191: The Global BMI Collaboration. Body-mass index and all-cause mortality: individual-participant-data meta-analysis of 239 prospective studies in four continents. Lancet 2016; 388: 776–86. www.clinicalkey.com/service/content/pdf/watermarked/1-s2.0-S0140673616301751.pdf?locale=en_US
B192: Korda et al (2015) | C192: Korda RJ, Joshy G, Paige E, Butler JRG, Jorm LR, Liu B, et al. (2015) The Relationship between Body Mass Index and Hospitalisation Rates, Days in Hospital and Costs: Findings from a Large Prospective Linked Data Study. PLoS ONE 10(3): e0118599. doi:10.1371/journal.pone.0118599 . journals.plos.org/plosone/article/file?id=10.1371/journal.pone.0118599&type=printable
B193: Li et al (2015) | C193: Li L, Hardy R, Kuh D, Power C. Life-course body mass index trajectories and blood pressure in mid life in two British birth cohorts: stronger associations in the later-born generation. International Journal of Epidemiology; 2015, vol 44 (3): 1018-1026. academic.oup.com/ije/article-lookup/doi/10.1093/ije/dyv106
B194: Ma et al (2017) | C194: Ma C, Avenell A, Bolland M, Hudson J, Stewart F, Robertson C, Sharma P, Fraser C, MacLennan G. Effects of weight loss interventions for adults who are obese on mortality, cardiovascular disease, and cancer: systematic review and meta-analysis. BMJ (Clinical research ed.). 359: j4849. www.pubmedcentral.nih.gov/articlerender.fcgi?artid=PMC5682593
B195: NICE Ev1a (2013) | C195: Hartmann-Boyce et al. NICE 2013 Ev1a Managing overweight and obese adults: update review The clinical effectiveness of long-term weight management schemes for adults (Review 1a). www.nice.org.uk/guidance/ph53/evidence/evidence-review-1a-pdf-431707933
B196: NICE Ev1c (2013) | C196: Johns D, Hartmann-Boyce J. NICE 2013 Ev1c Weight regain after behavioural weight management programmes Review 1c. www.nice.org.uk/guidance/ph53/evidence/evidence-review-1c-pdf-431707935
B197: NICE Guideline PH53 (2014) | C197: NICE PH53 lifestyle services for overweight/obese. www.nice.org.uk/guidance/ph53/resources/weight-management-lifestyle-services-for-overweight-or-obese-adults-pdf-1996416726469
B198: ONS (2011) | C198: 2011 residential-based area classifications. https://www.ons.gov.uk/methodology/geography/geographicalproducts/areaclassifications/2011areaclassifications/datasets.
B199: Reeves et al (2014) | C199: Reeves et al. Hospital admissions in relation to body mass index in UK women: a prospective cohort study. BMC Medicine, 12:45. bmcmedicine.biomedcentral.com/track/pdf/10.1186/1741-7015-12-45
B200: Ross et al (2008) | C200: Evaluation of the Counterweight Programme for obesity management in primary care: a starting point for continuous improvement. British Journal of General Practice 2008 Aug;58(553), 548-554. http://www.counterweight.org/Publications/Published-Papers/Evaluation-of-the-Counterweight-Programme-for-obesity-management-in-primary-care-a-starting-point-for-continuous-improvement-30.
B201: Scottish Health Survey (2008-2011) | C201: Knowledge, attitudes and motivations to health; module of the Scottish Health Survey, dataset 2008-2011. Available via https://www.ukdataservice.ac.uk/

Sheet SHEETS TO BE HIDDEN -> (hidden)

Sheet Calculations (hidden)
A1: Calculating the deaths, years of life lost, hospital stays, and premature deaths for each group | K1: COUNTS | AJ1: EUROPEAN AGE-STANDARDISED RATE (EASR) PER 100000
A2: AREA: | B2: =Options!B11 -> Scotland | C2: EQUIVALENT AREA: | E2: =VLOOKUP(B2,Lists!D2:E85,2) -> Scotland | K2: CUMULATIVE INCIDENCE (DEATHS) | M2: YEARS OF LIFE LOST | O2: HOSPITALISATIONS | Q2: PREMATURE MORTALITY | S2: AGE STANDARDISED RATE (ASR) | AA2: ASR*EUROPEAN STANDARD POPULATION (ESP2013) | AJ2: CUMULATIVE INCIDENCE (DEATHS) | AL2: YEARS OF LIFE LOST | AN2: HOSPITALISATIONS | AP2: PREMATURE MORTALITY
A3: SIMD | B3: group | C3: mean age (2016) | D3: life exp (2014-16) | E3: sex | F3: SIMD | G3: prevalence exposure | H3: population (2016) | I3: no. treated at base | J3: additional no. treated under policy | K3: Baseline | L3: Policy | M3: Baseline | N3: Policy | O3: Baseline | P3: Policy | Q3: Baseline | R3: Policy | S3: CI_BASE | T3: CI_POLICY | U3: YLL_BASE | V3: YLL_POLICY | W3: HOSP_BASE | X3: HOSP_POLICY | Y3: PREM_BASE | Z3: PREM_POLICY | AA3: CI_BASE | AB3: CI_POLICY | AC3: YLL_BASE | AD3: YLL_POLICY | AE3: HOSP_BASE | AF3: HOSP_POLICY | AG3: PREM_BASE | AH3: PREM_POLICY | AI3: ESP2013 | AJ3: Baseline | AK3: Policy | AL3: Baseline | AM3: Policy | AN3: Baseline | AO3: Policy | AP3: Baseline | AQ3: Policy
A5: All quintiles | B5: 16+ Males and Females | C5: N/A | E5: BOTH | F5: ALL | H5: =SUM(H7:H11) -> 4488783 | I5: =SUM(I7:I11) -> 0 | J5: =SUM(J7:J11) -> 905728 | K5: =SUMIF(K7:K11,">0") -> 44447.80629 | L5: 42908.62397 | M5: 595150.8768 | N5: 574243.1617 | O5: 1143855.727 | P5: 1137139.429 | Q5: 21611.71302 | R5: 20860.04963 | AA5: =SUMIF(AA7:AA11,">0") -> 904819345.1 | AB5: =SUMIF(AB7:AB11,">0") -> 873537938.2 | AC5: 1.147647464e+10 | AD5: 1.107386149e+10 | AE5: 2.193969232e+10 | AF5: 2.181040614e+10 | AG5: 415181002.6 | AH5: 400770123 | AI5: =SUM(AI7:AI11) -> 1000000 | AJ5: =AA5/$AI5 -> 904.8193451 | AK5: =AB5/$AI5 -> 873.5379382 | AL5: =AC5/$AI5 -> 11476.47464 | AM5: 11073.86149 | AN5: 21939.69232 | AO5: 21810.40614 | AP5: 415.1810026 | AQ5: 400.770123
A6: Q1 and Q2 | B6: 16+ Males and Females | C6: N/A | E6: BOTH | F6: Q1&2 | H6: =SUM(H7:H8) -> 1769266 | I6: 0 | J6: 356999 | K6: 23367.05118 | L6: 22579.45676 | M6: 317715.0433 | N6: 306786.7921 | O6: 542278.7308 | P6: 539133.2408 | Q6: 11397.40704 | R6: 11008.41683 | AA6: =SUMIF(AA7:AA8,">0") -> 501588160.5 | AB6: =SUMIF(AB7:AB8,">0") -> 484716464.9 | AC6: 6385004119 | AD6: 6165823337 | AE6: 1.078771081e+10 | AF6: 1.072489752e+10 | AG6: 231262783.3 | AH6: 223385728.8 | AI6: =SUM(AI7:AI8) -> 400000 | AJ6: =AA6/$AI6 -> 1253.970401 | AK6: 1211.791162 | AL6: 15962.5103 | AM6: 15414.55834 | AN6: 26969.27703 | AO6: 26812.24381 | AP6: 578.1569583 | AQ6: 558.464322
A7: SIMD Q1 (most deprived) | B7: 16+ Males and Females | C7: N/A | E7: BOTH | F7: 1 | H7: =H12+H17 -> 872234 | I7: 0 | J7: 175997 | K7: 12879.23385 | L7: 12447.69687 | M7: =M12+M17 -> 179386.3 | N7: 173223.6149 | O7: 288715.8401 | P7: 287038.5426 | Q7: 6419.014266 | R7: 6199.775066 | AA7: =AA12+AA17 -> 293657643.3 | AB7: =AB12+AB17 -> 283826985.5 | AC7: 3747188278 | AD7: 3618762844 | AE7: 5950449632 | AF7: 5915728828 | AG7: 135828603.7 | AH7: 131202031 | AI7: =AI12+AI17 -> 200000 | AJ7: =AA7/$AI7 -> 1468.288216 | AK7: 1419.134927 | AL7: =AC7/$AI7 -> 18735.94139 | AM7: =AD7/$AI7 -> 18093.81422 | AN7: =AE7/$AI7 -> 29752.24816 | AO7: =AF7/$AI7 -> 29578.64414 | AP7: =AG7/$AI7 -> 679.1430187 | AQ7: =AH7/$AI7 -> 656.0101551
A8: SIMD Q2 | C8: N/A | E8: BOTH | F8: 2 | H8: =H13+H18 -> 897032 | I8: 0 | J8: 181002 | K8: =K13+K18 -> 10487.81734 | L8: 10131.75989 | M8: 138328.7434 | N8: 133563.1772 | O8: 253562.8907 | P8: 252094.6983 | Q8: 4978.392774 | R8: 4808.64176 | AA8: =AA13+AA18 -> 207930517.2 | AB8: =AB13+AB18 -> 200889479.4 | AC8: 2637815841 | AD8: 2547060493 | AE8: 4837261178 | AF8: 4809168697 | AG8: 95434179.58 | AH8: 92183697.78 | AI8: =AI13+AI18 -> 200000 | AJ8: 1039.652586 | AK8: 1004.447397 | AL8: 13189.07921 | AM8: 12735.30247 | AN8: 24186.30589 | AO8: 24045.84348 | AP8: 477.1708979 | AQ8: 460.9184889
A9: SIMD Q3 | C9: N/A | E9: BOTH | F9: 3 | H9: 907978 | I9: 0 | J9: 183206 | K9: 8978.810345 | L9: 8668.417975 | M9: 117438.2374 | N9: 113339.4357 | O9: 227312.9823 | P9: 225986.9204 | Q9: 4320.110588 | R9: 4172.056588 | AA9: =AA14+AA19 -> 169009830 | AB9: =AB14+AB19 -> 163159508.7 | AC9: 2138272744 | AD9: 2063539818 | AE9: 4182172525 | AF9: 4157677800 | AG9: 77291577.6 | AH9: 74641565.53 | AI9: =AI14+AI19 -> 200000 | AJ9: 845.0491499 | AK9: 815.7975433 | AL9: 10691.36372 | AM9: 10317.69909 | AN9: 20910.86262 | AO9: 20788.389 | AP9: 386.457888 | AQ9: 373.2078277
A10: SIMD Q4 | C10: N/A | E10: BOTH | F10: 4 | H10: 910792 | I10: 0 | J10: 183775 | K10: 7024.835617 | L10: 6772.710091 | M10: 93189.65779 | N10: 89820.12095 | O10: 200119.0561 | P10: 198929.1826 | Q10: 3450.744177 | R10: 3327.211146 | AA10: =AA15+AA20 -> 134677466.4 | AB10: =AB15+AB20 -> 129833616.7 | AC10: 1699842414 | AD10: 1638290691 | AE10: 3688824591 | AF10: 3666800075 | AG10: 61394649.21 | AH10: 59196226.37 | AI10: =AI15+AI20 -> 200000 | AJ10: 673.3873321 | AK10: 649.1680837 | AL10: 8499.212069 | AM10: 8191.453456 | AN10: 18444.12295 | AO10: 18334.00038 | AP10: 306.973246 | AQ10: 295.9811318
A11: SIMD Q5 (least deprived) | C11: N/A | E11: BOTH | F11: 5 | H11: 900747 | I11: 0 | J11: 181748 | K11: 5077.109143 | L11: 4888.039147 | M11: 66807.93828 | N11: 64296.81298 | O11: 174144.9582 | P11: 173090.0849 | Q11: 2443.451219 | R11: 2352.365074 | AA11: =AA16+AA21 -> 99543888.18 | AB11: =AB16+AB21 -> 95828347.85 | AC11: 1253355364 | AD11: 1206207647 | AE11: 3280984393 | AF11: 3261030740 | AG11: 45231992.43 | AH11: 43546602.25 | AI11: =AI16+AI21 -> 200000 | AJ11: =AA11/$AI11 -> 497.7194409 | AK11: 479.1417393 | AL11: 6266.776819 | AM11: 6031.038236 | AN11: 16404.92197 | AO11: 16305.1537 | AP11: 226.1599622 | AQ11: 217.7330112
A12: SIMD Q1 (most deprived) | B12: 16+ Females | C12: N/A | E12: female | F12: 1 | H12: =SUM(H60:H78) -> 457633 | I12: =SUM(I60:I78) -> 0 | J12: =SUM(J60:J78) -> 92340 | K12: =SUMIF(K60:K78,">0") -> 6414.842936 | L12: 6205.549727 | M12: 82481.43009 | N12: 79716.83511 | O12: 155037.8909 | P12: 154177.9523 | Q12: 2637.175538 | R12: 2548.622227 | AA12: =SUMIF(AA60:AA78,">0") -> 123803032.8 | AB12: =SUMIF(AB60:AB78,">0") -> 119764963.3 | AC12: =SUMIF(AC60:AC78,">0") -> 1588387651 | AD12: 1535221920 | AE12: 2906076588 | AF12: 2889976165 | AG12: 53045913.3 | AH12: 51267723.16 | AI12: =SUM(AI60:AI78) -> 100000 | AJ12: 1238.030328 | AK12: 1197.649633 | AL12: 15883.87651 | AM12: 15352.2192 | AN12: 29060.76588 | AO12: 28899.76165 | AP12: 530.459133 | AQ12: 512.6772316
A13: SIMD Q2 | C13: N/A | E13: female | F13: 2 | H13: =SUM(H98:H116) -> 469079 | I13: =SUM(I98:I116) -> 0 | J13: =SUM(J98:J116) -> 94650 | K13: =SUMIF(K98:K116,">0") -> 5232.559469 | L13: 5054.499436 | M13: 63987.22061 | N13: 61781.14417 | O13: 134904.8591 | P13: 134149.8563 | Q13: 2051.760398 | R13: 1981.30424 | AA13: =SUMIF(AA98:AA116,">0") -> 87612370.19 | AB13: =SUMIF(AB98:AB116,">0") -> 84630178.01 | AC13: 1117738622 | AD13: 1079203534 | AE13: 2362418360 | AF13: 2349204629 | AG13: 37243747.8 | AH13: 35965354.06 | AI13: =SUM(AI98:AI116) -> 100000 | AJ13: 876.1237019 | AK13: 846.3017801 | AL13: 11177.38622 | AM13: 10792.03534 | AN13: 23624.1836 | AO13: 23492.04629 | AP13: 372.437478 | AQ13: 359.6535406
A14: SIMD Q3 | C14: N/A | E14: female | F14: 3 | H14: =SUM(H136:H154) -> 469093 | I14: =SUM(I136:I154) -> 0 | J14: =SUM(J136:J154) -> 94650 | K14: =SUMIF(K136:K154,">0") -> 4350.207173 | L14: 4201.314735 | M14: 53260.8092 | N14: 51421.75369 | O14: 118438.0814 | P14: 117776.0695 | Q14: 1752.603277 | R14: 1692.818039 | AA14: =SUMIF(AA136:AA154,">0") -> 71188851.48 | AB14: =SUMIF(AB136:AB154,">0") -> 68751361.14 | AC14: 905894153 | AD14: 874598168.4 | AE14: 2042486604 | AF14: 2031071051 | AG14: 30154099.78 | AH14: 29125278.65 | AI14: =SUM(AI136:AI154) -> 100000 | AJ14: 711.8885148 | AK14: 687.5136114 | AL14: 9058.94153 | AM14: 8745.981684 | AN14: 20424.86604 | AO14: 20310.71051 | AP14: 301.5409978 | AQ14: 291.2527865
A15: SIMD Q4 | C15: N/A | E15: female | F15: 4 | H15: =SUM(H174:H192) -> 468792 | I15: =SUM(I174:I192) -> 0 | J15: =SUM(J174:J192) -> 94590 | K15: =SUMIF(K174:K192,">0") -> 3350.661115 | L15: 3231.58807 | M15: 41806.46921 | N15: 40295.28828 | O15: 103630.2706 | P15: 103038.5969 | Q15: 1387.06986 | R15: 1337.005188 | AA15: =SUMIF(AA174:AA192,">0") -> 56710908.87 | AB15: =SUMIF(AB174:AB192,">0") -> 54693922.97 | AC15: 720031253.8 | AD15: 693974681.9 | AE15: 1801545672 | AF15: 1791253027 | AG15: 23945484.4 | AH15: 23080845.42 | AI15: =SUM(AI174:AI192) -> 100000 | AJ15: 567.1090887 | AK15: 546.9392297 | AL15: 7200.312538 | AM15: 6939.746819 | AN15: 18015.45672 | AO15: 17912.53027 | AP15: 239.454844 | AQ15: 230.8084542
A16: SIMD Q5 (least deprived) | C16: N/A | E16: female | F16: 5 | H16: =SUM(H212:H230) -> 465079 | I16: =SUM(I212:I230) -> 0 | J16: =SUM(J212:J230) -> 93841 | K16: =SUMIF(K212:K230,">0") -> 2443.972087 | L16: 2353.689754 | M16: 30207.63442 | N16: 29069.29786 | O16: 90811.93649 | P16: 90285.21156 | Q16: 993.3518856 | R16: 955.6548622 | AA16: =SUMIF(AA212:AA230,">0") -> 41905148.06 | AB16: =SUMIF(AB212:AB230,">0") -> 40355517.4 | AC16: 530822179.9 | AD16: 510808108 | AE16: 1602364951 | AF16: 1593069483 | AG16: 17636773.71 | AH16: 16967486.36 | AI16: =SUM(AI212:AI230) -> 100000 | AJ16: 419.0514806 | AK16: 403.555174 | AL16: 5308.221799 | AM16: 5108.08108 | AN16: 16023.64951 | AO16: 15930.69483 | AP16: 176.3677371 | AQ16: 169.6748636
A17: SIMD Q1 (most deprived) | B17: 16+ Males | C17: N/A | E17: male | F17: 1 | H17: =SUM(H79:H97) -> 414601 | I17: =SUM(I79:I97) -> 0 | J17: =SUM(J79:J97) -> 83657 | K17: =SUMIF(K79:K97,">0") -> 6464.39091 | L17: 6242.147142 | M17: 96904.86987 | N17: 93506.77976 | O17: 133677.9492 | P17: 132860.5903 | Q17: 3781.838729 | R17: 3651.15284 | AA17: =SUMIF(AA79:AA97,">0") -> 169854610.5 | AB17: =SUMIF(AB79:AB97,">0") -> 164062022.2 | AC17: 2158800627 | AD17: 2083540923 | AE17: 3044373044 | AF17: 3025752664 | AG17: 82782690.43 | AH17: 79934307.87 | AI17: =SUM(AI79:AI97) -> 100000 | AJ17: 1698.546105 | AK17: 1640.620222 | AL17: 21588.00627 | AM17: 20835.40923 | AN17: 30443.73044 | AO17: 30257.52664 | AP17: 827.8269043 | AQ17: 799.3430787
A18: SIMD Q2 | C18: N/A | E18: male | F18: 2 | H18: =SUM(H117:H135) -> 427953 | I18: =SUM(I117:I135) -> 0 | J18: =SUM(J117:J135) -> 86352 | K18: =SUMIF(K117:K135,">0") -> 5255.25787 | L18: 5077.260454 | M18: 74341.52277 | N18: 71782.03307 | O18: 118658.0316 | P18: 117944.842 | Q18: 2926.632376 | R18: 2827.33752 | AA18: =SUMIF(AA117:AA135,">0") -> 120318147 | AB18: =SUMIF(AB117:AB135,">0") -> 116259301.4 | AC18: 1520077219 | AD18: 1467856959 | AE18: 2474842818 | AF18: 2459964068 | AG18: 58190431.78 | AH18: 56218343.72 | AI18: =SUM(AI117:AI135) -> 100000 | AJ18: 1203.18147 | AK18: 1162.593014 | AL18: 15200.77219 | AM18: 14678.56959 | AN18: 24748.42818 | AO18: 24599.64068 | AP18: 581.9043178 | AQ18: 562.1834372
A19: SIMD Q3 | C19: N/A | E19: male | F19: 3 | H19: =SUM(H155:H173) -> 438885 | I19: =SUM(I155:I173) -> 0 | J19: =SUM(J155:J173) -> 88556 | K19: =SUMIF(K155:K173,">0") -> 4628.603171 | L19: 4467.103241 | M19: 64177.42825 | N19: 61917.68201 | O19: 108874.9009 | P19: 108210.8509 | Q19: 2567.507311 | R19: 2479.238548 | AA19: =SUMIF(AA155:AA173,">0") -> 97820978.5 | AB19: =SUMIF(AB155:AB173,">0") -> 94408147.53 | AC19: 1232378591 | AD19: 1188941649 | AE19: 2139685921 | AF19: 2126606749 | AG19: 47137477.82 | AH19: 45516286.89 | AI19: =SUM(AI155:AI173) -> 100000 | AJ19: =AA19/$AI19 -> 978.209785 | AK19: =AB19/$AI19 -> 944.0814753 | AL19: =AC19/$AI19 -> 12323.78591 | AM19: =AD19/$AI19 -> 11889.41649 | AN19: 21396.85921 | AO19: 21266.06749 | AP19: 471.3747782 | AQ19: 455.1628689
A20: SIMD Q4 | C20: N/A | E20: male | F20: 4 | H20: =SUM(H193:H211) -> 442000 | I20: =SUM(I193:I211) -> 0 | J20: =SUM(J193:J211) -> 89185 | K20: =SUMIF(K193:K211,">0") -> 3674.174502 | L20: 3541.122021 | M20: 51383.18858 | N20: 49524.83267 | O20: 96488.78552 | P20: 95890.58573 | Q20: 2063.674317 | R20: 1990.205958 | AA20: =SUMIF(AA193:AA211,">0") -> 77966557.56 | AB20: =SUMIF(AB193:AB211,">0") -> 75139693.78 | AC20: 979811159.9 | AD20: 944316009.2 | AE20: 1887278919 | AF20: 1875547049 | AG20: 37449164.81 | AH20: 36115380.95 | AI20: =SUM(AI193:AI211) -> 100000 | AJ20: 779.6655756 | AK20: 751.3969378 | AL20: 9798.111599 | AM20: 9443.160092 | AN20: 18872.78919 | AO20: 18755.47049 | AP20: 374.4916481 | AQ20: 361.1538095
A21: SIMD Q5 (least deprived) | C21: N/A | E21: male | F21: 5 | H21: =SUM(H231:H249) -> 435668 | I21: =SUM(I231:I249) -> 0 | J21: =SUM(J231:J249) -> 87907 | K21: =SUMIF(K231:K249,">0") -> 2633.137056 | L21: 2534.349393 | M21: 36600.30385 | N21: 35227.51511 | O21: 83333.02172 | P21: 82804.87334 | Q21: 1450.099333 | R21: 1396.710212 | AA21: =SUMIF(AA231:AA249,">0") -> 57638740.12 | AB21: =SUMIF(AB231:AB249,">0") -> 55472830.45 | AC21: 722533184 | AD21: 695399539.3 | AE21: 1678619443 | AF21: 1667961257 | AG21: 27595218.72 | AH21: 26579115.89 | AI21: =SUM(AI231:AI249) -> 100000 | AJ21: =AA21/$AI21 -> 576.3874012 | AK21: 554.7283045 | AL21: 7225.33184 | AM21: 6953.995393 | AN21: 16786.19443 | AO21: 16679.61257 | AP21: 275.9521872 | AQ21: 265.7911589
B22: Female 0-4 | C22: 2.0384007 | D22: 81.468401 | E22: female | F22: ALL | H22: =SUM(H60,H98,H136,H174,H212) -> 0 | I22: 0 | J22: 0 | K22: =SUM(K60,K98,K136,K174,K212) ->  | AA22: =SUM(AA60,AA98,AA136,AA174,AA212) ->  | AI22: 25000
B23: Female 5-9 | C23: 6.9792795 | D23: 81.43928 | E23: female | F23: ALL | H23: =SUM(H61,H99,H137,H175,H213) -> 0 | I23: 0 | J23: 0 | K23: =SUM(K61,K99,K137,K175,K213) ->  | M23: =SUM(M61,M99,M137,M175,M213) ->  | AA23: =SUM(AA61,AA99,AA137,AA175,AA213) ->  | AI23: 27500
B24: Female 10-15 | C24: 12.478312 | D24: 81.94831 | E24: female | F24: ALL | H24: =SUM(H62,H100,H138,H176,H214) -> 0 | I24: 0 | J24: 0 | K24: =SUM(K62,K100,K138,K176,K214) ->  | L24: =SUM(L62,L100,L138,L176,L214) ->  | O24: =SUM(O62,O100,O138,O176,O214) ->  | P24: =SUM(P62,P100,P138,P176,P214) ->  | AA24: =SUM(AA62,AA100,AA138,AA176,AA214) ->  | AI24: 33000
A25: All quintiles | B25: Female 16-19 | C25: 17.570053 | D25: 81.10005 | E25: female | F25: ALL | H25: =SUM(H63,H101,H139,H177,H215) -> 118803 | I25: 0 | J25: 23970 | K25: 22.9373984 | L25: 22.02798242 | M25: 1434.275453 | N25: 1377.409674 | O25: 12465.29027 | P25: 12391.84192 | Q25: 22.9373984 | R25: 22.02798242 | AA25: =SUM(AA63,AA101,AA139,AA177,AA215) -> 426135.6385 | AB25: 409243.9866 | AC25: 26646260.2 | AD25: 25590025.26 | AE25: 231245008.5 | AF25: 229882676.6 | AG25: 426135.6385 | AH25: 409243.9866 | AI25: 22000 | AJ25: 19.36980175 | AK25: 18.60199939 | AL25: 1211.193645 | AM25: 1163.182966 | AN25: 10511.13675 | AO25: 10449.21257 | AP25: 19.36980175 | AQ25: 18.60199939
B26: Female 20-24 | C26: 22.077057 | D26: 81.66706 | E26: female | F26: ALL | H26: =SUM(H64,H102,H140,H178,H216) -> 182279 | I26: 0 | J26: 36779 | K26: 51.98044997 | L26: 49.91992446 | M26: 3045.53472 | N26: 2924.808524 | O26: 21506.62704 | P26: 21379.909 | Q26: 51.98044997 | R26: 49.91992446 | AA26: =SUM(AA64,AA102,AA140,AA178,AA216) -> 852520.7561 | AB26: 818728.8905 | AC26: 49949193.66 | AD26: 47969328.15 | AE26: 353188002.8 | AF26: 351107155.6 | AG26: 852520.7561 | AH26: 818728.8905 | AI26: 30000 | AJ26: 28.41735854 | AK26: 27.29096302 | AL26: 1664.973122 | AM26: 1598.977605 | AN26: 11772.93343 | AO26: 11703.57185 | AP26: 28.41735854 | AQ26: 27.29096302
B27: Female 25-29 | C27: 26.975187 | D27: 81.64519 | E27: female | F27: ALL | H27: =SUM(H65,H103,H141,H179,H217) -> 187975 | I27: 0 | J27: 37929 | K27: 84.83163015 | L27: 81.67732162 | M27: 4552.913845 | N27: 4383.622096 | O27: 25701.25489 | P27: 25553.85106 | Q27: 84.83163015 | R27: 81.67732162 | AA27: =SUM(AA65,AA103,AA141,AA179,AA217) -> 1292988.945 | AB27: 1244715.342 | AC27: 69394720.54 | AD27: 66803876.16 | AE27: 399497115.4 | AF27: 397201318.4 | AG27: 1292988.945 | AH27: 1244715.342 | AI27: 30000 | AJ27: 43.09963149 | AK27: 41.49051142 | AL27: 2313.157351 | AM27: 2226.795872 | AN27: 13316.57051 | AO27: 13240.04395 | AP27: 43.09963149 | AQ27: 41.49051142
B28: Female 30-34 | C28: 31.999905 | D28: 81.7999 | E28: female | F28: ALL | H28: =SUM(H66,H104,H142,H180,H218) -> 179608 | I28: 0 | J28: 36241 | K28: 122.8515469 | L28: 118.2793817 | M28: 5995.154875 | N28: 5772.033236 | O28: 27681.46121 | P28: 27522.61322 | Q28: 122.8515469 | R28: 118.2793817 | AA28: =SUM(AA66,AA104,AA142,AA180,AA218) -> 2147342.634 | AB28: 2067188.979 | AC28: 104790309.8 | AD28: 100878811.9 | AE28: 491095913.1 | AF28: 488273709 | AG28: 2147342.634 | AH28: 2067188.979 | AI28: 32500 | AJ28: 66.07208106 | AK28: 63.60581475 | AL28: 3224.317225 | AM28: 3103.963442 | AN28: 15110.64348 | AO28: 15023.80643 | AP28: 66.07208106 | AQ28: 63.60581475
B29: Female 35-39 | C29: 36.918118 | D29: 81.89812 | E29: female | F29: ALL | H29: =SUM(H67,H105,H143,H181,H219) -> 166485 | I29: 0 | J29: 33592 | K29: 168.2286646 | L29: 162.2496226 | M29: 7398.697006 | N29: 7135.738725 | O29: 28578.84599 | P29: 28418.09841 | Q29: 168.2286646 | R29: 162.2496226 | AA29: =SUM(AA67,AA105,AA143,AA181,AA219) -> 3512892.993 | AB29: 3388014.877 | AC29: 154497040.8 | AD29: 149004901 | AE29: 598519214.2 | AF29: 595152518.6 | AG29: 3512892.993 | AH29: 3388014.877 | AI29: 35000 | AJ29: 100.3683712 | AK29: 96.80042504 | AL29: 4414.201167 | AM29: 4257.282887 | AN29: 17100.54898 | AO29: 17004.35767 | AP29: 100.3683712 | AQ29: 96.80042504
B30: Female 40-44 | C30: 42.077438 | D30: 82.30744 | E30: female | F30: ALL | H30: =SUM(H68,H106,H144,H182,H220) -> 172709 | I30: 0 | J30: 34848 | K30: 265.8342954 | L30: 256.3749708 | M30: 10428.67994 | N30: 10057.59062 | O30: 33419.63756 | P30: 33231.51107 | Q30: 265.8342954 | R30: 256.3749708 | AA30: =SUM(AA68,AA106,AA144,AA182,AA220) -> 5446205.463 | AB30: 5252693.986 | AC30: 213654651.2 | AD30: 206063195.6 | AE30: 681457961.7 | AF30: 677624725.2 | AG30: 5446205.463 | AH30: 5252693.986 | AI30: 35000 | AJ30: 155.6058704 | AK30: 150.076971 | AL30: 6104.418606 | AM30: 5887.519874 | AN30: 19470.22748 | AO30: 19360.70643 | AP30: 155.6058704 | AQ30: 150.076971
B31: Female 45-49 | C31: 47.025772 | D31: 82.58577 | E31: female | F31: ALL | H31: =SUM(H69,H107,H145,H183,H221) -> 202829 | I31: 0 | J31: 40926 | K31: 475.6410385 | L31: 458.9096651 | M31: 16438.15334 | N31: 15859.91711 | O31: 44462.66378 | P31: 44213.54626 | Q31: 475.6410385 | R31: 458.9096651 | AA31: =SUM(AA69,AA107,AA145,AA183,AA221) -> 8291994.623 | AB31: 8000575.664 | AC31: 286571317.6 | AD31: 276499878.9 | AE31: 771783001 | AF31: 767460692.4 | AG31: 8291994.623 | AH31: 8000575.664 | AI31: 35000 | AJ31: 236.9141321 | AK31: 228.5878761 | AL31: 8187.751931 | AM31: 7899.996541 | AN31: 22050.94289 | AO31: 21927.44835 | AP31: 236.9141321 | AQ31: 228.5878761
B32: Female 50-54 | C32: 51.990826 | D32: 82.98083 | E32: female | F32: ALL | H32: =SUM(H70,H108,H146,H184,H222) -> 209262 | I32: 0 | J32: 42224 | K32: 746.7805782 | L32: 720.5359027 | M32: 22395.95253 | N32: 21608.87461 | O32: 51924.44852 | P32: 51633.5197 | Q32: 746.7805782 | R32: 720.5359027 | AA32: =SUM(AA70,AA108,AA146,AA184,AA222) -> 12639371.3 | AB32: 12195636.49 | AC32: 379054795.9 | AD32: 365747187 | AE32: 874448019.8 | AF32: 869550759.6 | AG32: 12639371.3 | AH32: 12195636.49 | AI32: 35000 | AJ32: 361.1248944 | AK32: 348.4467568 | AL32: 10830.13703 | AM32: 10449.91963 | AN32: 24984.22914 | AO32: 24844.30742 | AP32: 361.1248944 | AQ32: 348.4467568
B33: Female 55-59 | C33: 56.953041 | D33: 83.47304 | E33: female | F33: ALL | H33: =SUM(H71,H109,H147,H185,H223) -> 190084 | I33: 0 | J33: 38354 | K33: 1032.516164 | L33: 996.4200052 | M33: 26349.81148 | N33: 25428.63754 | O33: 53414.87334 | P33: 53116.14652 | Q33: 1032.516164 | R33: 996.4200052 | AA33: =SUM(AA71,AA109,AA147,AA185,AA223) -> 17878304.55 | AB33: 17254016.94 | AC33: 456254314.3 | AD33: 440322495 | AE33: 919934892.6 | AF33: 914792605.7 | AG33: 17878304.55 | AH33: 17254016.94 | AI33: 32500 | AJ33: 550.1016785 | AK33: 530.8928289 | AL33: 14038.59429 | AM33: 13548.38446 | AN33: 28305.689 | AO33: 28147.46479 | AP33: 550.1016785 | AQ33: 530.8928289
B34: Female 60-64 | C34: 61.947388 | D34: 84.16739 | E34: female | F34: ALL | H34: =SUM(H72,H110,H148,H186,H224) -> 165146 | I34: 0 | J34: 33322 | K34: 1358.118207 | L34: 1310.72075 | M34: 28819.27107 | N34: 27813.49694 | O34: 52377.01197 | P34: 52084.00699 | Q34: 1358.118207 | R34: 1310.72075 | AA34: =SUM(AA72,AA110,AA148,AA186,AA224) -> 25192000.67 | AB34: 24314510.35 | AC34: 534574304.7 | AD34: 515953958.2 | AE34: 962839226.4 | AF34: 957457177.6 | AG34: 25192000.67 | AH34: 24314510.35 | AI34: 30000 | AJ34: 839.7333558 | AK34: 810.4836782 | AL34: 17819.14349 | AM34: 17198.46527 | AN34: 32094.64088 | AO34: 31915.23925 | AP34: 839.7333558 | AQ34: 810.4836782
B35: Female 65-69 | C35: 67.063927 | D35: 85.19393 | E35: female | F35: ALL | H35: =SUM(H73,H111,H149,H187,H225) -> 164057 | I35: 0 | J35: 33103 | K35: 2066.094437 | L35: 1995.058809 | M35: 35392.2039 | N35: 34175.36338 | O35: 58973.2205 | P35: 58645.01393 | Q35: 2066.094437 | R35: 1995.058809 | AA35: =SUM(AA73,AA111,AA149,AA187,AA225) -> 35582561.02 | AB35: 34361636.16 | AC35: 609529376.9 | AD35: 588614930.4 | AE35: 1003826931 | AF35: 998244502.8 | AG35: 35582561.02 | AH35: 34361636.16 | AI35: 27500 | AJ35: 1293.91131 | AK35: 1249.514042 | AL35: 22164.70462 | AM35: 21404.17929 | AN35: 36502.79749 | AO35: 36299.8001 | AP35: 1293.91131 | AQ35: 1249.514042
B36: Female 70-74 | C36: 71.938164 | D36: 86.24816 | E36: female | F36: ALL | H36: =SUM(H74,H112,H150,H188,H226) -> 127150 | I36: 0 | J36: 25657 | K36: 2426.146547 | L36: 2343.23022 | M36: 32292.00084 | N36: 31188.38485 | O36: 51815.94224 | P36: 51527.64094 | Q36: 2426.146547 | R36: 2343.23022 | AA36: =SUM(AA74,AA112,AA150,AA188,AA226) -> 48763700.39 | AB36: 47099725.99 | AC36: 649044657.2 | AD36: 626897164.5 | AE36: 1031603609 | AF36: 1025866519 | AG36: 48763700.39 | AH36: 47099725.99 | AI36: 25000 | AJ36: 1950.548016 | AK36: 1883.989039 | AL36: 25961.78629 | AM36: 25075.88658 | AN36: 41264.14437 | AO36: 41034.66077 | AP36: 1950.548016 | AQ36: 1883.989039
B37: Female 75-79 | C37: 76.942825 | D37: 87.81283 | E37: female | F37: ALL | H37: =SUM(H75,H113,H151,H189,H227) -> 104331 | I37: 0 | J37: 21052 | K37: 3074.947456 | L37: 2967.829974 | M37: 30349.74676 | N37: 29292.49669 | O37: 48655.39333 | P37: 48381.23622 | Q37: 0 | R37: 0 | AA37: =SUM(AA75,AA113,AA151,AA189,AA227) -> 59326483.08 | AB37: 57262142.06 | AC37: 585552684.7 | AD37: 565177628.5 | AE37: 935996664.2 | AF37: 930724281.9 | AG37: 0 | AH37: 0 | AI37: 20000 | AJ37: 2966.324154 | AK37: 2863.107103 | AL37: 29277.63423 | AM37: 28258.88142 | AN37: 46799.83321 | AO37: 46536.21409 | AP37: 0 | AQ37: 0
B38: Female 80-84 | C38: 81.856712 | D38: 89.73671 | E38: female | F38: ALL | H38: =SUM(H76,H114,H152,H190,H228) -> 80217 | I38: 0 | J38: 16186 | K38: 3564.710504 | L38: 3442.240287 | M38: 24525.20114 | N38: 23682.60629 | O38: 42391.15608 | P38: 42152.31619 | Q38: 0 | R38: 0 | AA38: =SUM(AA76,AA114,AA152,AA190,AA228) -> 55779041.29 | AB38: 53864762.76 | AC38: 383759692.5 | AD38: 370589460.1 | AE38: 661963669 | AF38: 658235057.8 | AG38: 0 | AH38: 0 | AI38: 12500 | AJ38: 4462.323303 | AK38: 4309.181021 | AL38: 30700.7754 | AM38: 29647.15681 | AN38: 52957.09352 | AO38: 52658.80462 | AP38: 0 | AQ38: 0
B39: Female 85-89 | C39: 86.73082 | D39: 92.22082 | E39: female | F39: ALL | H39: =SUM(H77,H115,H153,H191,H229) -> 49691 | I39: 0 | J39: 10026 | K39: 3266.038271 | L39: 3155.995209 | M39: 14664.51184 | N39: 14170.41849 | O39: 29525.06547 | P39: 29358.67251 | Q39: 0 | R39: 0 | AA39: =SUM(AA77,AA115,AA153,AA191,AA229) -> 49939086.17 | AB39: 48260227.86 | AC39: 224226496.9 | AD39: 216688423.1 | AE39: 448983820.1 | AF39: 446454826.3 | AG39: 0 | AH39: 0 | AI39: 7500 | AJ39: 6658.544822 | AK39: 6434.697048 | AL39: 29896.86625 | AM39: 28891.78975 | AN39: 59864.50934 | AO39: 59527.31017 | AP39: 0 | AQ39: 0
B40: Female 90+ | C40: 92.779343 | D40: 96.27934 | E40: female | F40: ALL | H40: =SUM(H78,H116,H154,H192,H230) -> 29050 | I40: 0 | J40: 5862 | K40: 3064.585591 | L40: 2965.171695 | M40: 7661.454783 | N40: 7412.920343 | O40: 19930.14616 | P40: 19817.76254 | Q40: 0 | R40: 0 | AA40: =SUM(AA78,AA116,AA154,AA192,AA230) -> 54149681.9 | AB40: 52402122.45 | AC40: 135374042.3 | AD40: 131005148.9 | AE40: 348509125.9 | AF40: 346545828 | AG40: 0 | AH40: 0 | AI40: 5000 | AJ40: 10829.93638 | AK40: 10480.42449 | AL40: 27074.80846 | AM40: 26201.02978 | AN40: 69701.82517 | AO40: 69309.1656 | AP40: 0 | AQ40: 0
B41: Male 0-4 | C41: 2.0320823 | D41: 77.402082 | E41: male | F41: ALL | H41: =SUM(H79,H117,H155,H193,H231) -> 0 | I41: 0 | J41: 0 | AA41: =SUM(AA79,AA117,AA155,AA193,AA231) ->  | AI41: 25000
B42: Male 5-9 | C42: 6.9784756 | D42: 77.398476 | E42: male | F42: ALL | H42: =SUM(H80,H118,H156,H194,H232) -> 0 | I42: 0 | J42: 0 | AA42: =SUM(AA80,AA118,AA156,AA194,AA232) ->  | AI42: 27500
B43: Male 10-15 | C43: 12.471144 | D43: 77.92114 | E43: male | F43: ALL | H43: =SUM(H81,H119,H157,H195,H233) -> 0 | I43: 0 | J43: 0 | AA43: =SUM(AA81,AA119,AA157,AA195,AA233) ->  | AI43: 33000
B44: Male 16-19 | C44: 17.556318 | D44: 77.07632 | E44: male | F44: ALL | H44: =SUM(H82,H120,H158,H196,H234) -> 124418 | I44: 0 | J44: 25105 | K44: 56.98376142 | L44: 54.63845875 | M44: 3334.689833 | N44: 3197.442716 | O44: 8826.189231 | P44: 8767.271168 | Q44: 56.98376142 | R44: 54.63845875 | AA44: =SUM(AA82,AA120,AA158,AA196,AA234) -> 1013120.465 | AB44: 971436.8782 | AC44: 59287811.64 | AD44: 56848488.06 | AE44: 156551621.6 | AF44: 155506916.8 | AG44: 1013120.465 | AH44: 971436.8782 | AI44: 22000 | AJ44: 46.05093023 | AK44: 44.15622174 | AL44: 2694.900529 | AM44: 2584.022184 | AN44: 7115.9828 | AO44: 7068.496219 | AP44: 46.05093023 | AQ44: 44.15622174
B45: Male 20-24 | C45: 22.054632 | D45: 77.70463 | E45: male | F45: ALL | H45: =SUM(H83,H121,H159,H197,H235) -> 181688 | I45: 0 | J45: 36660 | K45: 117.5312197 | L45: 112.6963727 | M45: 6423.080919 | N45: 6158.856544 | O45: 15171.57336 | P45: 15070.32163 | Q45: 117.5312197 | R45: 112.6963727 | AA45: =SUM(AA83,AA121,AA159,AA197,AA235) -> 1940003.79 | AB45: 1860203.962 | AC45: 106021203.3 | AD45: 101660142.8 | AE45: 250437460.6 | AF45: 248766282.1 | AG45: 1940003.79 | AH45: 1860203.962 | AI45: 30000 | AJ45: 64.66679302 | AK45: 62.00679875 | AL45: 3534.040109 | AM45: 3388.671428 | AN45: 8347.915354 | AO45: 8292.209402 | AP45: 64.66679302 | AQ45: 62.00679875
B46: Male 25-29 | C46: 26.959763 | D46: 77.78976 | E46: male | F46: ALL | H46: =SUM(H84,H122,H160,H198,H236) -> 186149 | I46: 0 | J46: 37561 | K46: 180.069194 | L46: 173.2028785 | M46: 8972.847394 | N46: 8630.698914 | O46: 18844.70775 | P46: 18724.98493 | Q46: 180.069194 | R46: 173.2028785 | AA46: =SUM(AA84,AA122,AA160,AA198,AA236) -> 2809001.489 | AB46: 2701674.571 | AC46: 139972535.7 | AD46: 134624435.8 | AE46: 298066844.9 | AF46: 296170507.4 | AG46: 2809001.489 | AH46: 2701674.571 | AI46: 30000 | AJ46: 93.63338295 | AK46: 90.05581904 | AL46: 4665.751192 | AM46: 4487.481193 | AN46: 9935.561496 | AO46: 9872.350247 | AP46: 93.63338295 | AQ46: 90.05581904
B47: Male 30-34 | C47: 31.981522 | D47: 78.06152 | E47: male | F47: ALL | H47: =SUM(H85,H123,H161,H199,H237) -> 172305 | I47: 0 | J47: 34767 | K47: 242.7384969 | L47: 233.4855254 | M47: 10942.65095 | N47: 10525.52702 | O47: 20810.11301 | P47: 20677.89857 | Q47: 242.7384969 | R47: 233.4855254 | AA47: =SUM(AA85,AA123,AA161,AA199,AA237) -> 4444808.625 | AB47: 4275055.929 | AC47: 200371963.9 | AD47: 192719512.7 | AE47: 385911765.1 | AF47: 383456585.2 | AG47: 4444808.625 | AH47: 4275055.929 | AI47: 32500 | AJ47: 136.7633423 | AK47: 131.5401824 | AL47: 6165.291197 | AM47: 5929.831161 | AN47: 11874.20816 | AO47: 11798.66416 | AP47: 136.7633423 | AQ47: 131.5401824
B48: Male 35-39 | C48: 36.92601 | D48: 78.33601 | E48: male | F48: ALL | H48: =SUM(H86,H124,H162,H200,H238) -> 161268 | I48: 0 | J48: 32540 | K48: 321.6549809 | L48: 309.8569872 | M48: 12998.07778 | N48: 12521.32085 | O48: 22880.10876 | P48: 22738.23077 | Q48: 321.6549809 | R48: 309.8569872 | AA48: =SUM(AA86,AA124,AA162,AA200,AA238) -> 6950083.623 | AB48: 6695085.024 | AC48: 280852879.2 | AD48: 270548385.8 | AE48: 495329032.5 | AF48: 492256916.1 | AG48: 6950083.623 | AH48: 6695085.024 | AI48: 35000 | AJ48: 198.5738178 | AK48: 191.2881435 | AL48: 8024.367977 | AM48: 7729.95388 | AN48: 14152.25807 | AO48: 14064.48332 | AP48: 198.5738178 | AQ48: 191.2881435
B49: Male 40-44 | C49: 42.067703 | D49: 78.9077 | E49: male | F49: ALL | H49: =SUM(H87,H125,H163,H201,H239) -> 164929 | I49: 0 | J49: 33280 | K49: 475.9282962 | L49: 458.4671095 | M49: 17057.26871 | N49: 16431.45983 | O49: 27796.41123 | P49: 27623.90176 | Q49: 475.9282962 | R49: 458.4671095 | AA49: =SUM(AA87,AA125,AA163,AA201,AA239) -> 10240550.68 | AB49: 9865133.274 | AC49: 367021305.6 | AD49: 353566347 | AE49: 594504097.5 | AF49: 590816716.9 | AG49: 10240550.68 | AH49: 9865133.274 | AI49: 35000 | AJ49: 292.5871623 | AK49: 281.8609507 | AL49: 10486.32302 | AM49: 10101.89563 | AN49: 16985.83136 | AO49: 16880.47762 | AP49: 292.5871623 | AQ49: 281.8609507
B50: Male 45-49 | C50: 47.038155 | D50: 79.41815 | E50: male | F50: ALL | H50: =SUM(H88,H126,H164,H202,H240) -> 189422 | I50: 0 | J50: 38221 | K50: 794.7199252 | L50: 766.6263777 | M50: 24938.30728 | N50: 24056.7319 | O50: 38076.87909 | P50: 37846.38139 | Q50: 794.7199252 | R50: 766.6263777 | AA50: =SUM(AA88,AA126,AA164,AA202,AA240) -> 14891366.03 | AB50: 14365360.32 | AC50: 467290991.6 | AD50: 450784934.9 | AE50: 709212168.1 | AF50: 704921355.9 | AG50: 14891366.03 | AH50: 14365360.32 | AI50: 35000 | AJ50: 425.4676009 | AK50: 410.4388662 | AL50: 13351.17119 | AM50: 12879.56957 | AN50: 20263.2048 | AO50: 20140.61017 | AP50: 425.4676009 | AQ50: 410.4388662
B51: Male 50-54 | C51: 51.998646 | D51: 79.98865 | E51: male | F51: ALL | H51: =SUM(H89,H127,H165,H203,H241) -> 197429 | I51: 0 | J51: 39837 | K51: 1201.999936 | L51: 1159.578632 | M51: 32441.98308 | N51: 31297.03191 | O51: 47294.71013 | P51: 47008.4179 | Q51: 1201.999936 | R51: 1159.578632 | AA51: =SUM(AA89,AA127,AA165,AA203,AA241) -> 21630092.8 | AB51: 20867338.96 | AC51: 583796291.2 | AD51: 563209562 | AE51: 845753788.7 | AF51: 840636822.2 | AG51: 21630092.8 | AH51: 20867338.96 | AI51: 35000 | AJ51: 618.0026515 | AK51: 596.2096846 | AL51: 16679.89404 | AM51: 16091.70177 | AN51: 24164.39396 | AO51: 24018.19492 | AP51: 618.0026515 | AQ51: 596.2096846
B52: Male 55-59 | C52: 56.950867 | D52: 80.66087 | E52: male | F52: ALL | H52: =SUM(H90,H128,H166,H204,H242) -> 180737 | I52: 0 | J52: 36468 | K52: 1594.996474 | L52: 1539.656991 | M52: 36222.3747 | N52: 34965.61488 | O52: 51591.13693 | P52: 51282.66533 | Q52: 1594.996474 | R52: 1539.656991 | AA52: =SUM(AA90,AA128,AA166,AA204,AA242) -> 29140112 | AB52: 28128679.9 | AC52: 661772030.9 | AD52: 638802405 | AE52: 936266656.8 | AF52: 930666835.3 | AG52: 29140112 | AH52: 28128679.9 | AI52: 32500 | AJ52: 896.6188307 | AK52: 865.4978432 | AL52: 20362.21634 | AM52: 19655.45861 | AN52: 28808.20482 | AO52: 28635.90262 | AP52: 896.6188307 | AQ52: 865.4978432
B53: Male 60-64 | C53: 61.942989 | D53: 81.61299 | E53: male | F53: ALL | H53: =SUM(H91,H129,H167,H205,H243) -> 156406 | I53: 0 | J53: 31558 | K53: 1989.336561 | L53: 1920.573908 | M53: 37140.91559 | N53: 35857.11678 | O53: 53033.32073 | P53: 52716.28272 | Q53: 1989.336561 | R53: 1920.573908 | AA53: =SUM(AA91,AA129,AA167,AA205,AA243) -> 39111346.28 | AB53: 37758753.01 | AC53: 730208874.2 | AD53: 704955956.5 | AE53: 1031793596 | AF53: 1025622532 | AG53: 39111346.28 | AH53: 37758753.01 | AI53: 30000 | AJ53: 1303.711543 | AK53: 1258.6251 | AL53: 24340.29581 | AM53: 23498.53188 | AN53: 34393.11986 | AO53: 34187.41772 | AP53: 1303.711543 | AQ53: 1258.6251
B54: Male 65-69 | C54: 67.05442 | D54: 82.95442 | E54: male | F54: ALL | H54: =SUM(H92,H130,H168,H206,H244) -> 153467 | I54: 0 | J54: 30966 | K54: 2842.863826 | L54: 2745.731353 | M54: 42358.67101 | N54: 40911.39716 | O54: 62174.33177 | P54: 61803.29975 | Q54: 2842.863826 | R54: 2745.731353 | AA54: =SUM(AA92,AA130,AA168,AA206,AA244) -> 52535410.24 | AB54: 50743616.77 | AC54: 782777612.5 | AD54: 756079889.8 | AE54: 1133962873 | AF54: 1127201898 | AG54: 52535410.24 | AH54: 50743616.77 | AI54: 27500 | AJ54: 1910.378554 | AK54: 1845.222428 | AL54: 28464.64046 | AM54: 27493.81418 | AN54: 41235.01357 | AO54: 40989.15991 | AP54: 1910.378554 | AQ54: 1845.222428
B55: Male 70-74 | C55: 71.891098 | D55: 84.3411 | E55: male | F55: ALL | H55: =SUM(H93,H131,H169,H207,H245) -> 111869 | I55: 0 | J55: 22573 | K55: 2970.929394 | L55: 2870.130485 | M55: 34017.1475 | N55: 32862.9998 | O55: 53814.8044 | P55: 53493.69936 | Q55: 2970.929394 | R55: 2870.130485 | AA55: =SUM(AA93,AA131,AA169,AA207,AA245) -> 68449087.54 | AB55: 66131096.72 | AC55: 783742189.2 | AD55: 757201189.7 | AE55: 1223954580 | AF55: 1216656946 | AG55: 68449087.54 | AH55: 66131096.72 | AI55: 25000 | AJ55: 2737.963502 | AK55: 2645.243869 | AL55: 31349.68757 | AM55: 30288.04759 | AN55: 48958.18319 | AO55: 48666.27782 | AP55: 2737.963502 | AQ55: 2645.243869
B56: Male 75-79 | C56: 76.9077 | D56: 86.3577 | E56: male | F56: ALL | H56: =SUM(H94,H132,H170,H208,H246) -> 82515 | I56: 0 | J56: 16649 | K56: 3199.238814 | L56: 3083.422373 | M56: 27033.56798 | N56: 26054.91905 | O56: 47629.86304 | P56: 47330.11213 | Q56: 0 | R56: 0 | AA56: =SUM(AA94,AA132,AA170,AA208,AA246) -> 79355254.01 | AB56: 76486222.68 | AC56: 670551896.4 | AD56: 646308581.7 | AE56: 1170005852 | AF56: 1162643524 | AG56: 0 | AH56: 0 | AI56: 20000 | AJ56: 3967.7627 | AK56: 3824.311134 | AL56: 33527.59482 | AM56: 32315.42908 | AN56: 58500.29258 | AO56: 58132.17618 | AP56: 0 | AQ56: 0
B57: Male 80-84 | C57: 81.797089 | D57: 88.62709 | E57: male | F57: ALL | H57: =SUM(H95,H133,H171,H209,H247) -> 56201 | I57: 0 | J57: 11341 | K57: 3096.12538 | L57: 2985.843525 | M57: 18050.41406 | N57: 17407.47074 | O57: 38436.06303 | P57: 38194.05854 | Q57: 0 | R57: 0 | AA57: =SUM(AA95,AA133,AA171,AA209,AA247) -> 70955136.44 | AB57: 68434062.34 | AC57: 413668516.4 | AD57: 398970651.9 | AE57: 869840774.2 | AF57: 864366424 | AG57: 0 | AH57: 0 | AI57: 12500 | AJ57: 5676.410915 | AK57: 5474.724987 | AL57: 33093.48131 | AM57: 31917.65215 | AN57: 69587.26194 | AO57: 69149.31392 | AP57: 0 | AQ57: 0
B58: Male 85-89 | C58: 86.630753 | D58: 91.42075 | E58: male | F58: ALL | H58: =SUM(H96,H134,H172,H210,H248) -> 28287 | I58: 0 | J58: 5707 | K58: 2190.127702 | L58: 2113.887882 | M58: 8300.577422 | N58: 8011.628732 | O58: 22836.6917 | P58: 22692.86486 | Q58: 0 | R58: 0 | AA58: =SUM(AA96,AA134,AA172,AA210,AA248) -> 60374002.61 | AB58: 58282258.7 | AC58: 228817288.8 | AD58: 220889585.6 | AE58: 619589003.4 | AF58: 615690303.8 | AG58: 0 | AH58: 0 | AI58: 7500 | AJ58: 8049.867014 | AK58: 7770.967827 | AL58: 30508.97183 | AM58: 29451.94475 | AN58: 82611.86713 | AO58: 82092.04051 | AP58: 0 | AQ58: 0
B59: Male 90+ | C59: 92.215477 | D59: 95.51548 | E59: male | F59: ALL | H59: =SUM(H97,H135,H173,H211,H249) -> 12017 | I59: 0 | J59: 2424 | K59: 1380.319547 | L59: 1334.183391 | M59: 3174.739099 | N59: 3068.625802 | O59: 11815.7848 | P59: 11741.35147 | Q59: 0 | R59: 0 | AA59: =SUM(AA97,AA135,AA173,AA211,AA249) -> 59759657.03 | AB59: 57776016.36 | AC59: 137447390.4 | AD59: 132885011 | AE59: 503620030.1 | AF59: 500451221.9 | AG59: 0 | AH59: 0 | AI59: 5000 | AJ59: =AA59/$AI59 -> 11951.93141 | AK59: 11555.20327 | AL59: =AC59/$AI59 -> 27489.47809 | AM59: 26577.00219 | AN59: 100724.006 | AO59: 100090.2444 | AP59: 0 | AQ59: 0
B60: Female 0-4 | C60: 2.0384007 | D60: 81.468401 | E60: female | F60: 1 | G60: =HLOOKUP(Calculations!$E$2,'Prevalence Rates'!$C$3:$BC$249,'Prevalence Rates'!$BD60,FALSE) -> 0 | H60: =HLOOKUP(Calculations!$E$2,'Population 2016'!$C$3:$BC$249,'Population 2016'!BD60,FALSE) -> 0 | I60: 0 | J60: =HLOOKUP(Results!E$4,Targeting!$C$3:$F$249,Targeting!$G60,FALSE) -> 0 | K60: =IF(AND(OR(Calculations!$E$2="Orkney Health Board",Calculations!$E$2="Orkney Islands Local Authority"),$F60=1),0,IF(AND(OR(Calculations!$E$2="Shetland Health Board",Calculations!$E$2="Western Isles Health Board",Calculations!$E$2="Shetland Islands Local Authority",Calculations!$E$2="Eilean Siar Local Authority"),OR($F60=1,$F60=5)),0,new_ci(VALUE(LEFT(Options!$B$24,2)),$C60,$E60,$F60,2016,$I60,1,$H60,$G60*$H60,Options!$B$8))) ->  | L60: =IF(AND(OR(Calculations!$E$2="Orkney Health Board",Calculations!$E$2="Orkney Islands Local Authority"),$F60=1),0,IF(AND(OR(Calculations!$E$2="Shetland Health Board",Calculations!$E$2="Western Isles Health Board",Calculations!$E$2="Shetland Islands Local Authority",Calculations!$E$2="Eilean Siar Local Authority"),OR($F60=1,$F60=5)),0,new_ci(VALUE(LEFT(Options!$B$24,2)),$C60,$E60,$F60,2016,$I60+$J60,1,$H60,$G60*$H60,Options!$B$8))) ->  | M60: =IF(AND(OR(Calculations!$E$2="Orkney Health Board",Calculations!$E$2="Orkney Islands Local Authority"),$F60=1),0,IF(AND(OR(Calculations!$E$2="Shetland Health Board",Calculations!$E$2="Western Isles Health Board",Calculations!$E$2="Shetland Islands Local Authority",Calculations!$E$2="Eilean Siar Local Authority"),OR($F60=1,$F60=5)),0,new_yllv2(VALUE(LEFT(Options!$B$24,2)),$C60,$D60,$E60,$F60,2016,$I60,1,$H60,$G60*$H60,Options!$B$8))) ->  | N60: =IF(AND(OR(Calculations!$E$2="Orkney Health Board",Calculations!$E$2="Orkney Islands Local Authority"),$F60=1),0,IF(AND(OR(Calculations!$E$2="Shetland Health Board",Calculations!$E$2="Western Isles Health Board",Calculations!$E$2="Shetland Islands Local Authority",Calculations!$E$2="Eilean Siar Local Authority"),OR($F60=1,$F60=5)),0,new_yllv2(VALUE(LEFT(Options!$B$24,2)),$C60,$D60,$E60,$F60,2016,$I60+$J60,1,$H60,$G60*$H60,Options!$B$8))) ->  | O60: =IF(AND(OR(Calculations!$E$2="Orkney Health Board",Calculations!$E$2="Orkney Islands Local Authority"),$F60=1),0,IF(AND(OR(Calculations!$E$2="Shetland Health Board",Calculations!$E$2="Western Isles Health Board",Calculations!$E$2="Shetland Islands Local Authority",Calculations!$E$2="Eilean Siar Local Authority"),OR($F60=1,$F60=5)),0,hosp_count(VALUE(LEFT(Options!$B$24,2)),$C60,$E60,$F60,2016,$I60,1,$H60,$G60*$H60, Options!$B$8))) ->  | P60: =IF(AND(OR(Calculations!$E$2="Orkney Health Board",Calculations!$E$2="Orkney Islands Local Authority"),$F60=1),0,IF(AND(OR(Calculations!$E$2="Shetland Health Board",Calculations!$E$2="Western Isles Health Board",Calculations!$E$2="Shetland Islands Local Authority",Calculations!$E$2="Eilean Siar Local Authority"),OR($F60=1,$F60=5)),0,hosp_count(VALUE(LEFT(Options!$B$24,2)),$C60,$E60,$F60,2016,$I60+$J60,1,$H60,$G60*$H60, Options!$B$8))) ->  | Q60: =IF(AND(OR(Calculations!$E$2="Orkney Health Board",Calculations!$E$2="Orkney Islands Local Authority"),$F60=1),0,IF(AND(OR(Calculations!$E$2="Shetland Health Board",Calculations!$E$2="Western Isles Health Board",Calculations!$E$2="Shetland Islands Local Authority",Calculations!$E$2="Eilean Siar Local Authority"),OR($F60=1,$F60=5)),0,prem_mort(VALUE(LEFT(Options!$B$24,2)),$C60,$E60,$F60,2016,$I60,1,$H60,$G60*$H60,Options!$B$8))) ->  | R60: =IF(AND(OR(Calculations!$E$2="Orkney Health Board",Calculations!$E$2="Orkney Islands Local Authority"),$F60=1),0,IF(AND(OR(Calculations!$E$2="Shetland Health Board",Calculations!$E$2="Western Isles Health Board",Calculations!$E$2="Shetland Islands Local Authority",Calculations!$E$2="Eilean Siar Local Authority"),OR($F60=1,$F60=5)),0,prem_mort(VALUE(LEFT(Options!$B$24,2)),$C60,$E60,$F60,2016,$I60+$J60,1,$H60,$G60*$H60,Options!$B$8))) ->  | S60: =K60*100000/$H60 ->  | AA60: =S60*$AI60 ->  | AB60: =T60*$AI60 ->  | AC60: =U60*$AI60 ->  | AD60: =V60*$AI60 ->  | AE60: =W60*$AI60 ->  | AF60: =X60*$AI60 ->  | AG60: =Y60*$AI60 ->  | AH60: =Z60*$AI60 ->  | AI60: 5000
B61: Female 5-9 | C61: 6.9792795 | D61: 81.43928 | E61: female | F61: 1 | G61: =HLOOKUP(Calculations!$E$2,'Prevalence Rates'!$C$3:$BC$249,'Prevalence Rates'!$BD61,FALSE) -> 0 | H61: =HLOOKUP(Calculations!$E$2,'Population 2016'!$C$3:$BC$249,'Population 2016'!BD61,FALSE) -> 0 | I61: 0 | J61: =HLOOKUP(Results!E$4,Targeting!$C$3:$F$249,Targeting!$G61,FALSE) -> 0 | K61: =IF(AND(OR(Calculations!$E$2="Orkney Health Board",Calculations!$E$2="Orkney Islands Local Authority"),$F61=1),0,IF(AND(OR(Calculations!$E$2="Shetland Health Board",Calculations!$E$2="Western Isles Health Board",Calculations!$E$2="Shetland Islands Local Authority",Calculations!$E$2="Eilean Siar Local Authority"),OR($F61=1,$F61=5)),0,new_ci(VALUE(LEFT(Options!$B$24,2)),$C61,$E61,$F61,2016,$I61,1,$H61,$G61*$H61,Options!$B$8))) ->  | L61: =IF(AND(OR(Calculations!$E$2="Orkney Health Board",Calculations!$E$2="Orkney Islands Local Authority"),$F61=1),0,IF(AND(OR(Calculations!$E$2="Shetland Health Board",Calculations!$E$2="Western Isles Health Board",Calculations!$E$2="Shetland Islands Local Authority",Calculations!$E$2="Eilean Siar Local Authority"),OR($F61=1,$F61=5)),0,new_ci(VALUE(LEFT(Options!$B$24,2)),$C61,$E61,$F61,2016,$I61+$J61,1,$H61,$G61*$H61,Options!$B$8))) ->  | M61: =IF(AND(OR(Calculations!$E$2="Orkney Health Board",Calculations!$E$2="Orkney Islands Local Authority"),$F61=1),0,IF(AND(OR(Calculations!$E$2="Shetland Health Board",Calculations!$E$2="Western Isles Health Board",Calculations!$E$2="Shetland Islands Local Authority",Calculations!$E$2="Eilean Siar Local Authority"),OR($F61=1,$F61=5)),0,new_yllv2(VALUE(LEFT(Options!$B$24,2)),$C61,$D61,$E61,$F61,2016,$I61,1,$H61,$G61*$H61,Options!$B$8))) ->  | N61: =IF(AND(OR(Calculations!$E$2="Orkney Health Board",Calculations!$E$2="Orkney Islands Local Authority"),$F61=1),0,IF(AND(OR(Calculations!$E$2="Shetland Health Board",Calculations!$E$2="Western Isles Health Board",Calculations!$E$2="Shetland Islands Local Authority",Calculations!$E$2="Eilean Siar Local Authority"),OR($F61=1,$F61=5)),0,new_yllv2(VALUE(LEFT(Options!$B$24,2)),$C61,$D61,$E61,$F61,2016,$I61+$J61,1,$H61,$G61*$H61,Options!$B$8))) ->  | O61: =IF(AND(OR(Calculations!$E$2="Orkney Health Board",Calculations!$E$2="Orkney Islands Local Authority"),$F61=1),0,IF(AND(OR(Calculations!$E$2="Shetland Health Board",Calculations!$E$2="Western Isles Health Board",Calculations!$E$2="Shetland Islands Local Authority",Calculations!$E$2="Eilean Siar Local Authority"),OR($F61=1,$F61=5)),0,hosp_count(VALUE(LEFT(Options!$B$24,2)),$C61,$E61,$F61,2016,$I61,1,$H61,$G61*$H61, Options!$B$8))) ->  | P61: =IF(AND(OR(Calculations!$E$2="Orkney Health Board",Calculations!$E$2="Orkney Islands Local Authority"),$F61=1),0,IF(AND(OR(Calculations!$E$2="Shetland Health Board",Calculations!$E$2="Western Isles Health Board",Calculations!$E$2="Shetland Islands Local Authority",Calculations!$E$2="Eilean Siar Local Authority"),OR($F61=1,$F61=5)),0,hosp_count(VALUE(LEFT(Options!$B$24,2)),$C61,$E61,$F61,2016,$I61+$J61,1,$H61,$G61*$H61, Options!$B$8))) ->  | Q61: =IF(AND(OR(Calculations!$E$2="Orkney Health Board",Calculations!$E$2="Orkney Islands Local Authority"),$F61=1),0,IF(AND(OR(Calculations!$E$2="Shetland Health Board",Calculations!$E$2="Western Isles Health Board",Calculations!$E$2="Shetland Islands Local Authority",Calculations!$E$2="Eilean Siar Local Authority"),OR($F61=1,$F61=5)),0,prem_mort(VALUE(LEFT(Options!$B$24,2)),$C61,$E61,$F61,2016,$I61,1,$H61,$G61*$H61,Options!$B$8))) ->  | R61: =IF(AND(OR(Calculations!$E$2="Orkney Health Board",Calculations!$E$2="Orkney Islands Local Authority"),$F61=1),0,IF(AND(OR(Calculations!$E$2="Shetland Health Board",Calculations!$E$2="Western Isles Health Board",Calculations!$E$2="Shetland Islands Local Authority",Calculations!$E$2="Eilean Siar Local Authority"),OR($F61=1,$F61=5)),0,prem_mort(VALUE(LEFT(Options!$B$24,2)),$C61,$E61,$F61,2016,$I61+$J61,1,$H61,$G61*$H61,Options!$B$8))) ->  | S61: =K61*100000/$H61 ->  | T61: =L61*100000/$H61 ->  | U61: =M61*100000/$H61 ->  | V61: =N61*100000/$H61 ->  | W61: =O61*100000/$H61 ->  | X61: =P61*100000/$H61 ->  | Y61: =Q61*100000/$H61 ->  | Z61: =R61*100000/$H61 ->  | AA61: =S61*$AI61 ->  | AB61: =T61*$AI61 ->  | AC61: =U61*$AI61 ->  | AI61: 5500
B62: Female 10-15 | C62: 12.478312 | D62: 81.94831 | E62: female | F62: 1 | G62: =HLOOKUP(Calculations!$E$2,'Prevalence Rates'!$C$3:$BC$249,'Prevalence Rates'!$BD62,FALSE) -> 0 | H62: =HLOOKUP(Calculations!$E$2,'Population 2016'!$C$3:$BC$249,'Population 2016'!BD62,FALSE) -> 0 | I62: 0 | J62: =HLOOKUP(Results!E$4,Targeting!$C$3:$F$249,Targeting!$G62,FALSE) -> 0 | K62: =IF(AND(OR(Calculations!$E$2="Orkney Health Board",Calculations!$E$2="Orkney Islands Local Authority"),$F62=1),0,IF(AND(OR(Calculations!$E$2="Shetland Health Board",Calculations!$E$2="Western Isles Health Board",Calculations!$E$2="Shetland Islands Local Authority",Calculations!$E$2="Eilean Siar Local Authority"),OR($F62=1,$F62=5)),0,new_ci(VALUE(LEFT(Options!$B$24,2)),$C62,$E62,$F62,2016,$I62,1,$H62,$G62*$H62,Options!$B$8))) ->  | L62: =IF(AND(OR(Calculations!$E$2="Orkney Health Board",Calculations!$E$2="Orkney Islands Local Authority"),$F62=1),0,IF(AND(OR(Calculations!$E$2="Shetland Health Board",Calculations!$E$2="Western Isles Health Board",Calculations!$E$2="Shetland Islands Local Authority",Calculations!$E$2="Eilean Siar Local Authority"),OR($F62=1,$F62=5)),0,new_ci(VALUE(LEFT(Options!$B$24,2)),$C62,$E62,$F62,2016,$I62+$J62,1,$H62,$G62*$H62,Options!$B$8))) ->  | M62: =IF(AND(OR(Calculations!$E$2="Orkney Health Board",Calculations!$E$2="Orkney Islands Local Authority"),$F62=1),0,IF(AND(OR(Calculations!$E$2="Shetland Health Board",Calculations!$E$2="Western Isles Health Board",Calculations!$E$2="Shetland Islands Local Authority",Calculations!$E$2="Eilean Siar Local Authority"),OR($F62=1,$F62=5)),0,new_yllv2(VALUE(LEFT(Options!$B$24,2)),$C62,$D62,$E62,$F62,2016,$I62,1,$H62,$G62*$H62,Options!$B$8))) ->  | N62: =IF(AND(OR(Calculations!$E$2="Orkney Health Board",Calculations!$E$2="Orkney Islands Local Authority"),$F62=1),0,IF(AND(OR(Calculations!$E$2="Shetland Health Board",Calculations!$E$2="Western Isles Health Board",Calculations!$E$2="Shetland Islands Local Authority",Calculations!$E$2="Eilean Siar Local Authority"),OR($F62=1,$F62=5)),0,new_yllv2(VALUE(LEFT(Options!$B$24,2)),$C62,$D62,$E62,$F62,2016,$I62+$J62,1,$H62,$G62*$H62,Options!$B$8))) ->  | O62: =IF(AND(OR(Calculations!$E$2="Orkney Health Board",Calculations!$E$2="Orkney Islands Local Authority"),$F62=1),0,IF(AND(OR(Calculations!$E$2="Shetland Health Board",Calculations!$E$2="Western Isles Health Board",Calculations!$E$2="Shetland Islands Local Authority",Calculations!$E$2="Eilean Siar Local Authority"),OR($F62=1,$F62=5)),0,hosp_count(VALUE(LEFT(Options!$B$24,2)),$C62,$E62,$F62,2016,$I62,1,$H62,$G62*$H62, Options!$B$8))) ->  | P62: =IF(AND(OR(Calculations!$E$2="Orkney Health Board",Calculations!$E$2="Orkney Islands Local Authority"),$F62=1),0,IF(AND(OR(Calculations!$E$2="Shetland Health Board",Calculations!$E$2="Western Isles Health Board",Calculations!$E$2="Shetland Islands Local Authority",Calculations!$E$2="Eilean Siar Local Authority"),OR($F62=1,$F62=5)),0,hosp_count(VALUE(LEFT(Options!$B$24,2)),$C62,$E62,$F62,2016,$I62+$J62,1,$H62,$G62*$H62, Options!$B$8))) ->  | Q62: =IF(AND(OR(Calculations!$E$2="Orkney Health Board",Calculations!$E$2="Orkney Islands Local Authority"),$F62=1),0,IF(AND(OR(Calculations!$E$2="Shetland Health Board",Calculations!$E$2="Western Isles Health Board",Calculations!$E$2="Shetland Islands Local Authority",Calculations!$E$2="Eilean Siar Local Authority"),OR($F62=1,$F62=5)),0,prem_mort(VALUE(LEFT(Options!$B$24,2)),$C62,$E62,$F62,2016,$I62,1,$H62,$G62*$H62,Options!$B$8))) ->  | R62: =IF(AND(OR(Calculations!$E$2="Orkney Health Board",Calculations!$E$2="Orkney Islands Local Authority"),$F62=1),0,IF(AND(OR(Calculations!$E$2="Shetland Health Board",Calculations!$E$2="Western Isles Health Board",Calculations!$E$2="Shetland Islands Local Authority",Calculations!$E$2="Eilean Siar Local Authority"),OR($F62=1,$F62=5)),0,prem_mort(VALUE(LEFT(Options!$B$24,2)),$C62,$E62,$F62,2016,$I62+$J62,1,$H62,$G62*$H62,Options!$B$8))) ->  | AI62: 6600
A63: SIMD Q1 (most deprived) | B63: Female 16-19 | C63: 17.570053 | D63: 81.10005 | E63: female | F63: 1 | G63: =HLOOKUP(Calculations!$E$2,'Prevalence Rates'!$C$3:$BC$249,'Prevalence Rates'!$BD63,FALSE) -> 0.2151732402 | H63: =HLOOKUP(Calculations!$E$2,'Population 2016'!$C$3:$BC$249,'Population 2016'!BD63,FALSE) -> 24142 | I63: 0 | J63: =HLOOKUP(Results!E$4,Targeting!$C$3:$F$249,Targeting!$G63,FALSE) -> 4871 | K63: =IF(AND(OR(Calculations!$E$2="Orkney Health Board",Calculations!$E$2="Orkney Islands Local Authority"),$F63=1),0,IF(AND(OR(Calculations!$E$2="Shetland Health Board",Calculations!$E$2="Western Isles Health Board",Calculations!$E$2="Shetland Islands Local Authority",Calculations!$E$2="Eilean Siar Local Authority"),OR($F63=1,$F63=5)),0,new_ci(VALUE(LEFT(Options!$B$24,2)),$C63,$E63,$F63,2016,$I63,1,$H63,$G63*$H63,Options!$B$8))) -> 7.677610357 | L63: =IF(AND(OR(Calculations!$E$2="Orkney Health Board",Calculations!$E$2="Orkney Islands Local Authority"),$F63=1),0,IF(AND(OR(Calculations!$E$2="Shetland Health Board",Calculations!$E$2="Western Isles Health Board",Calculations!$E$2="Shetland Islands Local Authority",Calculations!$E$2="Eilean Siar Local Authority"),OR($F63=1,$F63=5)),0,new_ci(VALUE(LEFT(Options!$B$24,2)),$C63,$E63,$F63,2016,$I63+$J63,1,$H63,$G63*$H63,Options!$B$8))) -> 7.382445292 | M63: =IF(AND(OR(Calculations!$E$2="Orkney Health Board",Calculations!$E$2="Orkney Islands Local Authority"),$F63=1),0,IF(AND(OR(Calculations!$E$2="Shetland Health Board",Calculations!$E$2="Western Isles Health Board",Calculations!$E$2="Shetland Islands Local Authority",Calculations!$E$2="Eilean Siar Local Authority"),OR($F63=1,$F63=5)),0,new_yllv2(VALUE(LEFT(Options!$B$24,2)),$C63,$D63,$E63,$F63,2016,$I63,1,$H63,$G63*$H63,Options!$B$8))) -> 480.0809526 | N63: =IF(AND(OR(Calculations!$E$2="Orkney Health Board",Calculations!$E$2="Orkney Islands Local Authority"),$F63=1),0,IF(AND(OR(Calculations!$E$2="Shetland Health Board",Calculations!$E$2="Western Isles Health Board",Calculations!$E$2="Shetland Islands Local Authority",Calculations!$E$2="Eilean Siar Local Authority"),OR($F63=1,$F63=5)),0,new_yllv2(VALUE(LEFT(Options!$B$24,2)),$C63,$D63,$E63,$F63,2016,$I63+$J63,1,$H63,$G63*$H63,Options!$B$8))) -> 461.624282 | O63: =IF(AND(OR(Calculations!$E$2="Orkney Health Board",Calculations!$E$2="Orkney Islands Local Authority"),$F63=1),0,IF(AND(OR(Calculations!$E$2="Shetland Health Board",Calculations!$E$2="Western Isles Health Board",Calculations!$E$2="Shetland Islands Local Authority",Calculations!$E$2="Eilean Siar Local Authority"),OR($F63=1,$F63=5)),0,hosp_count(VALUE(LEFT(Options!$B$24,2)),$C63,$E63,$F63,2016,$I63,1,$H63,$G63*$H63, Options!$B$8))) -> 3441.218007 | P63: =IF(AND(OR(Calculations!$E$2="Orkney Health Board",Calculations!$E$2="Orkney Islands Local Authority"),$F63=1),0,IF(AND(OR(Calculations!$E$2="Shetland Health Board",Calculations!$E$2="Western Isles Health Board",Calculations!$E$2="Shetland Islands Local Authority",Calculations!$E$2="Eilean Siar Local Authority"),OR($F63=1,$F63=5)),0,hosp_count(VALUE(LEFT(Options!$B$24,2)),$C63,$E63,$F63,2016,$I63+$J63,1,$H63,$G63*$H63, Options!$B$8))) -> 3421.233481 | Q63: =IF(AND(OR(Calculations!$E$2="Orkney Health Board",Calculations!$E$2="Orkney Islands Local Authority"),$F63=1),0,IF(AND(OR(Calculations!$E$2="Shetland Health Board",Calculations!$E$2="Western Isles Health Board",Calculations!$E$2="Shetland Islands Local Authority",Calculations!$E$2="Eilean Siar Local Authority"),OR($F63=1,$F63=5)),0,prem_mort(VALUE(LEFT(Options!$B$24,2)),$C63,$E63,$F63,2016,$I63,1,$H63,$G63*$H63,Options!$B$8))) -> 7.677610357 | R63: =IF(AND(OR(Calculations!$E$2="Orkney Health Board",Calculations!$E$2="Orkney Islands Local Authority"),$F63=1),0,IF(AND(OR(Calculations!$E$2="Shetland Health Board",Calculations!$E$2="Western Isles Health Board",Calculations!$E$2="Shetland Islands Local Authority",Calculations!$E$2="Eilean Siar Local Authority"),OR($F63=1,$F63=5)),0,prem_mort(VALUE(LEFT(Options!$B$24,2)),$C63,$E63,$F63,2016,$I63+$J63,1,$H63,$G63*$H63,Options!$B$8))) -> 7.382445292 | S63: 31.80188202 | T63: 30.57926142 | U63: 1988.571587 | V63: 1912.121125 | W63: 14254.07177 | X63: 14171.29269 | Y63: 31.80188202 | Z63: 30.57926142 | AA63: =S63*$AI63 -> 139928.2809 | AB63: 134548.7503 | AC63: 8749714.983 | AD63: 8413332.95 | AE63: 62717915.79 | AF63: 62353687.83 | AG63: 139928.2809 | AH63: =Z63*$AI63 -> 134548.7503 | AI63: 4400
B64: Female 20-24 | C64: 22.077057 | D64: 81.66706 | E64: female | F64: 1 | G64: =HLOOKUP(Calculations!$E$2,'Prevalence Rates'!$C$3:$BC$249,'Prevalence Rates'!$BD64,FALSE) -> 0.2151732402 | H64: =HLOOKUP(Calculations!$E$2,'Population 2016'!$C$3:$BC$249,'Population 2016'!BD64,FALSE) -> 37624 | I64: 0 | J64: =HLOOKUP(Results!E$4,Targeting!$C$3:$F$249,Targeting!$G64,FALSE) -> 7592 | K64: =IF(AND(OR(Calculations!$E$2="Orkney Health Board",Calculations!$E$2="Orkney Islands Local Authority"),$F64=1),0,IF(AND(OR(Calculations!$E$2="Shetland Health Board",Calculations!$E$2="Western Isles Health Board",Calculations!$E$2="Shetland Islands Local Authority",Calculations!$E$2="Eilean Siar Local Authority"),OR($F64=1,$F64=5)),0,new_ci(VALUE(LEFT(Options!$B$24,2)),$C64,$E64,$F64,2016,$I64,1,$H64,$G64*$H64,Options!$B$8))) -> 17.55357696 | L64: =IF(AND(OR(Calculations!$E$2="Orkney Health Board",Calculations!$E$2="Orkney Islands Local Authority"),$F64=1),0,IF(AND(OR(Calculations!$E$2="Shetland Health Board",Calculations!$E$2="Western Isles Health Board",Calculations!$E$2="Shetland Islands Local Authority",Calculations!$E$2="Eilean Siar Local Authority"),OR($F64=1,$F64=5)),0,new_ci(VALUE(LEFT(Options!$B$24,2)),$C64,$E64,$F64,2016,$I64+$J64,1,$H64,$G64*$H64,Options!$B$8))) -> 16.87874838 | M64: =IF(AND(OR(Calculations!$E$2="Orkney Health Board",Calculations!$E$2="Orkney Islands Local Authority"),$F64=1),0,IF(AND(OR(Calculations!$E$2="Shetland Health Board",Calculations!$E$2="Western Isles Health Board",Calculations!$E$2="Shetland Islands Local Authority",Calculations!$E$2="Eilean Siar Local Authority"),OR($F64=1,$F64=5)),0,new_yllv2(VALUE(LEFT(Options!$B$24,2)),$C64,$D64,$E64,$F64,2016,$I64,1,$H64,$G64*$H64,Options!$B$8))) -> 1028.464127 | N64: =IF(AND(OR(Calculations!$E$2="Orkney Health Board",Calculations!$E$2="Orkney Islands Local Authority"),$F64=1),0,IF(AND(OR(Calculations!$E$2="Shetland Health Board",Calculations!$E$2="Western Isles Health Board",Calculations!$E$2="Shetland Islands Local Authority",Calculations!$E$2="Eilean Siar Local Authority"),OR($F64=1,$F64=5)),0,new_yllv2(VALUE(LEFT(Options!$B$24,2)),$C64,$D64,$E64,$F64,2016,$I64+$J64,1,$H64,$G64*$H64,Options!$B$8))) -> 988.9259181 | O64: =IF(AND(OR(Calculations!$E$2="Orkney Health Board",Calculations!$E$2="Orkney Islands Local Authority"),$F64=1),0,IF(AND(OR(Calculations!$E$2="Shetland Health Board",Calculations!$E$2="Western Isles Health Board",Calculations!$E$2="Shetland Islands Local Authority",Calculations!$E$2="Eilean Siar Local Authority"),OR($F64=1,$F64=5)),0,hosp_count(VALUE(LEFT(Options!$B$24,2)),$C64,$E64,$F64,2016,$I64,1,$H64,$G64*$H64, Options!$B$8))) -> 6006.741035 | P64: =IF(AND(OR(Calculations!$E$2="Orkney Health Board",Calculations!$E$2="Orkney Islands Local Authority"),$F64=1),0,IF(AND(OR(Calculations!$E$2="Shetland Health Board",Calculations!$E$2="Western Isles Health Board",Calculations!$E$2="Shetland Islands Local Authority",Calculations!$E$2="Eilean Siar Local Authority"),OR($F64=1,$F64=5)),0,hosp_count(VALUE(LEFT(Options!$B$24,2)),$C64,$E64,$F64,2016,$I64+$J64,1,$H64,$G64*$H64, Options!$B$8))) -> 5971.853769 | Q64: =IF(AND(OR(Calculations!$E$2="Orkney Health Board",Calculations!$E$2="Orkney Islands Local Authority"),$F64=1),0,IF(AND(OR(Calculations!$E$2="Shetland Health Board",Calculations!$E$2="Western Isles Health Board",Calculations!$E$2="Shetland Islands Local Authority",Calculations!$E$2="Eilean Siar Local Authority"),OR($F64=1,$F64=5)),0,prem_mort(VALUE(LEFT(Options!$B$24,2)),$C64,$E64,$F64,2016,$I64,1,$H64,$G64*$H64,Options!$B$8))) -> 17.55357696 | R64: =IF(AND(OR(Calculations!$E$2="Orkney Health Board",Calculations!$E$2="Orkney Islands Local Authority"),$F64=1),0,IF(AND(OR(Calculations!$E$2="Shetland Health Board",Calculations!$E$2="Western Isles Health Board",Calculations!$E$2="Shetland Islands Local Authority",Calculations!$E$2="Eilean Siar Local Authority"),OR($F64=1,$F64=5)),0,prem_mort(VALUE(LEFT(Options!$B$24,2)),$C64,$E64,$F64,2016,$I64+$J64,1,$H64,$G64*$H64,Options!$B$8))) -> 16.87874838 | S64: 46.65526516 | T64: 44.86165314 | U64: 2733.532126 | V64: 2628.444392 | W64: 15965.18455 | X64: 15872.45846 | Y64: 46.65526516 | Z64: 44.86165314 | AA64: 279931.5909 | AB64: 269169.9188 | AC64: 16401192.75 | AD64: 15770666.35 | AE64: 95791107.3 | AF64: 95234750.74 | AG64: 279931.5909 | AH64: 269169.9188 | AI64: 6000
B65: Female 25-29 | C65: 26.975187 | D65: 81.64519 | E65: female | F65: 1 | G65: =HLOOKUP(Calculations!$E$2,'Prevalence Rates'!$C$3:$BC$249,'Prevalence Rates'!$BD65,FALSE) -> 0.2854121047 | H65: =HLOOKUP(Calculations!$E$2,'Population 2016'!$C$3:$BC$249,'Population 2016'!BD65,FALSE) -> 45129 | I65: 0 | J65: =HLOOKUP(Results!E$4,Targeting!$C$3:$F$249,Targeting!$G65,FALSE) -> 9106 | K65: =IF(AND(OR(Calculations!$E$2="Orkney Health Board",Calculations!$E$2="Orkney Islands Local Authority"),$F65=1),0,IF(AND(OR(Calculations!$E$2="Shetland Health Board",Calculations!$E$2="Western Isles Health Board",Calculations!$E$2="Shetland Islands Local Authority",Calculations!$E$2="Eilean Siar Local Authority"),OR($F65=1,$F65=5)),0,new_ci(VALUE(LEFT(Options!$B$24,2)),$C65,$E65,$F65,2016,$I65,1,$H65,$G65*$H65,Options!$B$8))) -> 31.93220861 | L65: =IF(AND(OR(Calculations!$E$2="Orkney Health Board",Calculations!$E$2="Orkney Islands Local Authority"),$F65=1),0,IF(AND(OR(Calculations!$E$2="Shetland Health Board",Calculations!$E$2="Western Isles Health Board",Calculations!$E$2="Shetland Islands Local Authority",Calculations!$E$2="Eilean Siar Local Authority"),OR($F65=1,$F65=5)),0,new_ci(VALUE(LEFT(Options!$B$24,2)),$C65,$E65,$F65,2016,$I65+$J65,1,$H65,$G65*$H65,Options!$B$8))) -> 30.76044216 | M65: =IF(AND(OR(Calculations!$E$2="Orkney Health Board",Calculations!$E$2="Orkney Islands Local Authority"),$F65=1),0,IF(AND(OR(Calculations!$E$2="Shetland Health Board",Calculations!$E$2="Western Isles Health Board",Calculations!$E$2="Shetland Islands Local Authority",Calculations!$E$2="Eilean Siar Local Authority"),OR($F65=1,$F65=5)),0,new_yllv2(VALUE(LEFT(Options!$B$24,2)),$C65,$D65,$E65,$F65,2016,$I65,1,$H65,$G65*$H65,Options!$B$8))) -> 1713.801732 | N65: =IF(AND(OR(Calculations!$E$2="Orkney Health Board",Calculations!$E$2="Orkney Islands Local Authority"),$F65=1),0,IF(AND(OR(Calculations!$E$2="Shetland Health Board",Calculations!$E$2="Western Isles Health Board",Calculations!$E$2="Shetland Islands Local Authority",Calculations!$E$2="Eilean Siar Local Authority"),OR($F65=1,$F65=5)),0,new_yllv2(VALUE(LEFT(Options!$B$24,2)),$C65,$D65,$E65,$F65,2016,$I65+$J65,1,$H65,$G65*$H65,Options!$B$8))) -> 1650.913023 | O65: =IF(AND(OR(Calculations!$E$2="Orkney Health Board",Calculations!$E$2="Orkney Islands Local Authority"),$F65=1),0,IF(AND(OR(Calculations!$E$2="Shetland Health Board",Calculations!$E$2="Western Isles Health Board",Calculations!$E$2="Shetland Islands Local Authority",Calculations!$E$2="Eilean Siar Local Authority"),OR($F65=1,$F65=5)),0,hosp_count(VALUE(LEFT(Options!$B$24,2)),$C65,$E65,$F65,2016,$I65,1,$H65,$G65*$H65, Options!$B$8))) -> 8149.619987 | P65: =IF(AND(OR(Calculations!$E$2="Orkney Health Board",Calculations!$E$2="Orkney Islands Local Authority"),$F65=1),0,IF(AND(OR(Calculations!$E$2="Shetland Health Board",Calculations!$E$2="Western Isles Health Board",Calculations!$E$2="Shetland Islands Local Authority",Calculations!$E$2="Eilean Siar Local Authority"),OR($F65=1,$F65=5)),0,hosp_count(VALUE(LEFT(Options!$B$24,2)),$C65,$E65,$F65,2016,$I65+$J65,1,$H65,$G65*$H65, Options!$B$8))) -> 8103.235759 | Q65: =IF(AND(OR(Calculations!$E$2="Orkney Health Board",Calculations!$E$2="Orkney Islands Local Authority"),$F65=1),0,IF(AND(OR(Calculations!$E$2="Shetland Health Board",Calculations!$E$2="Western Isles Health Board",Calculations!$E$2="Shetland Islands Local Authority",Calculations!$E$2="Eilean Siar Local Authority"),OR($F65=1,$F65=5)),0,prem_mort(VALUE(LEFT(Options!$B$24,2)),$C65,$E65,$F65,2016,$I65,1,$H65,$G65*$H65,Options!$B$8))) -> 31.93220861 | R65: =IF(AND(OR(Calculations!$E$2="Orkney Health Board",Calculations!$E$2="Orkney Islands Local Authority"),$F65=1),0,IF(AND(OR(Calculations!$E$2="Shetland Health Board",Calculations!$E$2="Western Isles Health Board",Calculations!$E$2="Shetland Islands Local Authority",Calculations!$E$2="Eilean Siar Local Authority"),OR($F65=1,$F65=5)),0,prem_mort(VALUE(LEFT(Options!$B$24,2)),$C65,$E65,$F65,2016,$I65+$J65,1,$H65,$G65*$H65,Options!$B$8))) -> 30.76044216 | S65: 70.75762506 | T65: 68.16114286 | U65: 3797.561949 | V65: 3658.208742 | W65: 18058.49894 | X65: 17955.71752 | Y65: 70.75762506 | Z65: 68.16114286 | AA65: 424545.7504 | AB65: 408966.8571 | AC65: 22785371.7 | AD65: 21949252.45 | AE65: 108350993.6 | AF65: 107734305.1 | AG65: 424545.7504 | AH65: 408966.8571 | AI65: 6000
B66: Female 30-34 | C66: 31.999905 | D66: 81.7999 | E66: female | F66: 1 | G66: =HLOOKUP(Calculations!$E$2,'Prevalence Rates'!$C$3:$BC$249,'Prevalence Rates'!$BD66,FALSE) -> 0.2854121047 | H66: =HLOOKUP(Calculations!$E$2,'Population 2016'!$C$3:$BC$249,'Population 2016'!BD66,FALSE) -> 41240 | I66: 0 | J66: =HLOOKUP(Results!E$4,Targeting!$C$3:$F$249,Targeting!$G66,FALSE) -> 8321 | K66: =IF(AND(OR(Calculations!$E$2="Orkney Health Board",Calculations!$E$2="Orkney Islands Local Authority"),$F66=1),0,IF(AND(OR(Calculations!$E$2="Shetland Health Board",Calculations!$E$2="Western Isles Health Board",Calculations!$E$2="Shetland Islands Local Authority",Calculations!$E$2="Eilean Siar Local Authority"),OR($F66=1,$F66=5)),0,new_ci(VALUE(LEFT(Options!$B$24,2)),$C66,$E66,$F66,2016,$I66,1,$H66,$G66*$H66,Options!$B$8))) -> 44.73106569 | L66: =IF(AND(OR(Calculations!$E$2="Orkney Health Board",Calculations!$E$2="Orkney Islands Local Authority"),$F66=1),0,IF(AND(OR(Calculations!$E$2="Shetland Health Board",Calculations!$E$2="Western Isles Health Board",Calculations!$E$2="Shetland Islands Local Authority",Calculations!$E$2="Eilean Siar Local Authority"),OR($F66=1,$F66=5)),0,new_ci(VALUE(LEFT(Options!$B$24,2)),$C66,$E66,$F66,2016,$I66+$J66,1,$H66,$G66*$H66,Options!$B$8))) -> 43.09020943 | M66: =IF(AND(OR(Calculations!$E$2="Orkney Health Board",Calculations!$E$2="Orkney Islands Local Authority"),$F66=1),0,IF(AND(OR(Calculations!$E$2="Shetland Health Board",Calculations!$E$2="Western Isles Health Board",Calculations!$E$2="Shetland Islands Local Authority",Calculations!$E$2="Eilean Siar Local Authority"),OR($F66=1,$F66=5)),0,new_yllv2(VALUE(LEFT(Options!$B$24,2)),$C66,$D66,$E66,$F66,2016,$I66,1,$H66,$G66*$H66,Options!$B$8))) -> 2182.875782 | N66: =IF(AND(OR(Calculations!$E$2="Orkney Health Board",Calculations!$E$2="Orkney Islands Local Authority"),$F66=1),0,IF(AND(OR(Calculations!$E$2="Shetland Health Board",Calculations!$E$2="Western Isles Health Board",Calculations!$E$2="Shetland Islands Local Authority",Calculations!$E$2="Eilean Siar Local Authority"),OR($F66=1,$F66=5)),0,new_yllv2(VALUE(LEFT(Options!$B$24,2)),$C66,$D66,$E66,$F66,2016,$I66+$J66,1,$H66,$G66*$H66,Options!$B$8))) -> 2102.802005 | O66: =IF(AND(OR(Calculations!$E$2="Orkney Health Board",Calculations!$E$2="Orkney Islands Local Authority"),$F66=1),0,IF(AND(OR(Calculations!$E$2="Shetland Health Board",Calculations!$E$2="Western Isles Health Board",Calculations!$E$2="Shetland Islands Local Authority",Calculations!$E$2="Eilean Siar Local Authority"),OR($F66=1,$F66=5)),0,hosp_count(VALUE(LEFT(Options!$B$24,2)),$C66,$E66,$F66,2016,$I66,1,$H66,$G66*$H66, Options!$B$8))) -> 8450.664705 | P66: =IF(AND(OR(Calculations!$E$2="Orkney Health Board",Calculations!$E$2="Orkney Islands Local Authority"),$F66=1),0,IF(AND(OR(Calculations!$E$2="Shetland Health Board",Calculations!$E$2="Western Isles Health Board",Calculations!$E$2="Shetland Islands Local Authority",Calculations!$E$2="Eilean Siar Local Authority"),OR($F66=1,$F66=5)),0,hosp_count(VALUE(LEFT(Options!$B$24,2)),$C66,$E66,$F66,2016,$I66+$J66,1,$H66,$G66*$H66, Options!$B$8))) -> 8402.568726 | Q66: =IF(AND(OR(Calculations!$E$2="Orkney Health Board",Calculations!$E$2="Orkney Islands Local Authority"),$F66=1),0,IF(AND(OR(Calculations!$E$2="Shetland Health Board",Calculations!$E$2="Western Isles Health Board",Calculations!$E$2="Shetland Islands Local Authority",Calculations!$E$2="Eilean Siar Local Authority"),OR($F66=1,$F66=5)),0,prem_mort(VALUE(LEFT(Options!$B$24,2)),$C66,$E66,$F66,2016,$I66,1,$H66,$G66*$H66,Options!$B$8))) -> 44.73106569 | R66: =IF(AND(OR(Calculations!$E$2="Orkney Health Board",Calculations!$E$2="Orkney Islands Local Authority"),$F66=1),0,IF(AND(OR(Calculations!$E$2="Shetland Health Board",Calculations!$E$2="Western Isles Health Board",Calculations!$E$2="Shetland Islands Local Authority",Calculations!$E$2="Eilean Siar Local Authority"),OR($F66=1,$F66=5)),0,prem_mort(VALUE(LEFT(Options!$B$24,2)),$C66,$E66,$F66,2016,$I66+$J66,1,$H66,$G66*$H66,Options!$B$8))) -> 43.09020943 | S66: 108.4652417 | T66: 104.4864438 | U66: 5293.103255 | V66: 5098.937936 | W66: 20491.42751 | X66: 20374.80292 | Y66: 108.4652417 | Z66: 104.4864438 | AA66: 705024.0713 | AB66: 679161.8848 | AC66: 34405171.16 | AD66: 33143096.58 | AE66: 133194278.8 | AF66: 132436219 | AG66: 705024.0713 | AH66: 679161.8848 | AI66: 6500
B67: Female 35-39 | C67: 36.918118 | D67: 81.89812 | E67: female | F67: 1 | G67: =HLOOKUP(Calculations!$E$2,'Prevalence Rates'!$C$3:$BC$249,'Prevalence Rates'!$BD67,FALSE) -> 0.3714560104 | H67: =HLOOKUP(Calculations!$E$2,'Population 2016'!$C$3:$BC$249,'Population 2016'!BD67,FALSE) -> 35038 | I67: 0 | J67: =HLOOKUP(Results!E$4,Targeting!$C$3:$F$249,Targeting!$G67,FALSE) -> 7070 | K67: =IF(AND(OR(Calculations!$E$2="Orkney Health Board",Calculations!$E$2="Orkney Islands Local Authority"),$F67=1),0,IF(AND(OR(Calculations!$E$2="Shetland Health Board",Calculations!$E$2="Western Isles Health Board",Calculations!$E$2="Shetland Islands Local Authority",Calculations!$E$2="Eilean Siar Local Authority"),OR($F67=1,$F67=5)),0,new_ci(VALUE(LEFT(Options!$B$24,2)),$C67,$E67,$F67,2016,$I67,1,$H67,$G67*$H67,Options!$B$8))) -> 57.72558113 | L67: =IF(AND(OR(Calculations!$E$2="Orkney Health Board",Calculations!$E$2="Orkney Islands Local Authority"),$F67=1),0,IF(AND(OR(Calculations!$E$2="Shetland Health Board",Calculations!$E$2="Western Isles Health Board",Calculations!$E$2="Shetland Islands Local Authority",Calculations!$E$2="Eilean Siar Local Authority"),OR($F67=1,$F67=5)),0,new_ci(VALUE(LEFT(Options!$B$24,2)),$C67,$E67,$F67,2016,$I67+$J67,1,$H67,$G67*$H67,Options!$B$8))) -> 55.7199204 | M67: =IF(AND(OR(Calculations!$E$2="Orkney Health Board",Calculations!$E$2="Orkney Islands Local Authority"),$F67=1),0,IF(AND(OR(Calculations!$E$2="Shetland Health Board",Calculations!$E$2="Western Isles Health Board",Calculations!$E$2="Shetland Islands Local Authority",Calculations!$E$2="Eilean Siar Local Authority"),OR($F67=1,$F67=5)),0,new_yllv2(VALUE(LEFT(Options!$B$24,2)),$C67,$D67,$E67,$F67,2016,$I67,1,$H67,$G67*$H67,Options!$B$8))) -> 2538.771174 | N67: =IF(AND(OR(Calculations!$E$2="Orkney Health Board",Calculations!$E$2="Orkney Islands Local Authority"),$F67=1),0,IF(AND(OR(Calculations!$E$2="Shetland Health Board",Calculations!$E$2="Western Isles Health Board",Calculations!$E$2="Shetland Islands Local Authority",Calculations!$E$2="Eilean Siar Local Authority"),OR($F67=1,$F67=5)),0,new_yllv2(VALUE(LEFT(Options!$B$24,2)),$C67,$D67,$E67,$F67,2016,$I67+$J67,1,$H67,$G67*$H67,Options!$B$8))) -> 2450.562211 | O67: =IF(AND(OR(Calculations!$E$2="Orkney Health Board",Calculations!$E$2="Orkney Islands Local Authority"),$F67=1),0,IF(AND(OR(Calculations!$E$2="Shetland Health Board",Calculations!$E$2="Western Isles Health Board",Calculations!$E$2="Shetland Islands Local Authority",Calculations!$E$2="Eilean Siar Local Authority"),OR($F67=1,$F67=5)),0,hosp_count(VALUE(LEFT(Options!$B$24,2)),$C67,$E67,$F67,2016,$I67,1,$H67,$G67*$H67, Options!$B$8))) -> 8125.285242 | P67: =IF(AND(OR(Calculations!$E$2="Orkney Health Board",Calculations!$E$2="Orkney Islands Local Authority"),$F67=1),0,IF(AND(OR(Calculations!$E$2="Shetland Health Board",Calculations!$E$2="Western Isles Health Board",Calculations!$E$2="Shetland Islands Local Authority",Calculations!$E$2="Eilean Siar Local Authority"),OR($F67=1,$F67=5)),0,hosp_count(VALUE(LEFT(Options!$B$24,2)),$C67,$E67,$F67,2016,$I67+$J67,1,$H67,$G67*$H67, Options!$B$8))) -> 8080.144833 | Q67: =IF(AND(OR(Calculations!$E$2="Orkney Health Board",Calculations!$E$2="Orkney Islands Local Authority"),$F67=1),0,IF(AND(OR(Calculations!$E$2="Shetland Health Board",Calculations!$E$2="Western Isles Health Board",Calculations!$E$2="Shetland Islands Local Authority",Calculations!$E$2="Eilean Siar Local Authority"),OR($F67=1,$F67=5)),0,prem_mort(VALUE(LEFT(Options!$B$24,2)),$C67,$E67,$F67,2016,$I67,1,$H67,$G67*$H67,Options!$B$8))) -> 57.72558113 | R67: =IF(AND(OR(Calculations!$E$2="Orkney Health Board",Calculations!$E$2="Orkney Islands Local Authority"),$F67=1),0,IF(AND(OR(Calculations!$E$2="Shetland Health Board",Calculations!$E$2="Western Isles Health Board",Calculations!$E$2="Shetland Islands Local Authority",Calculations!$E$2="Eilean Siar Local Authority"),OR($F67=1,$F67=5)),0,prem_mort(VALUE(LEFT(Options!$B$24,2)),$C67,$E67,$F67,2016,$I67+$J67,1,$H67,$G67*$H67,Options!$B$8))) -> 55.7199204 | S67: 164.7513589 | T67: 159.0271146 | U67: 7245.765094 | V67: 6994.012817 | W67: 23189.92306 | X67: 23061.09034 | Y67: 164.7513589 | Z67: 159.0271146 | AA67: 1153259.512 | AB67: 1113189.802 | AC67: 50720355.66 | AD67: 48958089.72 | AE67: 162329461.4 | AF67: 161427632.4 | AG67: 1153259.512 | AH67: 1113189.802 | AI67: 7000
B68: Female 40-44 | C68: 42.077438 | D68: 82.30744 | E68: female | F68: 1 | G68: =HLOOKUP(Calculations!$E$2,'Prevalence Rates'!$C$3:$BC$249,'Prevalence Rates'!$BD68,FALSE) -> 0.3714560104 | H68: =HLOOKUP(Calculations!$E$2,'Population 2016'!$C$3:$BC$249,'Population 2016'!BD68,FALSE) -> 33663 | I68: 0 | J68: =HLOOKUP(Results!E$4,Targeting!$C$3:$F$249,Targeting!$G68,FALSE) -> 6792 | K68: =IF(AND(OR(Calculations!$E$2="Orkney Health Board",Calculations!$E$2="Orkney Islands Local Authority"),$F68=1),0,IF(AND(OR(Calculations!$E$2="Shetland Health Board",Calculations!$E$2="Western Isles Health Board",Calculations!$E$2="Shetland Islands Local Authority",Calculations!$E$2="Eilean Siar Local Authority"),OR($F68=1,$F68=5)),0,new_ci(VALUE(LEFT(Options!$B$24,2)),$C68,$E68,$F68,2016,$I68,1,$H68,$G68*$H68,Options!$B$8))) -> 85.96975947 | L68: =IF(AND(OR(Calculations!$E$2="Orkney Health Board",Calculations!$E$2="Orkney Islands Local Authority"),$F68=1),0,IF(AND(OR(Calculations!$E$2="Shetland Health Board",Calculations!$E$2="Western Isles Health Board",Calculations!$E$2="Shetland Islands Local Authority",Calculations!$E$2="Eilean Siar Local Authority"),OR($F68=1,$F68=5)),0,new_ci(VALUE(LEFT(Options!$B$24,2)),$C68,$E68,$F68,2016,$I68+$J68,1,$H68,$G68*$H68,Options!$B$8))) -> 82.98504971 | M68: =IF(AND(OR(Calculations!$E$2="Orkney Health Board",Calculations!$E$2="Orkney Islands Local Authority"),$F68=1),0,IF(AND(OR(Calculations!$E$2="Shetland Health Board",Calculations!$E$2="Western Isles Health Board",Calculations!$E$2="Shetland Islands Local Authority",Calculations!$E$2="Eilean Siar Local Authority"),OR($F68=1,$F68=5)),0,new_yllv2(VALUE(LEFT(Options!$B$24,2)),$C68,$D68,$E68,$F68,2016,$I68,1,$H68,$G68*$H68,Options!$B$8))) -> 3372.593836 | N68: =IF(AND(OR(Calculations!$E$2="Orkney Health Board",Calculations!$E$2="Orkney Islands Local Authority"),$F68=1),0,IF(AND(OR(Calculations!$E$2="Shetland Health Board",Calculations!$E$2="Western Isles Health Board",Calculations!$E$2="Shetland Islands Local Authority",Calculations!$E$2="Eilean Siar Local Authority"),OR($F68=1,$F68=5)),0,new_yllv2(VALUE(LEFT(Options!$B$24,2)),$C68,$D68,$E68,$F68,2016,$I68+$J68,1,$H68,$G68*$H68,Options!$B$8))) -> 3255.503666 | O68: =IF(AND(OR(Calculations!$E$2="Orkney Health Board",Calculations!$E$2="Orkney Islands Local Authority"),$F68=1),0,IF(AND(OR(Calculations!$E$2="Shetland Health Board",Calculations!$E$2="Western Isles Health Board",Calculations!$E$2="Shetland Islands Local Authority",Calculations!$E$2="Eilean Siar Local Authority"),OR($F68=1,$F68=5)),0,hosp_count(VALUE(LEFT(Options!$B$24,2)),$C68,$E68,$F68,2016,$I68,1,$H68,$G68*$H68, Options!$B$8))) -> 8888.185251 | P68: =IF(AND(OR(Calculations!$E$2="Orkney Health Board",Calculations!$E$2="Orkney Islands Local Authority"),$F68=1),0,IF(AND(OR(Calculations!$E$2="Shetland Health Board",Calculations!$E$2="Western Isles Health Board",Calculations!$E$2="Shetland Islands Local Authority",Calculations!$E$2="Eilean Siar Local Authority"),OR($F68=1,$F68=5)),0,hosp_count(VALUE(LEFT(Options!$B$24,2)),$C68,$E68,$F68,2016,$I68+$J68,1,$H68,$G68*$H68, Options!$B$8))) -> 8838.810521 | Q68: =IF(AND(OR(Calculations!$E$2="Orkney Health Board",Calculations!$E$2="Orkney Islands Local Authority"),$F68=1),0,IF(AND(OR(Calculations!$E$2="Shetland Health Board",Calculations!$E$2="Western Isles Health Board",Calculations!$E$2="Shetland Islands Local Authority",Calculations!$E$2="Eilean Siar Local Authority"),OR($F68=1,$F68=5)),0,prem_mort(VALUE(LEFT(Options!$B$24,2)),$C68,$E68,$F68,2016,$I68,1,$H68,$G68*$H68,Options!$B$8))) -> 85.96975947 | R68: =IF(AND(OR(Calculations!$E$2="Orkney Health Board",Calculations!$E$2="Orkney Islands Local Authority"),$F68=1),0,IF(AND(OR(Calculations!$E$2="Shetland Health Board",Calculations!$E$2="Western Isles Health Board",Calculations!$E$2="Shetland Islands Local Authority",Calculations!$E$2="Eilean Siar Local Authority"),OR($F68=1,$F68=5)),0,prem_mort(VALUE(LEFT(Options!$B$24,2)),$C68,$E68,$F68,2016,$I68+$J68,1,$H68,$G68*$H68,Options!$B$8))) -> 82.98504971 | S68: 255.3835352 | T68: 246.517095 | U68: 10018.6966 | V68: 9670.866132 | W68: 26403.42587 | X68: 26256.75228 | Y68: 255.3835352 | Z68: 246.517095 | AA68: 1787684.747 | AB68: 1725619.665 | AC68: 70130876.19 | AD68: 67696062.92 | AE68: 184823981.1 | AF68: 183797266 | AG68: 1787684.747 | AH68: 1725619.665 | AI68: 7000
B69: Female 45-49 | C69: 47.025772 | D69: 82.58577 | E69: female | F69: 1 | G69: =HLOOKUP(Calculations!$E$2,'Prevalence Rates'!$C$3:$BC$249,'Prevalence Rates'!$BD69,FALSE) -> 0.4190271098 | H69: =HLOOKUP(Calculations!$E$2,'Population 2016'!$C$3:$BC$249,'Population 2016'!BD69,FALSE) -> 39197 | I69: 0 | J69: =HLOOKUP(Results!E$4,Targeting!$C$3:$F$249,Targeting!$G69,FALSE) -> 7909 | K69: =IF(AND(OR(Calculations!$E$2="Orkney Health Board",Calculations!$E$2="Orkney Islands Local Authority"),$F69=1),0,IF(AND(OR(Calculations!$E$2="Shetland Health Board",Calculations!$E$2="Western Isles Health Board",Calculations!$E$2="Shetland Islands Local Authority",Calculations!$E$2="Eilean Siar Local Authority"),OR($F69=1,$F69=5)),0,new_ci(VALUE(LEFT(Options!$B$24,2)),$C69,$E69,$F69,2016,$I69,1,$H69,$G69*$H69,Options!$B$8))) -> 152.3757401 | L69: =IF(AND(OR(Calculations!$E$2="Orkney Health Board",Calculations!$E$2="Orkney Islands Local Authority"),$F69=1),0,IF(AND(OR(Calculations!$E$2="Shetland Health Board",Calculations!$E$2="Western Isles Health Board",Calculations!$E$2="Shetland Islands Local Authority",Calculations!$E$2="Eilean Siar Local Authority"),OR($F69=1,$F69=5)),0,new_ci(VALUE(LEFT(Options!$B$24,2)),$C69,$E69,$F69,2016,$I69+$J69,1,$H69,$G69*$H69,Options!$B$8))) -> 147.239093 | M69: =IF(AND(OR(Calculations!$E$2="Orkney Health Board",Calculations!$E$2="Orkney Islands Local Authority"),$F69=1),0,IF(AND(OR(Calculations!$E$2="Shetland Health Board",Calculations!$E$2="Western Isles Health Board",Calculations!$E$2="Shetland Islands Local Authority",Calculations!$E$2="Eilean Siar Local Authority"),OR($F69=1,$F69=5)),0,new_yllv2(VALUE(LEFT(Options!$B$24,2)),$C69,$D69,$E69,$F69,2016,$I69,1,$H69,$G69*$H69,Options!$B$8))) -> 5266.105274 | N69: =IF(AND(OR(Calculations!$E$2="Orkney Health Board",Calculations!$E$2="Orkney Islands Local Authority"),$F69=1),0,IF(AND(OR(Calculations!$E$2="Shetland Health Board",Calculations!$E$2="Western Isles Health Board",Calculations!$E$2="Shetland Islands Local Authority",Calculations!$E$2="Eilean Siar Local Authority"),OR($F69=1,$F69=5)),0,new_yllv2(VALUE(LEFT(Options!$B$24,2)),$C69,$D69,$E69,$F69,2016,$I69+$J69,1,$H69,$G69*$H69,Options!$B$8))) -> 5088.582758 | O69: =IF(AND(OR(Calculations!$E$2="Orkney Health Board",Calculations!$E$2="Orkney Islands Local Authority"),$F69=1),0,IF(AND(OR(Calculations!$E$2="Shetland Health Board",Calculations!$E$2="Western Isles Health Board",Calculations!$E$2="Shetland Islands Local Authority",Calculations!$E$2="Eilean Siar Local Authority"),OR($F69=1,$F69=5)),0,hosp_count(VALUE(LEFT(Options!$B$24,2)),$C69,$E69,$F69,2016,$I69,1,$H69,$G69*$H69, Options!$B$8))) -> 11721.12367 | P69: =IF(AND(OR(Calculations!$E$2="Orkney Health Board",Calculations!$E$2="Orkney Islands Local Authority"),$F69=1),0,IF(AND(OR(Calculations!$E$2="Shetland Health Board",Calculations!$E$2="Western Isles Health Board",Calculations!$E$2="Shetland Islands Local Authority",Calculations!$E$2="Eilean Siar Local Authority"),OR($F69=1,$F69=5)),0,hosp_count(VALUE(LEFT(Options!$B$24,2)),$C69,$E69,$F69,2016,$I69+$J69,1,$H69,$G69*$H69, Options!$B$8))) -> 11656.85798 | Q69: =IF(AND(OR(Calculations!$E$2="Orkney Health Board",Calculations!$E$2="Orkney Islands Local Authority"),$F69=1),0,IF(AND(OR(Calculations!$E$2="Shetland Health Board",Calculations!$E$2="Western Isles Health Board",Calculations!$E$2="Shetland Islands Local Authority",Calculations!$E$2="Eilean Siar Local Authority"),OR($F69=1,$F69=5)),0,prem_mort(VALUE(LEFT(Options!$B$24,2)),$C69,$E69,$F69,2016,$I69,1,$H69,$G69*$H69,Options!$B$8))) -> 152.3757401 | R69: =IF(AND(OR(Calculations!$E$2="Orkney Health Board",Calculations!$E$2="Orkney Islands Local Authority"),$F69=1),0,IF(AND(OR(Calculations!$E$2="Shetland Health Board",Calculations!$E$2="Western Isles Health Board",Calculations!$E$2="Shetland Islands Local Authority",Calculations!$E$2="Eilean Siar Local Authority"),OR($F69=1,$F69=5)),0,prem_mort(VALUE(LEFT(Options!$B$24,2)),$C69,$E69,$F69,2016,$I69+$J69,1,$H69,$G69*$H69,Options!$B$8))) -> 147.239093 | S69: 388.7433735 | T69: 375.6386789 | U69: 13434.97021 | V69: 12982.07199 | W69: 29903.1142 | X69: 29739.15856 | Y69: 388.7433735 | Z69: 375.6386789 | AA69: 2721203.615 | AB69: 2629470.752 | AC69: 94044791.48 | AD69: 90874503.94 | AE69: 209321799.4 | AF69: 208174109.9 | AG69: 2721203.615 | AH69: 2629470.752 | AI69: 7000
B70: Female 50-54 | C70: 51.990826 | D70: 82.98083 | E70: female | F70: 1 | G70: =HLOOKUP(Calculations!$E$2,'Prevalence Rates'!$C$3:$BC$249,'Prevalence Rates'!$BD70,FALSE) -> 0.4190271098 | H70: =HLOOKUP(Calculations!$E$2,'Population 2016'!$C$3:$BC$249,'Population 2016'!BD70,FALSE) -> 39704 | I70: 0 | J70: =HLOOKUP(Results!E$4,Targeting!$C$3:$F$249,Targeting!$G70,FALSE) -> 8011 | K70: =IF(AND(OR(Calculations!$E$2="Orkney Health Board",Calculations!$E$2="Orkney Islands Local Authority"),$F70=1),0,IF(AND(OR(Calculations!$E$2="Shetland Health Board",Calculations!$E$2="Western Isles Health Board",Calculations!$E$2="Shetland Islands Local Authority",Calculations!$E$2="Eilean Siar Local Authority"),OR($F70=1,$F70=5)),0,new_ci(VALUE(LEFT(Options!$B$24,2)),$C70,$E70,$F70,2016,$I70,1,$H70,$G70*$H70,Options!$B$8))) -> 235.1892524 | L70: =IF(AND(OR(Calculations!$E$2="Orkney Health Board",Calculations!$E$2="Orkney Islands Local Authority"),$F70=1),0,IF(AND(OR(Calculations!$E$2="Shetland Health Board",Calculations!$E$2="Western Isles Health Board",Calculations!$E$2="Shetland Islands Local Authority",Calculations!$E$2="Eilean Siar Local Authority"),OR($F70=1,$F70=5)),0,new_ci(VALUE(LEFT(Options!$B$24,2)),$C70,$E70,$F70,2016,$I70+$J70,1,$H70,$G70*$H70,Options!$B$8))) -> 227.2728816 | M70: =IF(AND(OR(Calculations!$E$2="Orkney Health Board",Calculations!$E$2="Orkney Islands Local Authority"),$F70=1),0,IF(AND(OR(Calculations!$E$2="Shetland Health Board",Calculations!$E$2="Western Isles Health Board",Calculations!$E$2="Shetland Islands Local Authority",Calculations!$E$2="Eilean Siar Local Authority"),OR($F70=1,$F70=5)),0,new_yllv2(VALUE(LEFT(Options!$B$24,2)),$C70,$D70,$E70,$F70,2016,$I70,1,$H70,$G70*$H70,Options!$B$8))) -> 7053.326621 | N70: =IF(AND(OR(Calculations!$E$2="Orkney Health Board",Calculations!$E$2="Orkney Islands Local Authority"),$F70=1),0,IF(AND(OR(Calculations!$E$2="Shetland Health Board",Calculations!$E$2="Western Isles Health Board",Calculations!$E$2="Shetland Islands Local Authority",Calculations!$E$2="Eilean Siar Local Authority"),OR($F70=1,$F70=5)),0,new_yllv2(VALUE(LEFT(Options!$B$24,2)),$C70,$D70,$E70,$F70,2016,$I70+$J70,1,$H70,$G70*$H70,Options!$B$8))) -> 6815.914627 | O70: =IF(AND(OR(Calculations!$E$2="Orkney Health Board",Calculations!$E$2="Orkney Islands Local Authority"),$F70=1),0,IF(AND(OR(Calculations!$E$2="Shetland Health Board",Calculations!$E$2="Western Isles Health Board",Calculations!$E$2="Shetland Islands Local Authority",Calculations!$E$2="Eilean Siar Local Authority"),OR($F70=1,$F70=5)),0,hosp_count(VALUE(LEFT(Options!$B$24,2)),$C70,$E70,$F70,2016,$I70,1,$H70,$G70*$H70, Options!$B$8))) -> 13452.08093 | P70: =IF(AND(OR(Calculations!$E$2="Orkney Health Board",Calculations!$E$2="Orkney Islands Local Authority"),$F70=1),0,IF(AND(OR(Calculations!$E$2="Shetland Health Board",Calculations!$E$2="Western Isles Health Board",Calculations!$E$2="Shetland Islands Local Authority",Calculations!$E$2="Eilean Siar Local Authority"),OR($F70=1,$F70=5)),0,hosp_count(VALUE(LEFT(Options!$B$24,2)),$C70,$E70,$F70,2016,$I70+$J70,1,$H70,$G70*$H70, Options!$B$8))) -> 13378.32735 | Q70: =IF(AND(OR(Calculations!$E$2="Orkney Health Board",Calculations!$E$2="Orkney Islands Local Authority"),$F70=1),0,IF(AND(OR(Calculations!$E$2="Shetland Health Board",Calculations!$E$2="Western Isles Health Board",Calculations!$E$2="Shetland Islands Local Authority",Calculations!$E$2="Eilean Siar Local Authority"),OR($F70=1,$F70=5)),0,prem_mort(VALUE(LEFT(Options!$B$24,2)),$C70,$E70,$F70,2016,$I70,1,$H70,$G70*$H70,Options!$B$8))) -> 235.1892524 | R70: =IF(AND(OR(Calculations!$E$2="Orkney Health Board",Calculations!$E$2="Orkney Islands Local Authority"),$F70=1),0,IF(AND(OR(Calculations!$E$2="Shetland Health Board",Calculations!$E$2="Western Isles Health Board",Calculations!$E$2="Shetland Islands Local Authority",Calculations!$E$2="Eilean Siar Local Authority"),OR($F70=1,$F70=5)),0,prem_mort(VALUE(LEFT(Options!$B$24,2)),$C70,$E70,$F70,2016,$I70+$J70,1,$H70,$G70*$H70,Options!$B$8))) -> 227.2728816 | S70: 592.3565697 | T70: 572.4180978 | U70: 17764.77589 | V70: 17166.82104 | W70: 33880.92115 | X70: 33695.16257 | Y70: 592.3565697 | Z70: 572.4180978 | AA70: 4146495.988 | AB70: 4006926.685 | AC70: 124353431.3 | AD70: 120167747.3 | AE70: 237166448.1 | AF70: 235866138 | AG70: 4146495.988 | AH70: 4006926.685 | AI70: 7000
B71: Female 55-59 | C71: 56.953041 | D71: 83.47304 | E71: female | F71: 1 | G71: =HLOOKUP(Calculations!$E$2,'Prevalence Rates'!$C$3:$BC$249,'Prevalence Rates'!$BD71,FALSE) -> 0.4094434826 | H71: =HLOOKUP(Calculations!$E$2,'Population 2016'!$C$3:$BC$249,'Population 2016'!BD71,FALSE) -> 35528 | I71: 0 | J71: =HLOOKUP(Results!E$4,Targeting!$C$3:$F$249,Targeting!$G71,FALSE) -> 7169 | K71: =IF(AND(OR(Calculations!$E$2="Orkney Health Board",Calculations!$E$2="Orkney Islands Local Authority"),$F71=1),0,IF(AND(OR(Calculations!$E$2="Shetland Health Board",Calculations!$E$2="Western Isles Health Board",Calculations!$E$2="Shetland Islands Local Authority",Calculations!$E$2="Eilean Siar Local Authority"),OR($F71=1,$F71=5)),0,new_ci(VALUE(LEFT(Options!$B$24,2)),$C71,$E71,$F71,2016,$I71,1,$H71,$G71*$H71,Options!$B$8))) -> 320.4174637 | L71: =IF(AND(OR(Calculations!$E$2="Orkney Health Board",Calculations!$E$2="Orkney Islands Local Authority"),$F71=1),0,IF(AND(OR(Calculations!$E$2="Shetland Health Board",Calculations!$E$2="Western Isles Health Board",Calculations!$E$2="Shetland Islands Local Authority",Calculations!$E$2="Eilean Siar Local Authority"),OR($F71=1,$F71=5)),0,new_ci(VALUE(LEFT(Options!$B$24,2)),$C71,$E71,$F71,2016,$I71+$J71,1,$H71,$G71*$H71,Options!$B$8))) -> 309.59477 | M71: =IF(AND(OR(Calculations!$E$2="Orkney Health Board",Calculations!$E$2="Orkney Islands Local Authority"),$F71=1),0,IF(AND(OR(Calculations!$E$2="Shetland Health Board",Calculations!$E$2="Western Isles Health Board",Calculations!$E$2="Shetland Islands Local Authority",Calculations!$E$2="Eilean Siar Local Authority"),OR($F71=1,$F71=5)),0,new_yllv2(VALUE(LEFT(Options!$B$24,2)),$C71,$D71,$E71,$F71,2016,$I71,1,$H71,$G71*$H71,Options!$B$8))) -> 8177.053354 | N71: =IF(AND(OR(Calculations!$E$2="Orkney Health Board",Calculations!$E$2="Orkney Islands Local Authority"),$F71=1),0,IF(AND(OR(Calculations!$E$2="Shetland Health Board",Calculations!$E$2="Western Isles Health Board",Calculations!$E$2="Shetland Islands Local Authority",Calculations!$E$2="Eilean Siar Local Authority"),OR($F71=1,$F71=5)),0,new_yllv2(VALUE(LEFT(Options!$B$24,2)),$C71,$D71,$E71,$F71,2016,$I71+$J71,1,$H71,$G71*$H71,Options!$B$8))) -> 7900.85822 | O71: =IF(AND(OR(Calculations!$E$2="Orkney Health Board",Calculations!$E$2="Orkney Islands Local Authority"),$F71=1),0,IF(AND(OR(Calculations!$E$2="Shetland Health Board",Calculations!$E$2="Western Isles Health Board",Calculations!$E$2="Shetland Islands Local Authority",Calculations!$E$2="Eilean Siar Local Authority"),OR($F71=1,$F71=5)),0,hosp_count(VALUE(LEFT(Options!$B$24,2)),$C71,$E71,$F71,2016,$I71,1,$H71,$G71*$H71, Options!$B$8))) -> 13637.46804 | P71: =IF(AND(OR(Calculations!$E$2="Orkney Health Board",Calculations!$E$2="Orkney Islands Local Authority"),$F71=1),0,IF(AND(OR(Calculations!$E$2="Shetland Health Board",Calculations!$E$2="Western Isles Health Board",Calculations!$E$2="Shetland Islands Local Authority",Calculations!$E$2="Eilean Siar Local Authority"),OR($F71=1,$F71=5)),0,hosp_count(VALUE(LEFT(Options!$B$24,2)),$C71,$E71,$F71,2016,$I71+$J71,1,$H71,$G71*$H71, Options!$B$8))) -> 13562.49482 | Q71: =IF(AND(OR(Calculations!$E$2="Orkney Health Board",Calculations!$E$2="Orkney Islands Local Authority"),$F71=1),0,IF(AND(OR(Calculations!$E$2="Shetland Health Board",Calculations!$E$2="Western Isles Health Board",Calculations!$E$2="Shetland Islands Local Authority",Calculations!$E$2="Eilean Siar Local Authority"),OR($F71=1,$F71=5)),0,prem_mort(VALUE(LEFT(Options!$B$24,2)),$C71,$E71,$F71,2016,$I71,1,$H71,$G71*$H71,Options!$B$8))) -> 320.4174637 | R71: =IF(AND(OR(Calculations!$E$2="Orkney Health Board",Calculations!$E$2="Orkney Islands Local Authority"),$F71=1),0,IF(AND(OR(Calculations!$E$2="Shetland Health Board",Calculations!$E$2="Western Isles Health Board",Calculations!$E$2="Shetland Islands Local Authority",Calculations!$E$2="Eilean Siar Local Authority"),OR($F71=1,$F71=5)),0,prem_mort(VALUE(LEFT(Options!$B$24,2)),$C71,$E71,$F71,2016,$I71+$J71,1,$H71,$G71*$H71,Options!$B$8))) -> 309.59477 | S71: 901.8730684 | T71: 871.4106338 | U71: 23015.7998 | V71: 22238.3985 | W71: 38385.12735 | X71: 38174.10161 | Y71: 901.8730684 | Z71: 871.4106338 | AA71: 5862174.945 | AB71: 5664169.12 | AC71: 149602698.7 | AD71: 144549590.3 | AE71: 249503327.8 | AF71: 248131660.5 | AG71: 5862174.945 | AH71: 5664169.12 | AI71: 6500
B72: Female 60-64 | C72: 61.947388 | D72: 84.16739 | E72: female | F72: 1 | G72: =HLOOKUP(Calculations!$E$2,'Prevalence Rates'!$C$3:$BC$249,'Prevalence Rates'!$BD72,FALSE) -> 0.4094434826 | H72: =HLOOKUP(Calculations!$E$2,'Population 2016'!$C$3:$BC$249,'Population 2016'!BD72,FALSE) -> 29212 | I72: 0 | J72: =HLOOKUP(Results!E$4,Targeting!$C$3:$F$249,Targeting!$G72,FALSE) -> 5894 | K72: =IF(AND(OR(Calculations!$E$2="Orkney Health Board",Calculations!$E$2="Orkney Islands Local Authority"),$F72=1),0,IF(AND(OR(Calculations!$E$2="Shetland Health Board",Calculations!$E$2="Western Isles Health Board",Calculations!$E$2="Shetland Islands Local Authority",Calculations!$E$2="Eilean Siar Local Authority"),OR($F72=1,$F72=5)),0,new_ci(VALUE(LEFT(Options!$B$24,2)),$C72,$E72,$F72,2016,$I72,1,$H72,$G72*$H72,Options!$B$8))) -> 401.8488297 | L72: =IF(AND(OR(Calculations!$E$2="Orkney Health Board",Calculations!$E$2="Orkney Islands Local Authority"),$F72=1),0,IF(AND(OR(Calculations!$E$2="Shetland Health Board",Calculations!$E$2="Western Isles Health Board",Calculations!$E$2="Shetland Islands Local Authority",Calculations!$E$2="Eilean Siar Local Authority"),OR($F72=1,$F72=5)),0,new_ci(VALUE(LEFT(Options!$B$24,2)),$C72,$E72,$F72,2016,$I72+$J72,1,$H72,$G72*$H72,Options!$B$8))) -> 388.3240807 | M72: =IF(AND(OR(Calculations!$E$2="Orkney Health Board",Calculations!$E$2="Orkney Islands Local Authority"),$F72=1),0,IF(AND(OR(Calculations!$E$2="Shetland Health Board",Calculations!$E$2="Western Isles Health Board",Calculations!$E$2="Shetland Islands Local Authority",Calculations!$E$2="Eilean Siar Local Authority"),OR($F72=1,$F72=5)),0,new_yllv2(VALUE(LEFT(Options!$B$24,2)),$C72,$D72,$E72,$F72,2016,$I72,1,$H72,$G72*$H72,Options!$B$8))) -> 8527.232971 | N72: =IF(AND(OR(Calculations!$E$2="Orkney Health Board",Calculations!$E$2="Orkney Islands Local Authority"),$F72=1),0,IF(AND(OR(Calculations!$E$2="Shetland Health Board",Calculations!$E$2="Western Isles Health Board",Calculations!$E$2="Shetland Islands Local Authority",Calculations!$E$2="Eilean Siar Local Authority"),OR($F72=1,$F72=5)),0,new_yllv2(VALUE(LEFT(Options!$B$24,2)),$C72,$D72,$E72,$F72,2016,$I72+$J72,1,$H72,$G72*$H72,Options!$B$8))) -> 8240.237769 | O72: =IF(AND(OR(Calculations!$E$2="Orkney Health Board",Calculations!$E$2="Orkney Islands Local Authority"),$F72=1),0,IF(AND(OR(Calculations!$E$2="Shetland Health Board",Calculations!$E$2="Western Isles Health Board",Calculations!$E$2="Shetland Islands Local Authority",Calculations!$E$2="Eilean Siar Local Authority"),OR($F72=1,$F72=5)),0,hosp_count(VALUE(LEFT(Options!$B$24,2)),$C72,$E72,$F72,2016,$I72,1,$H72,$G72*$H72, Options!$B$8))) -> 12714.02519 | P72: =IF(AND(OR(Calculations!$E$2="Orkney Health Board",Calculations!$E$2="Orkney Islands Local Authority"),$F72=1),0,IF(AND(OR(Calculations!$E$2="Shetland Health Board",Calculations!$E$2="Western Isles Health Board",Calculations!$E$2="Shetland Islands Local Authority",Calculations!$E$2="Eilean Siar Local Authority"),OR($F72=1,$F72=5)),0,hosp_count(VALUE(LEFT(Options!$B$24,2)),$C72,$E72,$F72,2016,$I72+$J72,1,$H72,$G72*$H72, Options!$B$8))) -> 12644.13495 | Q72: =IF(AND(OR(Calculations!$E$2="Orkney Health Board",Calculations!$E$2="Orkney Islands Local Authority"),$F72=1),0,IF(AND(OR(Calculations!$E$2="Shetland Health Board",Calculations!$E$2="Western Isles Health Board",Calculations!$E$2="Shetland Islands Local Authority",Calculations!$E$2="Eilean Siar Local Authority"),OR($F72=1,$F72=5)),0,prem_mort(VALUE(LEFT(Options!$B$24,2)),$C72,$E72,$F72,2016,$I72,1,$H72,$G72*$H72,Options!$B$8))) -> 401.8488297 | R72: =IF(AND(OR(Calculations!$E$2="Orkney Health Board",Calculations!$E$2="Orkney Islands Local Authority"),$F72=1),0,IF(AND(OR(Calculations!$E$2="Shetland Health Board",Calculations!$E$2="Western Isles Health Board",Calculations!$E$2="Shetland Islands Local Authority",Calculations!$E$2="Eilean Siar Local Authority"),OR($F72=1,$F72=5)),0,prem_mort(VALUE(LEFT(Options!$B$24,2)),$C72,$E72,$F72,2016,$I72+$J72,1,$H72,$G72*$H72,Options!$B$8))) -> 388.3240807 | S72: 1375.629295 | T72: 1329.330688 | U72: 29190.8564 | V72: 28208.39987 | W72: 43523.29587 | X72: 43284.04406 | Y72: 1375.629295 | Z72: 1329.330688 | AA72: 8253775.772 | AB72: 7975984.131 | AC72: 175145138.4 | AD72: 169250399.2 | AE72: 261139775.2 | AF72: 259704264.3 | AG72: 8253775.772 | AH72: 7975984.131 | AI72: 6000
B73: Female 65-69 | C73: 67.063927 | D73: 85.19393 | E73: female | F73: 1 | G73: =HLOOKUP(Calculations!$E$2,'Prevalence Rates'!$C$3:$BC$249,'Prevalence Rates'!$BD73,FALSE) -> 0.4233911697 | H73: =HLOOKUP(Calculations!$E$2,'Population 2016'!$C$3:$BC$249,'Population 2016'!BD73,FALSE) -> 27762 | I73: 0 | J73: =HLOOKUP(Results!E$4,Targeting!$C$3:$F$249,Targeting!$G73,FALSE) -> 5602 | K73: =IF(AND(OR(Calculations!$E$2="Orkney Health Board",Calculations!$E$2="Orkney Islands Local Authority"),$F73=1),0,IF(AND(OR(Calculations!$E$2="Shetland Health Board",Calculations!$E$2="Western Isles Health Board",Calculations!$E$2="Shetland Islands Local Authority",Calculations!$E$2="Eilean Siar Local Authority"),OR($F73=1,$F73=5)),0,new_ci(VALUE(LEFT(Options!$B$24,2)),$C73,$E73,$F73,2016,$I73,1,$H73,$G73*$H73,Options!$B$8))) -> 587.7298929 | L73: =IF(AND(OR(Calculations!$E$2="Orkney Health Board",Calculations!$E$2="Orkney Islands Local Authority"),$F73=1),0,IF(AND(OR(Calculations!$E$2="Shetland Health Board",Calculations!$E$2="Western Isles Health Board",Calculations!$E$2="Shetland Islands Local Authority",Calculations!$E$2="Eilean Siar Local Authority"),OR($F73=1,$F73=5)),0,new_ci(VALUE(LEFT(Options!$B$24,2)),$C73,$E73,$F73,2016,$I73+$J73,1,$H73,$G73*$H73,Options!$B$8))) -> 568.2137349 | M73: =IF(AND(OR(Calculations!$E$2="Orkney Health Board",Calculations!$E$2="Orkney Islands Local Authority"),$F73=1),0,IF(AND(OR(Calculations!$E$2="Shetland Health Board",Calculations!$E$2="Western Isles Health Board",Calculations!$E$2="Shetland Islands Local Authority",Calculations!$E$2="Eilean Siar Local Authority"),OR($F73=1,$F73=5)),0,new_yllv2(VALUE(LEFT(Options!$B$24,2)),$C73,$D73,$E73,$F73,2016,$I73,1,$H73,$G73*$H73,Options!$B$8))) -> 10067.81483 | N73: =IF(AND(OR(Calculations!$E$2="Orkney Health Board",Calculations!$E$2="Orkney Islands Local Authority"),$F73=1),0,IF(AND(OR(Calculations!$E$2="Shetland Health Board",Calculations!$E$2="Western Isles Health Board",Calculations!$E$2="Shetland Islands Local Authority",Calculations!$E$2="Eilean Siar Local Authority"),OR($F73=1,$F73=5)),0,new_yllv2(VALUE(LEFT(Options!$B$24,2)),$C73,$D73,$E73,$F73,2016,$I73+$J73,1,$H73,$G73*$H73,Options!$B$8))) -> 9733.502984 | O73: =IF(AND(OR(Calculations!$E$2="Orkney Health Board",Calculations!$E$2="Orkney Islands Local Authority"),$F73=1),0,IF(AND(OR(Calculations!$E$2="Shetland Health Board",Calculations!$E$2="Western Isles Health Board",Calculations!$E$2="Shetland Islands Local Authority",Calculations!$E$2="Eilean Siar Local Authority"),OR($F73=1,$F73=5)),0,hosp_count(VALUE(LEFT(Options!$B$24,2)),$C73,$E73,$F73,2016,$I73,1,$H73,$G73*$H73, Options!$B$8))) -> 13742.51292 | P73: =IF(AND(OR(Calculations!$E$2="Orkney Health Board",Calculations!$E$2="Orkney Islands Local Authority"),$F73=1),0,IF(AND(OR(Calculations!$E$2="Shetland Health Board",Calculations!$E$2="Western Isles Health Board",Calculations!$E$2="Shetland Islands Local Authority",Calculations!$E$2="Eilean Siar Local Authority"),OR($F73=1,$F73=5)),0,hosp_count(VALUE(LEFT(Options!$B$24,2)),$C73,$E73,$F73,2016,$I73+$J73,1,$H73,$G73*$H73, Options!$B$8))) -> 13667.25018 | Q73: =IF(AND(OR(Calculations!$E$2="Orkney Health Board",Calculations!$E$2="Orkney Islands Local Authority"),$F73=1),0,IF(AND(OR(Calculations!$E$2="Shetland Health Board",Calculations!$E$2="Western Isles Health Board",Calculations!$E$2="Shetland Islands Local Authority",Calculations!$E$2="Eilean Siar Local Authority"),OR($F73=1,$F73=5)),0,prem_mort(VALUE(LEFT(Options!$B$24,2)),$C73,$E73,$F73,2016,$I73,1,$H73,$G73*$H73,Options!$B$8))) -> 587.7298929 | R73: =IF(AND(OR(Calculations!$E$2="Orkney Health Board",Calculations!$E$2="Orkney Islands Local Authority"),$F73=1),0,IF(AND(OR(Calculations!$E$2="Shetland Health Board",Calculations!$E$2="Western Isles Health Board",Calculations!$E$2="Shetland Islands Local Authority",Calculations!$E$2="Eilean Siar Local Authority"),OR($F73=1,$F73=5)),0,prem_mort(VALUE(LEFT(Options!$B$24,2)),$C73,$E73,$F73,2016,$I73+$J73,1,$H73,$G73*$H73,Options!$B$8))) -> 568.2137349 | S73: 2117.030088 | T73: 2046.73199 | U73: 36264.73175 | V73: 35060.52512 | W73: 49501.16318 | X73: 49230.06333 | Y73: 2117.030088 | Z73: 2046.73199 | AA73: 11643665.48 | AB73: 11257025.94 | AC73: 199456024.6 | AD73: 192832888.2 | AE73: 272256397.5 | AF73: 270765348.3 | AG73: 11643665.48 | AH73: 11257025.94 | AI73: 5500
B74: Female 70-74 | C74: 71.938164 | D74: 86.24816 | E74: female | F74: 1 | G74: =HLOOKUP(Calculations!$E$2,'Prevalence Rates'!$C$3:$BC$249,'Prevalence Rates'!$BD74,FALSE) -> 0.4233911697 | H74: =HLOOKUP(Calculations!$E$2,'Population 2016'!$C$3:$BC$249,'Population 2016'!BD74,FALSE) -> 21786 | I74: 0 | J74: =HLOOKUP(Results!E$4,Targeting!$C$3:$F$249,Targeting!$G74,FALSE) -> 4396 | K74: =IF(AND(OR(Calculations!$E$2="Orkney Health Board",Calculations!$E$2="Orkney Islands Local Authority"),$F74=1),0,IF(AND(OR(Calculations!$E$2="Shetland Health Board",Calculations!$E$2="Western Isles Health Board",Calculations!$E$2="Shetland Islands Local Authority",Calculations!$E$2="Eilean Siar Local Authority"),OR($F74=1,$F74=5)),0,new_ci(VALUE(LEFT(Options!$B$24,2)),$C74,$E74,$F74,2016,$I74,1,$H74,$G74*$H74,Options!$B$8))) -> 694.0245565 | L74: =IF(AND(OR(Calculations!$E$2="Orkney Health Board",Calculations!$E$2="Orkney Islands Local Authority"),$F74=1),0,IF(AND(OR(Calculations!$E$2="Shetland Health Board",Calculations!$E$2="Western Isles Health Board",Calculations!$E$2="Shetland Islands Local Authority",Calculations!$E$2="Eilean Siar Local Authority"),OR($F74=1,$F74=5)),0,new_ci(VALUE(LEFT(Options!$B$24,2)),$C74,$E74,$F74,2016,$I74+$J74,1,$H74,$G74*$H74,Options!$B$8))) -> 671.1608511 | M74: =IF(AND(OR(Calculations!$E$2="Orkney Health Board",Calculations!$E$2="Orkney Islands Local Authority"),$F74=1),0,IF(AND(OR(Calculations!$E$2="Shetland Health Board",Calculations!$E$2="Western Isles Health Board",Calculations!$E$2="Shetland Islands Local Authority",Calculations!$E$2="Eilean Siar Local Authority"),OR($F74=1,$F74=5)),0,new_yllv2(VALUE(LEFT(Options!$B$24,2)),$C74,$D74,$E74,$F74,2016,$I74,1,$H74,$G74*$H74,Options!$B$8))) -> 9237.464072 | N74: =IF(AND(OR(Calculations!$E$2="Orkney Health Board",Calculations!$E$2="Orkney Islands Local Authority"),$F74=1),0,IF(AND(OR(Calculations!$E$2="Shetland Health Board",Calculations!$E$2="Western Isles Health Board",Calculations!$E$2="Shetland Islands Local Authority",Calculations!$E$2="Eilean Siar Local Authority"),OR($F74=1,$F74=5)),0,new_yllv2(VALUE(LEFT(Options!$B$24,2)),$C74,$D74,$E74,$F74,2016,$I74+$J74,1,$H74,$G74*$H74,Options!$B$8))) -> 8933.148243 | O74: =IF(AND(OR(Calculations!$E$2="Orkney Health Board",Calculations!$E$2="Orkney Islands Local Authority"),$F74=1),0,IF(AND(OR(Calculations!$E$2="Shetland Health Board",Calculations!$E$2="Western Isles Health Board",Calculations!$E$2="Shetland Islands Local Authority",Calculations!$E$2="Eilean Siar Local Authority"),OR($F74=1,$F74=5)),0,hosp_count(VALUE(LEFT(Options!$B$24,2)),$C74,$E74,$F74,2016,$I74,1,$H74,$G74*$H74, Options!$B$8))) -> 12191.0075 | P74: =IF(AND(OR(Calculations!$E$2="Orkney Health Board",Calculations!$E$2="Orkney Islands Local Authority"),$F74=1),0,IF(AND(OR(Calculations!$E$2="Shetland Health Board",Calculations!$E$2="Western Isles Health Board",Calculations!$E$2="Shetland Islands Local Authority",Calculations!$E$2="Eilean Siar Local Authority"),OR($F74=1,$F74=5)),0,hosp_count(VALUE(LEFT(Options!$B$24,2)),$C74,$E74,$F74,2016,$I74+$J74,1,$H74,$G74*$H74, Options!$B$8))) -> 12124.24367 | Q74: =IF(AND(OR(Calculations!$E$2="Orkney Health Board",Calculations!$E$2="Orkney Islands Local Authority"),$F74=1),0,IF(AND(OR(Calculations!$E$2="Shetland Health Board",Calculations!$E$2="Western Isles Health Board",Calculations!$E$2="Shetland Islands Local Authority",Calculations!$E$2="Eilean Siar Local Authority"),OR($F74=1,$F74=5)),0,prem_mort(VALUE(LEFT(Options!$B$24,2)),$C74,$E74,$F74,2016,$I74,1,$H74,$G74*$H74,Options!$B$8))) -> 694.0245565 | R74: =IF(AND(OR(Calculations!$E$2="Orkney Health Board",Calculations!$E$2="Orkney Islands Local Authority"),$F74=1),0,IF(AND(OR(Calculations!$E$2="Shetland Health Board",Calculations!$E$2="Western Isles Health Board",Calculations!$E$2="Shetland Islands Local Authority",Calculations!$E$2="Eilean Siar Local Authority"),OR($F74=1,$F74=5)),0,prem_mort(VALUE(LEFT(Options!$B$24,2)),$C74,$E74,$F74,2016,$I74+$J74,1,$H74,$G74*$H74,Options!$B$8))) -> 671.1608511 | S74: 3185.64471 | T74: 3080.69793 | U74: 42400.91835 | V74: 41004.07713 | W74: 55957.98909 | X74: 55651.53615 | Y74: 3185.64471 | Z74: 3080.69793 | AA74: 15928223.55 | AB74: 15403489.65 | AC74: 212004591.7 | AD74: 205020385.6 | AE74: 279789945.5 | AF74: 278257680.7 | AG74: 15928223.55 | AH74: 15403489.65 | AI74: 5000
B75: Female 75-79 | C75: 76.942825 | D75: 87.81283 | E75: female | F75: 1 | G75: =HLOOKUP(Calculations!$E$2,'Prevalence Rates'!$C$3:$BC$249,'Prevalence Rates'!$BD75,FALSE) -> 0.3831043691 | H75: =HLOOKUP(Calculations!$E$2,'Population 2016'!$C$3:$BC$249,'Population 2016'!BD75,FALSE) -> 19138 | I75: 0 | J75: =HLOOKUP(Results!E$4,Targeting!$C$3:$F$249,Targeting!$G75,FALSE) -> 3862 | K75: =IF(AND(OR(Calculations!$E$2="Orkney Health Board",Calculations!$E$2="Orkney Islands Local Authority"),$F75=1),0,IF(AND(OR(Calculations!$E$2="Shetland Health Board",Calculations!$E$2="Western Isles Health Board",Calculations!$E$2="Shetland Islands Local Authority",Calculations!$E$2="Eilean Siar Local Authority"),OR($F75=1,$F75=5)),0,new_ci(VALUE(LEFT(Options!$B$24,2)),$C75,$E75,$F75,2016,$I75,1,$H75,$G75*$H75,Options!$B$8))) -> 924.5476877 | L75: =IF(AND(OR(Calculations!$E$2="Orkney Health Board",Calculations!$E$2="Orkney Islands Local Authority"),$F75=1),0,IF(AND(OR(Calculations!$E$2="Shetland Health Board",Calculations!$E$2="Western Isles Health Board",Calculations!$E$2="Shetland Islands Local Authority",Calculations!$E$2="Eilean Siar Local Authority"),OR($F75=1,$F75=5)),0,new_ci(VALUE(LEFT(Options!$B$24,2)),$C75,$E75,$F75,2016,$I75+$J75,1,$H75,$G75*$H75,Options!$B$8))) -> 893.7731635 | M75: =IF(AND(OR(Calculations!$E$2="Orkney Health Board",Calculations!$E$2="Orkney Islands Local Authority"),$F75=1),0,IF(AND(OR(Calculations!$E$2="Shetland Health Board",Calculations!$E$2="Western Isles Health Board",Calculations!$E$2="Shetland Islands Local Authority",Calculations!$E$2="Eilean Siar Local Authority"),OR($F75=1,$F75=5)),0,new_yllv2(VALUE(LEFT(Options!$B$24,2)),$C75,$D75,$E75,$F75,2016,$I75,1,$H75,$G75*$H75,Options!$B$8))) -> 9125.290301 | N75: =IF(AND(OR(Calculations!$E$2="Orkney Health Board",Calculations!$E$2="Orkney Islands Local Authority"),$F75=1),0,IF(AND(OR(Calculations!$E$2="Shetland Health Board",Calculations!$E$2="Western Isles Health Board",Calculations!$E$2="Shetland Islands Local Authority",Calculations!$E$2="Eilean Siar Local Authority"),OR($F75=1,$F75=5)),0,new_yllv2(VALUE(LEFT(Options!$B$24,2)),$C75,$D75,$E75,$F75,2016,$I75+$J75,1,$H75,$G75*$H75,Options!$B$8))) -> 8821.545592 | O75: =IF(AND(OR(Calculations!$E$2="Orkney Health Board",Calculations!$E$2="Orkney Islands Local Authority"),$F75=1),0,IF(AND(OR(Calculations!$E$2="Shetland Health Board",Calculations!$E$2="Western Isles Health Board",Calculations!$E$2="Shetland Islands Local Authority",Calculations!$E$2="Eilean Siar Local Authority"),OR($F75=1,$F75=5)),0,hosp_count(VALUE(LEFT(Options!$B$24,2)),$C75,$E75,$F75,2016,$I75,1,$H75,$G75*$H75, Options!$B$8))) -> 12145.91145 | P75: =IF(AND(OR(Calculations!$E$2="Orkney Health Board",Calculations!$E$2="Orkney Islands Local Authority"),$F75=1),0,IF(AND(OR(Calculations!$E$2="Shetland Health Board",Calculations!$E$2="Western Isles Health Board",Calculations!$E$2="Shetland Islands Local Authority",Calculations!$E$2="Eilean Siar Local Authority"),OR($F75=1,$F75=5)),0,hosp_count(VALUE(LEFT(Options!$B$24,2)),$C75,$E75,$F75,2016,$I75+$J75,1,$H75,$G75*$H75, Options!$B$8))) -> 12078.64654 | Q75: =IF(AND(OR(Calculations!$E$2="Orkney Health Board",Calculations!$E$2="Orkney Islands Local Authority"),$F75=1),0,IF(AND(OR(Calculations!$E$2="Shetland Health Board",Calculations!$E$2="Western Isles Health Board",Calculations!$E$2="Shetland Islands Local Authority",Calculations!$E$2="Eilean Siar Local Authority"),OR($F75=1,$F75=5)),0,prem_mort(VALUE(LEFT(Options!$B$24,2)),$C75,$E75,$F75,2016,$I75,1,$H75,$G75*$H75,Options!$B$8))) -> 0 | R75: =IF(AND(OR(Calculations!$E$2="Orkney Health Board",Calculations!$E$2="Orkney Islands Local Authority"),$F75=1),0,IF(AND(OR(Calculations!$E$2="Shetland Health Board",Calculations!$E$2="Western Isles Health Board",Calculations!$E$2="Shetland Islands Local Authority",Calculations!$E$2="Eilean Siar Local Authority"),OR($F75=1,$F75=5)),0,prem_mort(VALUE(LEFT(Options!$B$24,2)),$C75,$E75,$F75,2016,$I75+$J75,1,$H75,$G75*$H75,Options!$B$8))) -> 0 | S75: 4830.952491 | T75: 4670.14925 | U75: 47681.52524 | V75: 46094.39645 | W75: 63464.8942 | X75: 63113.42115 | Y75: 0 | Z75: 0 | AA75: 19323809.96 | AB75: 18680597 | AC75: 190726101 | AD75: 184377585.8 | AE75: 253859576.8 | AF75: 252453684.6 | AG75: 0 | AH75: 0 | AI75: 4000
B76: Female 80-84 | C76: 81.856712 | D76: 89.73671 | E76: female | F76: 1 | G76: =HLOOKUP(Calculations!$E$2,'Prevalence Rates'!$C$3:$BC$249,'Prevalence Rates'!$BD76,FALSE) -> 0.3831043691 | H76: =HLOOKUP(Calculations!$E$2,'Population 2016'!$C$3:$BC$249,'Population 2016'!BD76,FALSE) -> 14776 | I76: 0 | J76: =HLOOKUP(Results!E$4,Targeting!$C$3:$F$249,Targeting!$G76,FALSE) -> 2981 | K76: =IF(AND(OR(Calculations!$E$2="Orkney Health Board",Calculations!$E$2="Orkney Islands Local Authority"),$F76=1),0,IF(AND(OR(Calculations!$E$2="Shetland Health Board",Calculations!$E$2="Western Isles Health Board",Calculations!$E$2="Shetland Islands Local Authority",Calculations!$E$2="Eilean Siar Local Authority"),OR($F76=1,$F76=5)),0,new_ci(VALUE(LEFT(Options!$B$24,2)),$C76,$E76,$F76,2016,$I76,1,$H76,$G76*$H76,Options!$B$8))) -> 1069.337694 | L76: =IF(AND(OR(Calculations!$E$2="Orkney Health Board",Calculations!$E$2="Orkney Islands Local Authority"),$F76=1),0,IF(AND(OR(Calculations!$E$2="Shetland Health Board",Calculations!$E$2="Western Isles Health Board",Calculations!$E$2="Shetland Islands Local Authority",Calculations!$E$2="Eilean Siar Local Authority"),OR($F76=1,$F76=5)),0,new_ci(VALUE(LEFT(Options!$B$24,2)),$C76,$E76,$F76,2016,$I76+$J76,1,$H76,$G76*$H76,Options!$B$8))) -> 1034.435917 | M76: =IF(AND(OR(Calculations!$E$2="Orkney Health Board",Calculations!$E$2="Orkney Islands Local Authority"),$F76=1),0,IF(AND(OR(Calculations!$E$2="Shetland Health Board",Calculations!$E$2="Western Isles Health Board",Calculations!$E$2="Shetland Islands Local Authority",Calculations!$E$2="Eilean Siar Local Authority"),OR($F76=1,$F76=5)),0,new_yllv2(VALUE(LEFT(Options!$B$24,2)),$C76,$D76,$E76,$F76,2016,$I76,1,$H76,$G76*$H76,Options!$B$8))) -> 7357.041196 | N76: =IF(AND(OR(Calculations!$E$2="Orkney Health Board",Calculations!$E$2="Orkney Islands Local Authority"),$F76=1),0,IF(AND(OR(Calculations!$E$2="Shetland Health Board",Calculations!$E$2="Western Isles Health Board",Calculations!$E$2="Shetland Islands Local Authority",Calculations!$E$2="Eilean Siar Local Authority"),OR($F76=1,$F76=5)),0,new_yllv2(VALUE(LEFT(Options!$B$24,2)),$C76,$D76,$E76,$F76,2016,$I76+$J76,1,$H76,$G76*$H76,Options!$B$8))) -> 7116.917038 | O76: =IF(AND(OR(Calculations!$E$2="Orkney Health Board",Calculations!$E$2="Orkney Islands Local Authority"),$F76=1),0,IF(AND(OR(Calculations!$E$2="Shetland Health Board",Calculations!$E$2="Western Isles Health Board",Calculations!$E$2="Shetland Islands Local Authority",Calculations!$E$2="Eilean Siar Local Authority"),OR($F76=1,$F76=5)),0,hosp_count(VALUE(LEFT(Options!$B$24,2)),$C76,$E76,$F76,2016,$I76,1,$H76,$G76*$H76, Options!$B$8))) -> 10611.34119 | P76: =IF(AND(OR(Calculations!$E$2="Orkney Health Board",Calculations!$E$2="Orkney Islands Local Authority"),$F76=1),0,IF(AND(OR(Calculations!$E$2="Shetland Health Board",Calculations!$E$2="Western Isles Health Board",Calculations!$E$2="Shetland Islands Local Authority",Calculations!$E$2="Eilean Siar Local Authority"),OR($F76=1,$F76=5)),0,hosp_count(VALUE(LEFT(Options!$B$24,2)),$C76,$E76,$F76,2016,$I76+$J76,1,$H76,$G76*$H76, Options!$B$8))) -> 10552.58981 | Q76: =IF(AND(OR(Calculations!$E$2="Orkney Health Board",Calculations!$E$2="Orkney Islands Local Authority"),$F76=1),0,IF(AND(OR(Calculations!$E$2="Shetland Health Board",Calculations!$E$2="Western Isles Health Board",Calculations!$E$2="Shetland Islands Local Authority",Calculations!$E$2="Eilean Siar Local Authority"),OR($F76=1,$F76=5)),0,prem_mort(VALUE(LEFT(Options!$B$24,2)),$C76,$E76,$F76,2016,$I76,1,$H76,$G76*$H76,Options!$B$8))) -> 0 | R76: =IF(AND(OR(Calculations!$E$2="Orkney Health Board",Calculations!$E$2="Orkney Islands Local Authority"),$F76=1),0,IF(AND(OR(Calculations!$E$2="Shetland Health Board",Calculations!$E$2="Western Isles Health Board",Calculations!$E$2="Shetland Islands Local Authority",Calculations!$E$2="Eilean Siar Local Authority"),OR($F76=1,$F76=5)),0,prem_mort(VALUE(LEFT(Options!$B$24,2)),$C76,$E76,$F76,2016,$I76+$J76,1,$H76,$G76*$H76,Options!$B$8))) -> 0 | S76: 7236.990349 | T76: 7000.784494 | U76: 49790.47913 | V76: 48165.38331 | W76: 71814.70758 | X76: 71417.09398 | Y76: 0 | Z76: 0 | AA76: 18092475.87 | AB76: 17501961.23 | AC76: 124476197.8 | AD76: 120413458.3 | AE76: 179536769 | AF76: 178542734.9 | AG76: 0 | AH76: 0 | AI76: 2500
B77: Female 85-89 | C77: 86.73082 | D77: 92.22082 | E77: female | F77: 1 | G77: =HLOOKUP(Calculations!$E$2,'Prevalence Rates'!$C$3:$BC$249,'Prevalence Rates'!$BD77,FALSE) -> 0.3831043691 | H77: =HLOOKUP(Calculations!$E$2,'Population 2016'!$C$3:$BC$249,'Population 2016'!BD77,FALSE) -> 8869 | I77: 0 | J77: =HLOOKUP(Results!E$4,Targeting!$C$3:$F$249,Targeting!$G77,FALSE) -> 1790 | K77: =IF(AND(OR(Calculations!$E$2="Orkney Health Board",Calculations!$E$2="Orkney Islands Local Authority"),$F77=1),0,IF(AND(OR(Calculations!$E$2="Shetland Health Board",Calculations!$E$2="Western Isles Health Board",Calculations!$E$2="Shetland Islands Local Authority",Calculations!$E$2="Eilean Siar Local Authority"),OR($F77=1,$F77=5)),0,new_ci(VALUE(LEFT(Options!$B$24,2)),$C77,$E77,$F77,2016,$I77,1,$H77,$G77*$H77,Options!$B$8))) -> 951.7896084 | L77: =IF(AND(OR(Calculations!$E$2="Orkney Health Board",Calculations!$E$2="Orkney Islands Local Authority"),$F77=1),0,IF(AND(OR(Calculations!$E$2="Shetland Health Board",Calculations!$E$2="Western Isles Health Board",Calculations!$E$2="Shetland Islands Local Authority",Calculations!$E$2="Eilean Siar Local Authority"),OR($F77=1,$F77=5)),0,new_ci(VALUE(LEFT(Options!$B$24,2)),$C77,$E77,$F77,2016,$I77+$J77,1,$H77,$G77*$H77,Options!$B$8))) -> 921.6096197 | M77: =IF(AND(OR(Calculations!$E$2="Orkney Health Board",Calculations!$E$2="Orkney Islands Local Authority"),$F77=1),0,IF(AND(OR(Calculations!$E$2="Shetland Health Board",Calculations!$E$2="Western Isles Health Board",Calculations!$E$2="Shetland Islands Local Authority",Calculations!$E$2="Eilean Siar Local Authority"),OR($F77=1,$F77=5)),0,new_yllv2(VALUE(LEFT(Options!$B$24,2)),$C77,$D77,$E77,$F77,2016,$I77,1,$H77,$G77*$H77,Options!$B$8))) -> 4273.535342 | N77: =IF(AND(OR(Calculations!$E$2="Orkney Health Board",Calculations!$E$2="Orkney Islands Local Authority"),$F77=1),0,IF(AND(OR(Calculations!$E$2="Shetland Health Board",Calculations!$E$2="Western Isles Health Board",Calculations!$E$2="Shetland Islands Local Authority",Calculations!$E$2="Eilean Siar Local Authority"),OR($F77=1,$F77=5)),0,new_yllv2(VALUE(LEFT(Options!$B$24,2)),$C77,$D77,$E77,$F77,2016,$I77+$J77,1,$H77,$G77*$H77,Options!$B$8))) -> 4138.027193 | O77: =IF(AND(OR(Calculations!$E$2="Orkney Health Board",Calculations!$E$2="Orkney Islands Local Authority"),$F77=1),0,IF(AND(OR(Calculations!$E$2="Shetland Health Board",Calculations!$E$2="Western Isles Health Board",Calculations!$E$2="Shetland Islands Local Authority",Calculations!$E$2="Eilean Siar Local Authority"),OR($F77=1,$F77=5)),0,hosp_count(VALUE(LEFT(Options!$B$24,2)),$C77,$E77,$F77,2016,$I77,1,$H77,$G77*$H77, Options!$B$8))) -> 7200.01394 | P77: =IF(AND(OR(Calculations!$E$2="Orkney Health Board",Calculations!$E$2="Orkney Islands Local Authority"),$F77=1),0,IF(AND(OR(Calculations!$E$2="Shetland Health Board",Calculations!$E$2="Western Isles Health Board",Calculations!$E$2="Shetland Islands Local Authority",Calculations!$E$2="Eilean Siar Local Authority"),OR($F77=1,$F77=5)),0,hosp_count(VALUE(LEFT(Options!$B$24,2)),$C77,$E77,$F77,2016,$I77+$J77,1,$H77,$G77*$H77, Options!$B$8))) -> 7160.134003 | Q77: =IF(AND(OR(Calculations!$E$2="Orkney Health Board",Calculations!$E$2="Orkney Islands Local Authority"),$F77=1),0,IF(AND(OR(Calculations!$E$2="Shetland Health Board",Calculations!$E$2="Western Isles Health Board",Calculations!$E$2="Shetland Islands Local Authority",Calculations!$E$2="Eilean Siar Local Authority"),OR($F77=1,$F77=5)),0,prem_mort(VALUE(LEFT(Options!$B$24,2)),$C77,$E77,$F77,2016,$I77,1,$H77,$G77*$H77,Options!$B$8))) -> 0 | R77: =IF(AND(OR(Calculations!$E$2="Orkney Health Board",Calculations!$E$2="Orkney Islands Local Authority"),$F77=1),0,IF(AND(OR(Calculations!$E$2="Shetland Health Board",Calculations!$E$2="Western Isles Health Board",Calculations!$E$2="Shetland Islands Local Authority",Calculations!$E$2="Eilean Siar Local Authority"),OR($F77=1,$F77=5)),0,prem_mort(VALUE(LEFT(Options!$B$24,2)),$C77,$E77,$F77,2016,$I77+$J77,1,$H77,$G77*$H77,Options!$B$8))) -> 0 | S77: 10731.64515 | T77: 10391.35889 | U77: 48185.08673 | V77: 46657.2014 | W77: 81181.8011 | X77: 80732.14571 | Y77: 0 | Z77: 0 | AA77: 16097467.73 | AB77: 15587038.33 | AC77: 72277630.09 | AD77: 69985802.11 | AE77: 121772701.7 | AF77: 121098218.6 | AG77: 0 | AH77: 0 | AI77: 1500
B78: Female 90+ | C78: 92.779343 | D78: 96.27934 | E78: female | F78: 1 | G78: =HLOOKUP(Calculations!$E$2,'Prevalence Rates'!$C$3:$BC$249,'Prevalence Rates'!$BD78,FALSE) -> 0.3831043691 | H78: =HLOOKUP(Calculations!$E$2,'Population 2016'!$C$3:$BC$249,'Population 2016'!BD78,FALSE) -> 4825 | I78: 0 | J78: =HLOOKUP(Results!E$4,Targeting!$C$3:$F$249,Targeting!$G78,FALSE) -> 974 | K78: =IF(AND(OR(Calculations!$E$2="Orkney Health Board",Calculations!$E$2="Orkney Islands Local Authority"),$F78=1),0,IF(AND(OR(Calculations!$E$2="Shetland Health Board",Calculations!$E$2="Western Isles Health Board",Calculations!$E$2="Shetland Islands Local Authority",Calculations!$E$2="Eilean Siar Local Authority"),OR($F78=1,$F78=5)),0,new_ci(VALUE(LEFT(Options!$B$24,2)),$C78,$E78,$F78,2016,$I78,1,$H78,$G78*$H78,Options!$B$8))) -> 831.9924079 | L78: =IF(AND(OR(Calculations!$E$2="Orkney Health Board",Calculations!$E$2="Orkney Islands Local Authority"),$F78=1),0,IF(AND(OR(Calculations!$E$2="Shetland Health Board",Calculations!$E$2="Western Isles Health Board",Calculations!$E$2="Shetland Islands Local Authority",Calculations!$E$2="Eilean Siar Local Authority"),OR($F78=1,$F78=5)),0,new_ci(VALUE(LEFT(Options!$B$24,2)),$C78,$E78,$F78,2016,$I78+$J78,1,$H78,$G78*$H78,Options!$B$8))) -> 807.1088007 | M78: =IF(AND(OR(Calculations!$E$2="Orkney Health Board",Calculations!$E$2="Orkney Islands Local Authority"),$F78=1),0,IF(AND(OR(Calculations!$E$2="Shetland Health Board",Calculations!$E$2="Western Isles Health Board",Calculations!$E$2="Shetland Islands Local Authority",Calculations!$E$2="Eilean Siar Local Authority"),OR($F78=1,$F78=5)),0,new_yllv2(VALUE(LEFT(Options!$B$24,2)),$C78,$D78,$E78,$F78,2016,$I78,1,$H78,$G78*$H78,Options!$B$8))) -> 2079.978524 | N78: =IF(AND(OR(Calculations!$E$2="Orkney Health Board",Calculations!$E$2="Orkney Islands Local Authority"),$F78=1),0,IF(AND(OR(Calculations!$E$2="Shetland Health Board",Calculations!$E$2="Western Isles Health Board",Calculations!$E$2="Shetland Islands Local Authority",Calculations!$E$2="Eilean Siar Local Authority"),OR($F78=1,$F78=5)),0,new_yllv2(VALUE(LEFT(Options!$B$24,2)),$C78,$D78,$E78,$F78,2016,$I78+$J78,1,$H78,$G78*$H78,Options!$B$8))) -> 2017.76958 | O78: =IF(AND(OR(Calculations!$E$2="Orkney Health Board",Calculations!$E$2="Orkney Islands Local Authority"),$F78=1),0,IF(AND(OR(Calculations!$E$2="Shetland Health Board",Calculations!$E$2="Western Isles Health Board",Calculations!$E$2="Shetland Islands Local Authority",Calculations!$E$2="Eilean Siar Local Authority"),OR($F78=1,$F78=5)),0,hosp_count(VALUE(LEFT(Options!$B$24,2)),$C78,$E78,$F78,2016,$I78,1,$H78,$G78*$H78, Options!$B$8))) -> 4560.691784 | P78: =IF(AND(OR(Calculations!$E$2="Orkney Health Board",Calculations!$E$2="Orkney Islands Local Authority"),$F78=1),0,IF(AND(OR(Calculations!$E$2="Shetland Health Board",Calculations!$E$2="Western Isles Health Board",Calculations!$E$2="Shetland Islands Local Authority",Calculations!$E$2="Eilean Siar Local Authority"),OR($F78=1,$F78=5)),0,hosp_count(VALUE(LEFT(Options!$B$24,2)),$C78,$E78,$F78,2016,$I78+$J78,1,$H78,$G78*$H78, Options!$B$8))) -> 4535.425864 | Q78: =IF(AND(OR(Calculations!$E$2="Orkney Health Board",Calculations!$E$2="Orkney Islands Local Authority"),$F78=1),0,IF(AND(OR(Calculations!$E$2="Shetland Health Board",Calculations!$E$2="Western Isles Health Board",Calculations!$E$2="Shetland Islands Local Authority",Calculations!$E$2="Eilean Siar Local Authority"),OR($F78=1,$F78=5)),0,prem_mort(VALUE(LEFT(Options!$B$24,2)),$C78,$E78,$F78,2016,$I78,1,$H78,$G78*$H78,Options!$B$8))) -> 0 | R78: =IF(AND(OR(Calculations!$E$2="Orkney Health Board",Calculations!$E$2="Orkney Islands Local Authority"),$F78=1),0,IF(AND(OR(Calculations!$E$2="Shetland Health Board",Calculations!$E$2="Western Isles Health Board",Calculations!$E$2="Shetland Islands Local Authority",Calculations!$E$2="Eilean Siar Local Authority"),OR($F78=1,$F78=5)),0,prem_mort(VALUE(LEFT(Options!$B$24,2)),$C78,$E78,$F78,2016,$I78+$J78,1,$H78,$G78*$H78,Options!$B$8))) -> 0 | S78: 17243.36597 | T78: 16727.64354 | U78: 43108.36318 | V78: 41819.05866 | W78: 94522.10951 | X78: 93998.46351 | Y78: 0 | Z78: 0 | AA78: 17243365.97 | AB78: 16727643.54 | AC78: 43108363.18 | AD78: 41819058.66 | AE78: 94522109.51 | AF78: 93998463.51 | AG78: 0 | AH78: 0 | AI78: 1000
B79: Male 0-4 | C79: 2.0320823 | D79: 77.402082 | E79: male | F79: 1 | G79: =HLOOKUP(Calculations!$E$2,'Prevalence Rates'!$C$3:$BC$249,'Prevalence Rates'!$BD79,FALSE) -> 0 | H79: =HLOOKUP(Calculations!$E$2,'Population 2016'!$C$3:$BC$249,'Population 2016'!BD79,FALSE) -> 0 | I79: 0 | J79: =HLOOKUP(Results!E$4,Targeting!$C$3:$F$249,Targeting!$G79,FALSE) -> 0 | K79: =IF(AND(OR(Calculations!$E$2="Orkney Health Board",Calculations!$E$2="Orkney Islands Local Authority"),$F79=1),0,IF(AND(OR(Calculations!$E$2="Shetland Health Board",Calculations!$E$2="Western Isles Health Board",Calculations!$E$2="Shetland Islands Local Authority",Calculations!$E$2="Eilean Siar Local Authority"),OR($F79=1,$F79=5)),0,new_ci(VALUE(LEFT(Options!$B$24,2)),$C79,$E79,$F79,2016,$I79,1,$H79,$G79*$H79,Options!$B$8))) ->  | L79: =IF(AND(OR(Calculations!$E$2="Orkney Health Board",Calculations!$E$2="Orkney Islands Local Authority"),$F79=1),0,IF(AND(OR(Calculations!$E$2="Shetland Health Board",Calculations!$E$2="Western Isles Health Board",Calculations!$E$2="Shetland Islands Local Authority",Calculations!$E$2="Eilean Siar Local Authority"),OR($F79=1,$F79=5)),0,new_ci(VALUE(LEFT(Options!$B$24,2)),$C79,$E79,$F79,2016,$I79+$J79,1,$H79,$G79*$H79,Options!$B$8))) ->  | M79: =IF(AND(OR(Calculations!$E$2="Orkney Health Board",Calculations!$E$2="Orkney Islands Local Authority"),$F79=1),0,IF(AND(OR(Calculations!$E$2="Shetland Health Board",Calculations!$E$2="Western Isles Health Board",Calculations!$E$2="Shetland Islands Local Authority",Calculations!$E$2="Eilean Siar Local Authority"),OR($F79=1,$F79=5)),0,new_yllv2(VALUE(LEFT(Options!$B$24,2)),$C79,$D79,$E79,$F79,2016,$I79,1,$H79,$G79*$H79,Options!$B$8))) ->  | N79: =IF(AND(OR(Calculations!$E$2="Orkney Health Board",Calculations!$E$2="Orkney Islands Local Authority"),$F79=1),0,IF(AND(OR(Calculations!$E$2="Shetland Health Board",Calculations!$E$2="Western Isles Health Board",Calculations!$E$2="Shetland Islands Local Authority",Calculations!$E$2="Eilean Siar Local Authority"),OR($F79=1,$F79=5)),0,new_yllv2(VALUE(LEFT(Options!$B$24,2)),$C79,$D79,$E79,$F79,2016,$I79+$J79,1,$H79,$G79*$H79,Options!$B$8))) ->  | O79: =IF(AND(OR(Calculations!$E$2="Orkney Health Board",Calculations!$E$2="Orkney Islands Local Authority"),$F79=1),0,IF(AND(OR(Calculations!$E$2="Shetland Health Board",Calculations!$E$2="Western Isles Health Board",Calculations!$E$2="Shetland Islands Local Authority",Calculations!$E$2="Eilean Siar Local Authority"),OR($F79=1,$F79=5)),0,hosp_count(VALUE(LEFT(Options!$B$24,2)),$C79,$E79,$F79,2016,$I79,1,$H79,$G79*$H79, Options!$B$8))) ->  | P79: =IF(AND(OR(Calculations!$E$2="Orkney Health Board",Calculations!$E$2="Orkney Islands Local Authority"),$F79=1),0,IF(AND(OR(Calculations!$E$2="Shetland Health Board",Calculations!$E$2="Western Isles Health Board",Calculations!$E$2="Shetland Islands Local Authority",Calculations!$E$2="Eilean Siar Local Authority"),OR($F79=1,$F79=5)),0,hosp_count(VALUE(LEFT(Options!$B$24,2)),$C79,$E79,$F79,2016,$I79+$J79,1,$H79,$G79*$H79, Options!$B$8))) ->  | Q79: =IF(AND(OR(Calculations!$E$2="Orkney Health Board",Calculations!$E$2="Orkney Islands Local Authority"),$F79=1),0,IF(AND(OR(Calculations!$E$2="Shetland Health Board",Calculations!$E$2="Western Isles Health Board",Calculations!$E$2="Shetland Islands Local Authority",Calculations!$E$2="Eilean Siar Local Authority"),OR($F79=1,$F79=5)),0,prem_mort(VALUE(LEFT(Options!$B$24,2)),$C79,$E79,$F79,2016,$I79,1,$H79,$G79*$H79,Options!$B$8))) ->  | R79: =IF(AND(OR(Calculations!$E$2="Orkney Health Board",Calculations!$E$2="Orkney Islands Local Authority"),$F79=1),0,IF(AND(OR(Calculations!$E$2="Shetland Health Board",Calculations!$E$2="Western Isles Health Board",Calculations!$E$2="Shetland Islands Local Authority",Calculations!$E$2="Eilean Siar Local Authority"),OR($F79=1,$F79=5)),0,prem_mort(VALUE(LEFT(Options!$B$24,2)),$C79,$E79,$F79,2016,$I79+$J79,1,$H79,$G79*$H79,Options!$B$8))) ->  | AI79: 5000
B80: Male 5-9 | C80: 6.9784756 | D80: 77.398476 | E80: male | F80: 1 | G80: =HLOOKUP(Calculations!$E$2,'Prevalence Rates'!$C$3:$BC$249,'Prevalence Rates'!$BD80,FALSE) -> 0 | H80: =HLOOKUP(Calculations!$E$2,'Population 2016'!$C$3:$BC$249,'Population 2016'!BD80,FALSE) -> 0 | I80: 0 | J80: =HLOOKUP(Results!E$4,Targeting!$C$3:$F$249,Targeting!$G80,FALSE) -> 0 | K80: =IF(AND(OR(Calculations!$E$2="Orkney Health Board",Calculations!$E$2="Orkney Islands Local Authority"),$F80=1),0,IF(AND(OR(Calculations!$E$2="Shetland Health Board",Calculations!$E$2="Western Isles Health Board",Calculations!$E$2="Shetland Islands Local Authority",Calculations!$E$2="Eilean Siar Local Authority"),OR($F80=1,$F80=5)),0,new_ci(VALUE(LEFT(Options!$B$24,2)),$C80,$E80,$F80,2016,$I80,1,$H80,$G80*$H80,Options!$B$8))) ->  | L80: =IF(AND(OR(Calculations!$E$2="Orkney Health Board",Calculations!$E$2="Orkney Islands Local Authority"),$F80=1),0,IF(AND(OR(Calculations!$E$2="Shetland Health Board",Calculations!$E$2="Western Isles Health Board",Calculations!$E$2="Shetland Islands Local Authority",Calculations!$E$2="Eilean Siar Local Authority"),OR($F80=1,$F80=5)),0,new_ci(VALUE(LEFT(Options!$B$24,2)),$C80,$E80,$F80,2016,$I80+$J80,1,$H80,$G80*$H80,Options!$B$8))) ->  | M80: =IF(AND(OR(Calculations!$E$2="Orkney Health Board",Calculations!$E$2="Orkney Islands Local Authority"),$F80=1),0,IF(AND(OR(Calculations!$E$2="Shetland Health Board",Calculations!$E$2="Western Isles Health Board",Calculations!$E$2="Shetland Islands Local Authority",Calculations!$E$2="Eilean Siar Local Authority"),OR($F80=1,$F80=5)),0,new_yllv2(VALUE(LEFT(Options!$B$24,2)),$C80,$D80,$E80,$F80,2016,$I80,1,$H80,$G80*$H80,Options!$B$8))) ->  | N80: =IF(AND(OR(Calculations!$E$2="Orkney Health Board",Calculations!$E$2="Orkney Islands Local Authority"),$F80=1),0,IF(AND(OR(Calculations!$E$2="Shetland Health Board",Calculations!$E$2="Western Isles Health Board",Calculations!$E$2="Shetland Islands Local Authority",Calculations!$E$2="Eilean Siar Local Authority"),OR($F80=1,$F80=5)),0,new_yllv2(VALUE(LEFT(Options!$B$24,2)),$C80,$D80,$E80,$F80,2016,$I80+$J80,1,$H80,$G80*$H80,Options!$B$8))) ->  | O80: =IF(AND(OR(Calculations!$E$2="Orkney Health Board",Calculations!$E$2="Orkney Islands Local Authority"),$F80=1),0,IF(AND(OR(Calculations!$E$2="Shetland Health Board",Calculations!$E$2="Western Isles Health Board",Calculations!$E$2="Shetland Islands Local Authority",Calculations!$E$2="Eilean Siar Local Authority"),OR($F80=1,$F80=5)),0,hosp_count(VALUE(LEFT(Options!$B$24,2)),$C80,$E80,$F80,2016,$I80,1,$H80,$G80*$H80, Options!$B$8))) ->  | P80: =IF(AND(OR(Calculations!$E$2="Orkney Health Board",Calculations!$E$2="Orkney Islands Local Authority"),$F80=1),0,IF(AND(OR(Calculations!$E$2="Shetland Health Board",Calculations!$E$2="Western Isles Health Board",Calculations!$E$2="Shetland Islands Local Authority",Calculations!$E$2="Eilean Siar Local Authority"),OR($F80=1,$F80=5)),0,hosp_count(VALUE(LEFT(Options!$B$24,2)),$C80,$E80,$F80,2016,$I80+$J80,1,$H80,$G80*$H80, Options!$B$8))) ->  | Q80: =IF(AND(OR(Calculations!$E$2="Orkney Health Board",Calculations!$E$2="Orkney Islands Local Authority"),$F80=1),0,IF(AND(OR(Calculations!$E$2="Shetland Health Board",Calculations!$E$2="Western Isles Health Board",Calculations!$E$2="Shetland Islands Local Authority",Calculations!$E$2="Eilean Siar Local Authority"),OR($F80=1,$F80=5)),0,prem_mort(VALUE(LEFT(Options!$B$24,2)),$C80,$E80,$F80,2016,$I80,1,$H80,$G80*$H80,Options!$B$8))) ->  | R80: =IF(AND(OR(Calculations!$E$2="Orkney Health Board",Calculations!$E$2="Orkney Islands Local Authority"),$F80=1),0,IF(AND(OR(Calculations!$E$2="Shetland Health Board",Calculations!$E$2="Western Isles Health Board",Calculations!$E$2="Shetland Islands Local Authority",Calculations!$E$2="Eilean Siar Local Authority"),OR($F80=1,$F80=5)),0,prem_mort(VALUE(LEFT(Options!$B$24,2)),$C80,$E80,$F80,2016,$I80+$J80,1,$H80,$G80*$H80,Options!$B$8))) ->  | AI80: 5500
B81: Male 10-15 | C81: 12.471144 | D81: 77.92114 | E81: male | F81: 1 | G81: =HLOOKUP(Calculations!$E$2,'Prevalence Rates'!$C$3:$BC$249,'Prevalence Rates'!$BD81,FALSE) -> 0 | H81: =HLOOKUP(Calculations!$E$2,'Population 2016'!$C$3:$BC$249,'Population 2016'!BD81,FALSE) -> 0 | I81: 0 | J81: =HLOOKUP(Results!E$4,Targeting!$C$3:$F$249,Targeting!$G81,FALSE) -> 0 | K81: =IF(AND(OR(Calculations!$E$2="Orkney Health Board",Calculations!$E$2="Orkney Islands Local Authority"),$F81=1),0,IF(AND(OR(Calculations!$E$2="Shetland Health Board",Calculations!$E$2="Western Isles Health Board",Calculations!$E$2="Shetland Islands Local Authority",Calculations!$E$2="Eilean Siar Local Authority"),OR($F81=1,$F81=5)),0,new_ci(VALUE(LEFT(Options!$B$24,2)),$C81,$E81,$F81,2016,$I81,1,$H81,$G81*$H81,Options!$B$8))) ->  | L81: =IF(AND(OR(Calculations!$E$2="Orkney Health Board",Calculations!$E$2="Orkney Islands Local Authority"),$F81=1),0,IF(AND(OR(Calculations!$E$2="Shetland Health Board",Calculations!$E$2="Western Isles Health Board",Calculations!$E$2="Shetland Islands Local Authority",Calculations!$E$2="Eilean Siar Local Authority"),OR($F81=1,$F81=5)),0,new_ci(VALUE(LEFT(Options!$B$24,2)),$C81,$E81,$F81,2016,$I81+$J81,1,$H81,$G81*$H81,Options!$B$8))) ->  | M81: =IF(AND(OR(Calculations!$E$2="Orkney Health Board",Calculations!$E$2="Orkney Islands Local Authority"),$F81=1),0,IF(AND(OR(Calculations!$E$2="Shetland Health Board",Calculations!$E$2="Western Isles Health Board",Calculations!$E$2="Shetland Islands Local Authority",Calculations!$E$2="Eilean Siar Local Authority"),OR($F81=1,$F81=5)),0,new_yllv2(VALUE(LEFT(Options!$B$24,2)),$C81,$D81,$E81,$F81,2016,$I81,1,$H81,$G81*$H81,Options!$B$8))) ->  | N81: =IF(AND(OR(Calculations!$E$2="Orkney Health Board",Calculations!$E$2="Orkney Islands Local Authority"),$F81=1),0,IF(AND(OR(Calculations!$E$2="Shetland Health Board",Calculations!$E$2="Western Isles Health Board",Calculations!$E$2="Shetland Islands Local Authority",Calculations!$E$2="Eilean Siar Local Authority"),OR($F81=1,$F81=5)),0,new_yllv2(VALUE(LEFT(Options!$B$24,2)),$C81,$D81,$E81,$F81,2016,$I81+$J81,1,$H81,$G81*$H81,Options!$B$8))) ->  | O81: =IF(AND(OR(Calculations!$E$2="Orkney Health Board",Calculations!$E$2="Orkney Islands Local Authority"),$F81=1),0,IF(AND(OR(Calculations!$E$2="Shetland Health Board",Calculations!$E$2="Western Isles Health Board",Calculations!$E$2="Shetland Islands Local Authority",Calculations!$E$2="Eilean Siar Local Authority"),OR($F81=1,$F81=5)),0,hosp_count(VALUE(LEFT(Options!$B$24,2)),$C81,$E81,$F81,2016,$I81,1,$H81,$G81*$H81, Options!$B$8))) ->  | P81: =IF(AND(OR(Calculations!$E$2="Orkney Health Board",Calculations!$E$2="Orkney Islands Local Authority"),$F81=1),0,IF(AND(OR(Calculations!$E$2="Shetland Health Board",Calculations!$E$2="Western Isles Health Board",Calculations!$E$2="Shetland Islands Local Authority",Calculations!$E$2="Eilean Siar Local Authority"),OR($F81=1,$F81=5)),0,hosp_count(VALUE(LEFT(Options!$B$24,2)),$C81,$E81,$F81,2016,$I81+$J81,1,$H81,$G81*$H81, Options!$B$8))) ->  | Q81: =IF(AND(OR(Calculations!$E$2="Orkney Health Board",Calculations!$E$2="Orkney Islands Local Authority"),$F81=1),0,IF(AND(OR(Calculations!$E$2="Shetland Health Board",Calculations!$E$2="Western Isles Health Board",Calculations!$E$2="Shetland Islands Local Authority",Calculations!$E$2="Eilean Siar Local Authority"),OR($F81=1,$F81=5)),0,prem_mort(VALUE(LEFT(Options!$B$24,2)),$C81,$E81,$F81,2016,$I81,1,$H81,$G81*$H81,Options!$B$8))) ->  | R81: =IF(AND(OR(Calculations!$E$2="Orkney Health Board",Calculations!$E$2="Orkney Islands Local Authority"),$F81=1),0,IF(AND(OR(Calculations!$E$2="Shetland Health Board",Calculations!$E$2="Western Isles Health Board",Calculations!$E$2="Shetland Islands Local Authority",Calculations!$E$2="Eilean Siar Local Authority"),OR($F81=1,$F81=5)),0,prem_mort(VALUE(LEFT(Options!$B$24,2)),$C81,$E81,$F81,2016,$I81+$J81,1,$H81,$G81*$H81,Options!$B$8))) ->  | AI81: 6600
B82: Male 16-19 | C82: 17.556318 | D82: 77.07632 | E82: male | F82: 1 | G82: =HLOOKUP(Calculations!$E$2,'Prevalence Rates'!$C$3:$BC$249,'Prevalence Rates'!$BD82,FALSE) -> 0.1424014355 | H82: =HLOOKUP(Calculations!$E$2,'Population 2016'!$C$3:$BC$249,'Population 2016'!BD82,FALSE) -> 25359 | I82: 0 | J82: =HLOOKUP(Results!E$4,Targeting!$C$3:$F$249,Targeting!$G82,FALSE) -> 5117 | K82: =IF(AND(OR(Calculations!$E$2="Orkney Health Board",Calculations!$E$2="Orkney Islands Local Authority"),$F82=1),0,IF(AND(OR(Calculations!$E$2="Shetland Health Board",Calculations!$E$2="Western Isles Health Board",Calculations!$E$2="Shetland Islands Local Authority",Calculations!$E$2="Eilean Siar Local Authority"),OR($F82=1,$F82=5)),0,new_ci(VALUE(LEFT(Options!$B$24,2)),$C82,$E82,$F82,2016,$I82,1,$H82,$G82*$H82,Options!$B$8))) -> 19.17200961 | L82: =IF(AND(OR(Calculations!$E$2="Orkney Health Board",Calculations!$E$2="Orkney Islands Local Authority"),$F82=1),0,IF(AND(OR(Calculations!$E$2="Shetland Health Board",Calculations!$E$2="Western Isles Health Board",Calculations!$E$2="Shetland Islands Local Authority",Calculations!$E$2="Eilean Siar Local Authority"),OR($F82=1,$F82=5)),0,new_ci(VALUE(LEFT(Options!$B$24,2)),$C82,$E82,$F82,2016,$I82+$J82,1,$H82,$G82*$H82,Options!$B$8))) -> 18.39686956 | M82: =IF(AND(OR(Calculations!$E$2="Orkney Health Board",Calculations!$E$2="Orkney Islands Local Authority"),$F82=1),0,IF(AND(OR(Calculations!$E$2="Shetland Health Board",Calculations!$E$2="Western Isles Health Board",Calculations!$E$2="Shetland Islands Local Authority",Calculations!$E$2="Eilean Siar Local Authority"),OR($F82=1,$F82=5)),0,new_yllv2(VALUE(LEFT(Options!$B$24,2)),$C82,$D82,$E82,$F82,2016,$I82,1,$H82,$G82*$H82,Options!$B$8))) -> 1121.94604 | N82: =IF(AND(OR(Calculations!$E$2="Orkney Health Board",Calculations!$E$2="Orkney Islands Local Authority"),$F82=1),0,IF(AND(OR(Calculations!$E$2="Shetland Health Board",Calculations!$E$2="Western Isles Health Board",Calculations!$E$2="Shetland Islands Local Authority",Calculations!$E$2="Eilean Siar Local Authority"),OR($F82=1,$F82=5)),0,new_yllv2(VALUE(LEFT(Options!$B$24,2)),$C82,$D82,$E82,$F82,2016,$I82+$J82,1,$H82,$G82*$H82,Options!$B$8))) -> 1076.584843 | O82: =IF(AND(OR(Calculations!$E$2="Orkney Health Board",Calculations!$E$2="Orkney Islands Local Authority"),$F82=1),0,IF(AND(OR(Calculations!$E$2="Shetland Health Board",Calculations!$E$2="Western Isles Health Board",Calculations!$E$2="Shetland Islands Local Authority",Calculations!$E$2="Eilean Siar Local Authority"),OR($F82=1,$F82=5)),0,hosp_count(VALUE(LEFT(Options!$B$24,2)),$C82,$E82,$F82,2016,$I82,1,$H82,$G82*$H82, Options!$B$8))) -> 2447.125645 | P82: =IF(AND(OR(Calculations!$E$2="Orkney Health Board",Calculations!$E$2="Orkney Islands Local Authority"),$F82=1),0,IF(AND(OR(Calculations!$E$2="Shetland Health Board",Calculations!$E$2="Western Isles Health Board",Calculations!$E$2="Shetland Islands Local Authority",Calculations!$E$2="Eilean Siar Local Authority"),OR($F82=1,$F82=5)),0,hosp_count(VALUE(LEFT(Options!$B$24,2)),$C82,$E82,$F82,2016,$I82+$J82,1,$H82,$G82*$H82, Options!$B$8))) -> 2431.0065 | Q82: =IF(AND(OR(Calculations!$E$2="Orkney Health Board",Calculations!$E$2="Orkney Islands Local Authority"),$F82=1),0,IF(AND(OR(Calculations!$E$2="Shetland Health Board",Calculations!$E$2="Western Isles Health Board",Calculations!$E$2="Shetland Islands Local Authority",Calculations!$E$2="Eilean Siar Local Authority"),OR($F82=1,$F82=5)),0,prem_mort(VALUE(LEFT(Options!$B$24,2)),$C82,$E82,$F82,2016,$I82,1,$H82,$G82*$H82,Options!$B$8))) -> 19.17200961 | R82: =IF(AND(OR(Calculations!$E$2="Orkney Health Board",Calculations!$E$2="Orkney Islands Local Authority"),$F82=1),0,IF(AND(OR(Calculations!$E$2="Shetland Health Board",Calculations!$E$2="Western Isles Health Board",Calculations!$E$2="Shetland Islands Local Authority",Calculations!$E$2="Eilean Siar Local Authority"),OR($F82=1,$F82=5)),0,prem_mort(VALUE(LEFT(Options!$B$24,2)),$C82,$E82,$F82,2016,$I82+$J82,1,$H82,$G82*$H82,Options!$B$8))) -> 18.39686956 | S82: 75.60238813 | T82: 72.54572167 | U82: 4424.251904 | V82: 4245.375777 | W82: 9649.92959 | X82: 9586.365788 | Y82: 75.60238813 | Z82: 72.54572167 | AA82: 332650.5078 | AB82: 319201.1754 | AC82: 19466708.38 | AD82: 18679653.42 | AE82: 42459690.2 | AF82: 42180009.47 | AG82: 332650.5078 | AH82: 319201.1754 | AI82: 4400
B83: Male 20-24 | C83: 22.054632 | D83: 77.70463 | E83: male | F83: 1 | G83: =HLOOKUP(Calculations!$E$2,'Prevalence Rates'!$C$3:$BC$249,'Prevalence Rates'!$BD83,FALSE) -> 0.1424014355 | H83: =HLOOKUP(Calculations!$E$2,'Population 2016'!$C$3:$BC$249,'Population 2016'!BD83,FALSE) -> 37180 | I83: 0 | J83: =HLOOKUP(Results!E$4,Targeting!$C$3:$F$249,Targeting!$G83,FALSE) -> 7502 | K83: =IF(AND(OR(Calculations!$E$2="Orkney Health Board",Calculations!$E$2="Orkney Islands Local Authority"),$F83=1),0,IF(AND(OR(Calculations!$E$2="Shetland Health Board",Calculations!$E$2="Western Isles Health Board",Calculations!$E$2="Shetland Islands Local Authority",Calculations!$E$2="Eilean Siar Local Authority"),OR($F83=1,$F83=5)),0,new_ci(VALUE(LEFT(Options!$B$24,2)),$C83,$E83,$F83,2016,$I83,1,$H83,$G83*$H83,Options!$B$8))) -> 39.46991249 | L83: =IF(AND(OR(Calculations!$E$2="Orkney Health Board",Calculations!$E$2="Orkney Islands Local Authority"),$F83=1),0,IF(AND(OR(Calculations!$E$2="Shetland Health Board",Calculations!$E$2="Western Isles Health Board",Calculations!$E$2="Shetland Islands Local Authority",Calculations!$E$2="Eilean Siar Local Authority"),OR($F83=1,$F83=5)),0,new_ci(VALUE(LEFT(Options!$B$24,2)),$C83,$E83,$F83,2016,$I83+$J83,1,$H83,$G83*$H83,Options!$B$8))) -> 37.87464595 | M83: =IF(AND(OR(Calculations!$E$2="Orkney Health Board",Calculations!$E$2="Orkney Islands Local Authority"),$F83=1),0,IF(AND(OR(Calculations!$E$2="Shetland Health Board",Calculations!$E$2="Western Isles Health Board",Calculations!$E$2="Shetland Islands Local Authority",Calculations!$E$2="Eilean Siar Local Authority"),OR($F83=1,$F83=5)),0,new_yllv2(VALUE(LEFT(Options!$B$24,2)),$C83,$D83,$E83,$F83,2016,$I83,1,$H83,$G83*$H83,Options!$B$8))) -> 2157.030639 | N83: =IF(AND(OR(Calculations!$E$2="Orkney Health Board",Calculations!$E$2="Orkney Islands Local Authority"),$F83=1),0,IF(AND(OR(Calculations!$E$2="Shetland Health Board",Calculations!$E$2="Western Isles Health Board",Calculations!$E$2="Shetland Islands Local Authority",Calculations!$E$2="Eilean Siar Local Authority"),OR($F83=1,$F83=5)),0,new_yllv2(VALUE(LEFT(Options!$B$24,2)),$C83,$D83,$E83,$F83,2016,$I83+$J83,1,$H83,$G83*$H83,Options!$B$8))) -> 2069.849325 | O83: =IF(AND(OR(Calculations!$E$2="Orkney Health Board",Calculations!$E$2="Orkney Islands Local Authority"),$F83=1),0,IF(AND(OR(Calculations!$E$2="Shetland Health Board",Calculations!$E$2="Western Isles Health Board",Calculations!$E$2="Shetland Islands Local Authority",Calculations!$E$2="Eilean Siar Local Authority"),OR($F83=1,$F83=5)),0,hosp_count(VALUE(LEFT(Options!$B$24,2)),$C83,$E83,$F83,2016,$I83,1,$H83,$G83*$H83, Options!$B$8))) -> 4208.978207 | P83: =IF(AND(OR(Calculations!$E$2="Orkney Health Board",Calculations!$E$2="Orkney Islands Local Authority"),$F83=1),0,IF(AND(OR(Calculations!$E$2="Shetland Health Board",Calculations!$E$2="Western Isles Health Board",Calculations!$E$2="Shetland Islands Local Authority",Calculations!$E$2="Eilean Siar Local Authority"),OR($F83=1,$F83=5)),0,hosp_count(VALUE(LEFT(Options!$B$24,2)),$C83,$E83,$F83,2016,$I83+$J83,1,$H83,$G83*$H83, Options!$B$8))) -> 4181.254789 | Q83: =IF(AND(OR(Calculations!$E$2="Orkney Health Board",Calculations!$E$2="Orkney Islands Local Authority"),$F83=1),0,IF(AND(OR(Calculations!$E$2="Shetland Health Board",Calculations!$E$2="Western Isles Health Board",Calculations!$E$2="Shetland Islands Local Authority",Calculations!$E$2="Eilean Siar Local Authority"),OR($F83=1,$F83=5)),0,prem_mort(VALUE(LEFT(Options!$B$24,2)),$C83,$E83,$F83,2016,$I83,1,$H83,$G83*$H83,Options!$B$8))) -> 39.46991249 | R83: =IF(AND(OR(Calculations!$E$2="Orkney Health Board",Calculations!$E$2="Orkney Islands Local Authority"),$F83=1),0,IF(AND(OR(Calculations!$E$2="Shetland Health Board",Calculations!$E$2="Western Isles Health Board",Calculations!$E$2="Shetland Islands Local Authority",Calculations!$E$2="Eilean Siar Local Authority"),OR($F83=1,$F83=5)),0,prem_mort(VALUE(LEFT(Options!$B$24,2)),$C83,$E83,$F83,2016,$I83+$J83,1,$H83,$G83*$H83,Options!$B$8))) -> 37.87464595 | S83: 106.15899 | T83: 101.8683323 | U83: 5801.588592 | V83: 5567.104156 | W83: 11320.54386 | X83: 11245.97845 | Y83: 106.15899 | Z83: 101.8683323 | AA83: 636953.9401 | AB83: 611209.9938 | AC83: 34809531.55 | AD83: 33402624.94 | AE83: 67923263.16 | AF83: 67475870.72 | AG83: 636953.9401 | AH83: 611209.9938 | AI83: 6000
B84: Male 25-29 | C84: 26.959763 | D84: 77.78976 | E84: male | F84: 1 | G84: =HLOOKUP(Calculations!$E$2,'Prevalence Rates'!$C$3:$BC$249,'Prevalence Rates'!$BD84,FALSE) -> 0.238606323 | H84: =HLOOKUP(Calculations!$E$2,'Population 2016'!$C$3:$BC$249,'Population 2016'!BD84,FALSE) -> 42600 | I84: 0 | J84: =HLOOKUP(Results!E$4,Targeting!$C$3:$F$249,Targeting!$G84,FALSE) -> 8596 | K84: =IF(AND(OR(Calculations!$E$2="Orkney Health Board",Calculations!$E$2="Orkney Islands Local Authority"),$F84=1),0,IF(AND(OR(Calculations!$E$2="Shetland Health Board",Calculations!$E$2="Western Isles Health Board",Calculations!$E$2="Shetland Islands Local Authority",Calculations!$E$2="Eilean Siar Local Authority"),OR($F84=1,$F84=5)),0,new_ci(VALUE(LEFT(Options!$B$24,2)),$C84,$E84,$F84,2016,$I84,1,$H84,$G84*$H84,Options!$B$8))) -> 65.47583608 | L84: =IF(AND(OR(Calculations!$E$2="Orkney Health Board",Calculations!$E$2="Orkney Islands Local Authority"),$F84=1),0,IF(AND(OR(Calculations!$E$2="Shetland Health Board",Calculations!$E$2="Western Isles Health Board",Calculations!$E$2="Shetland Islands Local Authority",Calculations!$E$2="Eilean Siar Local Authority"),OR($F84=1,$F84=5)),0,new_ci(VALUE(LEFT(Options!$B$24,2)),$C84,$E84,$F84,2016,$I84+$J84,1,$H84,$G84*$H84,Options!$B$8))) -> 62.99935083 | M84: =IF(AND(OR(Calculations!$E$2="Orkney Health Board",Calculations!$E$2="Orkney Islands Local Authority"),$F84=1),0,IF(AND(OR(Calculations!$E$2="Shetland Health Board",Calculations!$E$2="Western Isles Health Board",Calculations!$E$2="Shetland Islands Local Authority",Calculations!$E$2="Eilean Siar Local Authority"),OR($F84=1,$F84=5)),0,new_yllv2(VALUE(LEFT(Options!$B$24,2)),$C84,$D84,$E84,$F84,2016,$I84,1,$H84,$G84*$H84,Options!$B$8))) -> 3262.660715 | N84: =IF(AND(OR(Calculations!$E$2="Orkney Health Board",Calculations!$E$2="Orkney Islands Local Authority"),$F84=1),0,IF(AND(OR(Calculations!$E$2="Shetland Health Board",Calculations!$E$2="Western Isles Health Board",Calculations!$E$2="Shetland Islands Local Authority",Calculations!$E$2="Eilean Siar Local Authority"),OR($F84=1,$F84=5)),0,new_yllv2(VALUE(LEFT(Options!$B$24,2)),$C84,$D84,$E84,$F84,2016,$I84+$J84,1,$H84,$G84*$H84,Options!$B$8))) -> 3139.257463 | O84: =IF(AND(OR(Calculations!$E$2="Orkney Health Board",Calculations!$E$2="Orkney Islands Local Authority"),$F84=1),0,IF(AND(OR(Calculations!$E$2="Shetland Health Board",Calculations!$E$2="Western Isles Health Board",Calculations!$E$2="Shetland Islands Local Authority",Calculations!$E$2="Eilean Siar Local Authority"),OR($F84=1,$F84=5)),0,hosp_count(VALUE(LEFT(Options!$B$24,2)),$C84,$E84,$F84,2016,$I84,1,$H84,$G84*$H84, Options!$B$8))) -> 5739.727444 | P84: =IF(AND(OR(Calculations!$E$2="Orkney Health Board",Calculations!$E$2="Orkney Islands Local Authority"),$F84=1),0,IF(AND(OR(Calculations!$E$2="Shetland Health Board",Calculations!$E$2="Western Isles Health Board",Calculations!$E$2="Shetland Islands Local Authority",Calculations!$E$2="Eilean Siar Local Authority"),OR($F84=1,$F84=5)),0,hosp_count(VALUE(LEFT(Options!$B$24,2)),$C84,$E84,$F84,2016,$I84+$J84,1,$H84,$G84*$H84, Options!$B$8))) -> 5703.515428 | Q84: =IF(AND(OR(Calculations!$E$2="Orkney Health Board",Calculations!$E$2="Orkney Islands Local Authority"),$F84=1),0,IF(AND(OR(Calculations!$E$2="Shetland Health Board",Calculations!$E$2="Western Isles Health Board",Calculations!$E$2="Shetland Islands Local Authority",Calculations!$E$2="Eilean Siar Local Authority"),OR($F84=1,$F84=5)),0,prem_mort(VALUE(LEFT(Options!$B$24,2)),$C84,$E84,$F84,2016,$I84,1,$H84,$G84*$H84,Options!$B$8))) -> 65.47583608 | R84: =IF(AND(OR(Calculations!$E$2="Orkney Health Board",Calculations!$E$2="Orkney Islands Local Authority"),$F84=1),0,IF(AND(OR(Calculations!$E$2="Shetland Health Board",Calculations!$E$2="Western Isles Health Board",Calculations!$E$2="Shetland Islands Local Authority",Calculations!$E$2="Eilean Siar Local Authority"),OR($F84=1,$F84=5)),0,prem_mort(VALUE(LEFT(Options!$B$24,2)),$C84,$E84,$F84,2016,$I84+$J84,1,$H84,$G84*$H84,Options!$B$8))) -> 62.99935083 | S84: 153.6991457 | T84: 147.8858001 | U84: 7658.82797 | V84: 7369.148973 | W84: 13473.5386 | X84: 13388.53387 | Y84: 153.6991457 | Z84: 147.8858001 | AA84: 922194.8743 | AB84: 887314.8004 | AC84: 45952967.82 | AD84: 44214893.84 | AE84: 80841231.6 | AF84: 80331203.21 | AG84: 922194.8743 | AH84: 887314.8004 | AI84: 6000
B85: Male 30-34 | C85: 31.981522 | D85: 78.06152 | E85: male | F85: 1 | G85: =HLOOKUP(Calculations!$E$2,'Prevalence Rates'!$C$3:$BC$249,'Prevalence Rates'!$BD85,FALSE) -> 0.238606323 | H85: =HLOOKUP(Calculations!$E$2,'Population 2016'!$C$3:$BC$249,'Population 2016'!BD85,FALSE) -> 38006 | I85: 0 | J85: =HLOOKUP(Results!E$4,Targeting!$C$3:$F$249,Targeting!$G85,FALSE) -> 7669 | K85: =IF(AND(OR(Calculations!$E$2="Orkney Health Board",Calculations!$E$2="Orkney Islands Local Authority"),$F85=1),0,IF(AND(OR(Calculations!$E$2="Shetland Health Board",Calculations!$E$2="Western Isles Health Board",Calculations!$E$2="Shetland Islands Local Authority",Calculations!$E$2="Eilean Siar Local Authority"),OR($F85=1,$F85=5)),0,new_ci(VALUE(LEFT(Options!$B$24,2)),$C85,$E85,$F85,2016,$I85,1,$H85,$G85*$H85,Options!$B$8))) -> 85.3123609 | L85: =IF(AND(OR(Calculations!$E$2="Orkney Health Board",Calculations!$E$2="Orkney Islands Local Authority"),$F85=1),0,IF(AND(OR(Calculations!$E$2="Shetland Health Board",Calculations!$E$2="Western Isles Health Board",Calculations!$E$2="Shetland Islands Local Authority",Calculations!$E$2="Eilean Siar Local Authority"),OR($F85=1,$F85=5)),0,new_ci(VALUE(LEFT(Options!$B$24,2)),$C85,$E85,$F85,2016,$I85+$J85,1,$H85,$G85*$H85,Options!$B$8))) -> 82.08759778 | M85: =IF(AND(OR(Calculations!$E$2="Orkney Health Board",Calculations!$E$2="Orkney Islands Local Authority"),$F85=1),0,IF(AND(OR(Calculations!$E$2="Shetland Health Board",Calculations!$E$2="Western Isles Health Board",Calculations!$E$2="Shetland Islands Local Authority",Calculations!$E$2="Eilean Siar Local Authority"),OR($F85=1,$F85=5)),0,new_yllv2(VALUE(LEFT(Options!$B$24,2)),$C85,$D85,$E85,$F85,2016,$I85,1,$H85,$G85*$H85,Options!$B$8))) -> 3845.881059 | N85: =IF(AND(OR(Calculations!$E$2="Orkney Health Board",Calculations!$E$2="Orkney Islands Local Authority"),$F85=1),0,IF(AND(OR(Calculations!$E$2="Shetland Health Board",Calculations!$E$2="Western Isles Health Board",Calculations!$E$2="Shetland Islands Local Authority",Calculations!$E$2="Eilean Siar Local Authority"),OR($F85=1,$F85=5)),0,new_yllv2(VALUE(LEFT(Options!$B$24,2)),$C85,$D85,$E85,$F85,2016,$I85+$J85,1,$H85,$G85*$H85,Options!$B$8))) -> 3700.508744 | O85: =IF(AND(OR(Calculations!$E$2="Orkney Health Board",Calculations!$E$2="Orkney Islands Local Authority"),$F85=1),0,IF(AND(OR(Calculations!$E$2="Shetland Health Board",Calculations!$E$2="Western Isles Health Board",Calculations!$E$2="Shetland Islands Local Authority",Calculations!$E$2="Eilean Siar Local Authority"),OR($F85=1,$F85=5)),0,hosp_count(VALUE(LEFT(Options!$B$24,2)),$C85,$E85,$F85,2016,$I85,1,$H85,$G85*$H85, Options!$B$8))) -> 6119.924679 | P85: =IF(AND(OR(Calculations!$E$2="Orkney Health Board",Calculations!$E$2="Orkney Islands Local Authority"),$F85=1),0,IF(AND(OR(Calculations!$E$2="Shetland Health Board",Calculations!$E$2="Western Isles Health Board",Calculations!$E$2="Shetland Islands Local Authority",Calculations!$E$2="Eilean Siar Local Authority"),OR($F85=1,$F85=5)),0,hosp_count(VALUE(LEFT(Options!$B$24,2)),$C85,$E85,$F85,2016,$I85+$J85,1,$H85,$G85*$H85, Options!$B$8))) -> 6081.314014 | Q85: =IF(AND(OR(Calculations!$E$2="Orkney Health Board",Calculations!$E$2="Orkney Islands Local Authority"),$F85=1),0,IF(AND(OR(Calculations!$E$2="Shetland Health Board",Calculations!$E$2="Western Isles Health Board",Calculations!$E$2="Shetland Islands Local Authority",Calculations!$E$2="Eilean Siar Local Authority"),OR($F85=1,$F85=5)),0,prem_mort(VALUE(LEFT(Options!$B$24,2)),$C85,$E85,$F85,2016,$I85,1,$H85,$G85*$H85,Options!$B$8))) -> 85.3123609 | R85: =IF(AND(OR(Calculations!$E$2="Orkney Health Board",Calculations!$E$2="Orkney Islands Local Authority"),$F85=1),0,IF(AND(OR(Calculations!$E$2="Shetland Health Board",Calculations!$E$2="Western Isles Health Board",Calculations!$E$2="Shetland Islands Local Authority",Calculations!$E$2="Eilean Siar Local Authority"),OR($F85=1,$F85=5)),0,prem_mort(VALUE(LEFT(Options!$B$24,2)),$C85,$E85,$F85,2016,$I85+$J85,1,$H85,$G85*$H85,Options!$B$8))) -> 82.08759778 | S85: 224.4707701 | T85: 215.9858911 | U85: 10119.14187 | V85: 9736.64354 | W85: 16102.52244 | X85: 16000.93147 | Y85: 224.4707701 | Z85: 215.9858911 | AA85: 1459060.006 | AB85: 1403908.292 | AC85: 65774422.15 | AD85: 63288183.01 | AE85: 104666395.9 | AF85: 104006054.5 | AG85: 1459060.006 | AH85: 1403908.292 | AI85: 6500
B86: Male 35-39 | C86: 36.92601 | D86: 78.33601 | E86: male | F86: 1 | G86: =HLOOKUP(Calculations!$E$2,'Prevalence Rates'!$C$3:$BC$249,'Prevalence Rates'!$BD86,FALSE) -> 0.3236404062 | H86: =HLOOKUP(Calculations!$E$2,'Population 2016'!$C$3:$BC$249,'Population 2016'!BD86,FALSE) -> 32984 | I86: 0 | J86: =HLOOKUP(Results!E$4,Targeting!$C$3:$F$249,Targeting!$G86,FALSE) -> 6655 | K86: =IF(AND(OR(Calculations!$E$2="Orkney Health Board",Calculations!$E$2="Orkney Islands Local Authority"),$F86=1),0,IF(AND(OR(Calculations!$E$2="Shetland Health Board",Calculations!$E$2="Western Isles Health Board",Calculations!$E$2="Shetland Islands Local Authority",Calculations!$E$2="Eilean Siar Local Authority"),OR($F86=1,$F86=5)),0,new_ci(VALUE(LEFT(Options!$B$24,2)),$C86,$E86,$F86,2016,$I86,1,$H86,$G86*$H86,Options!$B$8))) -> 107.4833631 | L86: =IF(AND(OR(Calculations!$E$2="Orkney Health Board",Calculations!$E$2="Orkney Islands Local Authority"),$F86=1),0,IF(AND(OR(Calculations!$E$2="Shetland Health Board",Calculations!$E$2="Western Isles Health Board",Calculations!$E$2="Shetland Islands Local Authority",Calculations!$E$2="Eilean Siar Local Authority"),OR($F86=1,$F86=5)),0,new_ci(VALUE(LEFT(Options!$B$24,2)),$C86,$E86,$F86,2016,$I86+$J86,1,$H86,$G86*$H86,Options!$B$8))) -> 103.6406942 | M86: =IF(AND(OR(Calculations!$E$2="Orkney Health Board",Calculations!$E$2="Orkney Islands Local Authority"),$F86=1),0,IF(AND(OR(Calculations!$E$2="Shetland Health Board",Calculations!$E$2="Western Isles Health Board",Calculations!$E$2="Shetland Islands Local Authority",Calculations!$E$2="Eilean Siar Local Authority"),OR($F86=1,$F86=5)),0,new_yllv2(VALUE(LEFT(Options!$B$24,2)),$C86,$D86,$E86,$F86,2016,$I86,1,$H86,$G86*$H86,Options!$B$8))) -> 4343.402703 | N86: =IF(AND(OR(Calculations!$E$2="Orkney Health Board",Calculations!$E$2="Orkney Islands Local Authority"),$F86=1),0,IF(AND(OR(Calculations!$E$2="Shetland Health Board",Calculations!$E$2="Western Isles Health Board",Calculations!$E$2="Shetland Islands Local Authority",Calculations!$E$2="Eilean Siar Local Authority"),OR($F86=1,$F86=5)),0,new_yllv2(VALUE(LEFT(Options!$B$24,2)),$C86,$D86,$E86,$F86,2016,$I86+$J86,1,$H86,$G86*$H86,Options!$B$8))) -> 4188.120453 | O86: =IF(AND(OR(Calculations!$E$2="Orkney Health Board",Calculations!$E$2="Orkney Islands Local Authority"),$F86=1),0,IF(AND(OR(Calculations!$E$2="Shetland Health Board",Calculations!$E$2="Western Isles Health Board",Calculations!$E$2="Shetland Islands Local Authority",Calculations!$E$2="Eilean Siar Local Authority"),OR($F86=1,$F86=5)),0,hosp_count(VALUE(LEFT(Options!$B$24,2)),$C86,$E86,$F86,2016,$I86,1,$H86,$G86*$H86, Options!$B$8))) -> 6330.212896 | P86: =IF(AND(OR(Calculations!$E$2="Orkney Health Board",Calculations!$E$2="Orkney Islands Local Authority"),$F86=1),0,IF(AND(OR(Calculations!$E$2="Shetland Health Board",Calculations!$E$2="Western Isles Health Board",Calculations!$E$2="Shetland Islands Local Authority",Calculations!$E$2="Eilean Siar Local Authority"),OR($F86=1,$F86=5)),0,hosp_count(VALUE(LEFT(Options!$B$24,2)),$C86,$E86,$F86,2016,$I86+$J86,1,$H86,$G86*$H86, Options!$B$8))) -> 6291.715516 | Q86: =IF(AND(OR(Calculations!$E$2="Orkney Health Board",Calculations!$E$2="Orkney Islands Local Authority"),$F86=1),0,IF(AND(OR(Calculations!$E$2="Shetland Health Board",Calculations!$E$2="Western Isles Health Board",Calculations!$E$2="Shetland Islands Local Authority",Calculations!$E$2="Eilean Siar Local Authority"),OR($F86=1,$F86=5)),0,prem_mort(VALUE(LEFT(Options!$B$24,2)),$C86,$E86,$F86,2016,$I86,1,$H86,$G86*$H86,Options!$B$8))) -> 107.4833631 | R86: =IF(AND(OR(Calculations!$E$2="Orkney Health Board",Calculations!$E$2="Orkney Islands Local Authority"),$F86=1),0,IF(AND(OR(Calculations!$E$2="Shetland Health Board",Calculations!$E$2="Western Isles Health Board",Calculations!$E$2="Shetland Islands Local Authority",Calculations!$E$2="Eilean Siar Local Authority"),OR($F86=1,$F86=5)),0,prem_mort(VALUE(LEFT(Options!$B$24,2)),$C86,$E86,$F86,2016,$I86+$J86,1,$H86,$G86*$H86,Options!$B$8))) -> 103.6406942 | S86: 325.8651561 | T86: 314.2150565 | U86: 13168.21096 | V86: 12697.43043 | W86: 19191.76842 | X86: 19075.05311 | Y86: 325.8651561 | Z86: 314.2150565 | AA86: 2281056.093 | AB86: 2199505.395 | AC86: 92177476.71 | AD86: 88882013.02 | AE86: 134342378.9 | AF86: 133525371.7 | AG86: 2281056.093 | AH86: 2199505.395 | AI86: 7000
B87: Male 40-44 | C87: 42.067703 | D87: 78.9077 | E87: male | F87: 1 | G87: =HLOOKUP(Calculations!$E$2,'Prevalence Rates'!$C$3:$BC$249,'Prevalence Rates'!$BD87,FALSE) -> 0.3236404062 | H87: =HLOOKUP(Calculations!$E$2,'Population 2016'!$C$3:$BC$249,'Population 2016'!BD87,FALSE) -> 31623 | I87: 0 | J87: =HLOOKUP(Results!E$4,Targeting!$C$3:$F$249,Targeting!$G87,FALSE) -> 6381 | K87: =IF(AND(OR(Calculations!$E$2="Orkney Health Board",Calculations!$E$2="Orkney Islands Local Authority"),$F87=1),0,IF(AND(OR(Calculations!$E$2="Shetland Health Board",Calculations!$E$2="Western Isles Health Board",Calculations!$E$2="Shetland Islands Local Authority",Calculations!$E$2="Eilean Siar Local Authority"),OR($F87=1,$F87=5)),0,new_ci(VALUE(LEFT(Options!$B$24,2)),$C87,$E87,$F87,2016,$I87,1,$H87,$G87*$H87,Options!$B$8))) -> 151.7969549 | L87: =IF(AND(OR(Calculations!$E$2="Orkney Health Board",Calculations!$E$2="Orkney Islands Local Authority"),$F87=1),0,IF(AND(OR(Calculations!$E$2="Shetland Health Board",Calculations!$E$2="Western Isles Health Board",Calculations!$E$2="Shetland Islands Local Authority",Calculations!$E$2="Eilean Siar Local Authority"),OR($F87=1,$F87=5)),0,new_ci(VALUE(LEFT(Options!$B$24,2)),$C87,$E87,$F87,2016,$I87+$J87,1,$H87,$G87*$H87,Options!$B$8))) -> 146.3761754 | M87: =IF(AND(OR(Calculations!$E$2="Orkney Health Board",Calculations!$E$2="Orkney Islands Local Authority"),$F87=1),0,IF(AND(OR(Calculations!$E$2="Shetland Health Board",Calculations!$E$2="Western Isles Health Board",Calculations!$E$2="Shetland Islands Local Authority",Calculations!$E$2="Eilean Siar Local Authority"),OR($F87=1,$F87=5)),0,new_yllv2(VALUE(LEFT(Options!$B$24,2)),$C87,$D87,$E87,$F87,2016,$I87,1,$H87,$G87*$H87,Options!$B$8))) -> 5440.402407 | N87: =IF(AND(OR(Calculations!$E$2="Orkney Health Board",Calculations!$E$2="Orkney Islands Local Authority"),$F87=1),0,IF(AND(OR(Calculations!$E$2="Shetland Health Board",Calculations!$E$2="Western Isles Health Board",Calculations!$E$2="Shetland Islands Local Authority",Calculations!$E$2="Eilean Siar Local Authority"),OR($F87=1,$F87=5)),0,new_yllv2(VALUE(LEFT(Options!$B$24,2)),$C87,$D87,$E87,$F87,2016,$I87+$J87,1,$H87,$G87*$H87,Options!$B$8))) -> 5246.121687 | O87: =IF(AND(OR(Calculations!$E$2="Orkney Health Board",Calculations!$E$2="Orkney Islands Local Authority"),$F87=1),0,IF(AND(OR(Calculations!$E$2="Shetland Health Board",Calculations!$E$2="Western Isles Health Board",Calculations!$E$2="Shetland Islands Local Authority",Calculations!$E$2="Eilean Siar Local Authority"),OR($F87=1,$F87=5)),0,hosp_count(VALUE(LEFT(Options!$B$24,2)),$C87,$E87,$F87,2016,$I87,1,$H87,$G87*$H87, Options!$B$8))) -> 7284.154202 | P87: =IF(AND(OR(Calculations!$E$2="Orkney Health Board",Calculations!$E$2="Orkney Islands Local Authority"),$F87=1),0,IF(AND(OR(Calculations!$E$2="Shetland Health Board",Calculations!$E$2="Western Isles Health Board",Calculations!$E$2="Shetland Islands Local Authority",Calculations!$E$2="Eilean Siar Local Authority"),OR($F87=1,$F87=5)),0,hosp_count(VALUE(LEFT(Options!$B$24,2)),$C87,$E87,$F87,2016,$I87+$J87,1,$H87,$G87*$H87, Options!$B$8))) -> 7239.851224 | Q87: =IF(AND(OR(Calculations!$E$2="Orkney Health Board",Calculations!$E$2="Orkney Islands Local Authority"),$F87=1),0,IF(AND(OR(Calculations!$E$2="Shetland Health Board",Calculations!$E$2="Western Isles Health Board",Calculations!$E$2="Shetland Islands Local Authority",Calculations!$E$2="Eilean Siar Local Authority"),OR($F87=1,$F87=5)),0,prem_mort(VALUE(LEFT(Options!$B$24,2)),$C87,$E87,$F87,2016,$I87,1,$H87,$G87*$H87,Options!$B$8))) -> 151.7969549 | R87: =IF(AND(OR(Calculations!$E$2="Orkney Health Board",Calculations!$E$2="Orkney Islands Local Authority"),$F87=1),0,IF(AND(OR(Calculations!$E$2="Shetland Health Board",Calculations!$E$2="Western Isles Health Board",Calculations!$E$2="Shetland Islands Local Authority",Calculations!$E$2="Eilean Siar Local Authority"),OR($F87=1,$F87=5)),0,prem_mort(VALUE(LEFT(Options!$B$24,2)),$C87,$E87,$F87,2016,$I87+$J87,1,$H87,$G87*$H87,Options!$B$8))) -> 146.3761754 | S87: 480.0207281 | T87: 462.8788394 | U87: 17203.94146 | V87: 16589.57622 | W87: 23034.35538 | X87: 22894.25805 | Y87: 480.0207281 | Z87: 462.8788394 | AA87: 3360145.097 | AB87: 3240151.876 | AC87: 120427590.2 | AD87: 116127033.5 | AE87: 161240487.7 | AF87: 160259806.4 | AG87: 3360145.097 | AH87: 3240151.876 | AI87: 7000
B88: Male 45-49 | C88: 47.038155 | D88: 79.41815 | E88: male | F88: 1 | G88: =HLOOKUP(Calculations!$E$2,'Prevalence Rates'!$C$3:$BC$249,'Prevalence Rates'!$BD88,FALSE) -> 0.3528343264 | H88: =HLOOKUP(Calculations!$E$2,'Population 2016'!$C$3:$BC$249,'Population 2016'!BD88,FALSE) -> 35878 | I88: 0 | J88: =HLOOKUP(Results!E$4,Targeting!$C$3:$F$249,Targeting!$G88,FALSE) -> 7239 | K88: =IF(AND(OR(Calculations!$E$2="Orkney Health Board",Calculations!$E$2="Orkney Islands Local Authority"),$F88=1),0,IF(AND(OR(Calculations!$E$2="Shetland Health Board",Calculations!$E$2="Western Isles Health Board",Calculations!$E$2="Shetland Islands Local Authority",Calculations!$E$2="Eilean Siar Local Authority"),OR($F88=1,$F88=5)),0,new_ci(VALUE(LEFT(Options!$B$24,2)),$C88,$E88,$F88,2016,$I88,1,$H88,$G88*$H88,Options!$B$8))) -> 250.3475895 | L88: =IF(AND(OR(Calculations!$E$2="Orkney Health Board",Calculations!$E$2="Orkney Islands Local Authority"),$F88=1),0,IF(AND(OR(Calculations!$E$2="Shetland Health Board",Calculations!$E$2="Western Isles Health Board",Calculations!$E$2="Shetland Islands Local Authority",Calculations!$E$2="Eilean Siar Local Authority"),OR($F88=1,$F88=5)),0,new_ci(VALUE(LEFT(Options!$B$24,2)),$C88,$E88,$F88,2016,$I88+$J88,1,$H88,$G88*$H88,Options!$B$8))) -> 241.5832193 | M88: =IF(AND(OR(Calculations!$E$2="Orkney Health Board",Calculations!$E$2="Orkney Islands Local Authority"),$F88=1),0,IF(AND(OR(Calculations!$E$2="Shetland Health Board",Calculations!$E$2="Western Isles Health Board",Calculations!$E$2="Shetland Islands Local Authority",Calculations!$E$2="Eilean Siar Local Authority"),OR($F88=1,$F88=5)),0,new_yllv2(VALUE(LEFT(Options!$B$24,2)),$C88,$D88,$E88,$F88,2016,$I88,1,$H88,$G88*$H88,Options!$B$8))) -> 7855.906107 | N88: =IF(AND(OR(Calculations!$E$2="Orkney Health Board",Calculations!$E$2="Orkney Islands Local Authority"),$F88=1),0,IF(AND(OR(Calculations!$E$2="Shetland Health Board",Calculations!$E$2="Western Isles Health Board",Calculations!$E$2="Shetland Islands Local Authority",Calculations!$E$2="Eilean Siar Local Authority"),OR($F88=1,$F88=5)),0,new_yllv2(VALUE(LEFT(Options!$B$24,2)),$C88,$D88,$E88,$F88,2016,$I88+$J88,1,$H88,$G88*$H88,Options!$B$8))) -> 7580.880213 | O88: =IF(AND(OR(Calculations!$E$2="Orkney Health Board",Calculations!$E$2="Orkney Islands Local Authority"),$F88=1),0,IF(AND(OR(Calculations!$E$2="Shetland Health Board",Calculations!$E$2="Western Isles Health Board",Calculations!$E$2="Shetland Islands Local Authority",Calculations!$E$2="Eilean Siar Local Authority"),OR($F88=1,$F88=5)),0,hosp_count(VALUE(LEFT(Options!$B$24,2)),$C88,$E88,$F88,2016,$I88,1,$H88,$G88*$H88, Options!$B$8))) -> 9858.835372 | P88: =IF(AND(OR(Calculations!$E$2="Orkney Health Board",Calculations!$E$2="Orkney Islands Local Authority"),$F88=1),0,IF(AND(OR(Calculations!$E$2="Shetland Health Board",Calculations!$E$2="Western Isles Health Board",Calculations!$E$2="Shetland Islands Local Authority",Calculations!$E$2="Eilean Siar Local Authority"),OR($F88=1,$F88=5)),0,hosp_count(VALUE(LEFT(Options!$B$24,2)),$C88,$E88,$F88,2016,$I88+$J88,1,$H88,$G88*$H88, Options!$B$8))) -> 9799.609061 | Q88: =IF(AND(OR(Calculations!$E$2="Orkney Health Board",Calculations!$E$2="Orkney Islands Local Authority"),$F88=1),0,IF(AND(OR(Calculations!$E$2="Shetland Health Board",Calculations!$E$2="Western Isles Health Board",Calculations!$E$2="Shetland Islands Local Authority",Calculations!$E$2="Eilean Siar Local Authority"),OR($F88=1,$F88=5)),0,prem_mort(VALUE(LEFT(Options!$B$24,2)),$C88,$E88,$F88,2016,$I88,1,$H88,$G88*$H88,Options!$B$8))) -> 250.3475895 | R88: =IF(AND(OR(Calculations!$E$2="Orkney Health Board",Calculations!$E$2="Orkney Islands Local Authority"),$F88=1),0,IF(AND(OR(Calculations!$E$2="Shetland Health Board",Calculations!$E$2="Western Isles Health Board",Calculations!$E$2="Shetland Islands Local Authority",Calculations!$E$2="Eilean Siar Local Authority"),OR($F88=1,$F88=5)),0,prem_mort(VALUE(LEFT(Options!$B$24,2)),$C88,$E88,$F88,2016,$I88+$J88,1,$H88,$G88*$H88,Options!$B$8))) -> 241.5832193 | S88: 697.7746516 | T88: 673.3463941 | U88: 21896.16508 | V88: 21129.60648 | W88: 27478.77633 | X88: 27313.69937 | Y88: 697.7746516 | Z88: 673.3463941 | AA88: 4884422.561 | AB88: 4713424.759 | AC88: 153273155.6 | AD88: 147907245.4 | AE88: 192351434.3 | AF88: 191195895.6 | AG88: 4884422.561 | AH88: 4713424.759 | AI88: 7000
B89: Male 50-54 | C89: 51.998646 | D89: 79.98865 | E89: male | F89: 1 | G89: =HLOOKUP(Calculations!$E$2,'Prevalence Rates'!$C$3:$BC$249,'Prevalence Rates'!$BD89,FALSE) -> 0.3528343264 | H89: =HLOOKUP(Calculations!$E$2,'Population 2016'!$C$3:$BC$249,'Population 2016'!BD89,FALSE) -> 36922 | I89: 0 | J89: =HLOOKUP(Results!E$4,Targeting!$C$3:$F$249,Targeting!$G89,FALSE) -> 7450 | K89: =IF(AND(OR(Calculations!$E$2="Orkney Health Board",Calculations!$E$2="Orkney Islands Local Authority"),$F89=1),0,IF(AND(OR(Calculations!$E$2="Shetland Health Board",Calculations!$E$2="Western Isles Health Board",Calculations!$E$2="Shetland Islands Local Authority",Calculations!$E$2="Eilean Siar Local Authority"),OR($F89=1,$F89=5)),0,new_ci(VALUE(LEFT(Options!$B$24,2)),$C89,$E89,$F89,2016,$I89,1,$H89,$G89*$H89,Options!$B$8))) -> 374.0214958 | L89: =IF(AND(OR(Calculations!$E$2="Orkney Health Board",Calculations!$E$2="Orkney Islands Local Authority"),$F89=1),0,IF(AND(OR(Calculations!$E$2="Shetland Health Board",Calculations!$E$2="Western Isles Health Board",Calculations!$E$2="Shetland Islands Local Authority",Calculations!$E$2="Eilean Siar Local Authority"),OR($F89=1,$F89=5)),0,new_ci(VALUE(LEFT(Options!$B$24,2)),$C89,$E89,$F89,2016,$I89+$J89,1,$H89,$G89*$H89,Options!$B$8))) -> 360.9588736 | M89: =IF(AND(OR(Calculations!$E$2="Orkney Health Board",Calculations!$E$2="Orkney Islands Local Authority"),$F89=1),0,IF(AND(OR(Calculations!$E$2="Shetland Health Board",Calculations!$E$2="Western Isles Health Board",Calculations!$E$2="Shetland Islands Local Authority",Calculations!$E$2="Eilean Siar Local Authority"),OR($F89=1,$F89=5)),0,new_yllv2(VALUE(LEFT(Options!$B$24,2)),$C89,$D89,$E89,$F89,2016,$I89,1,$H89,$G89*$H89,Options!$B$8))) -> 10094.84167 | N89: =IF(AND(OR(Calculations!$E$2="Orkney Health Board",Calculations!$E$2="Orkney Islands Local Authority"),$F89=1),0,IF(AND(OR(Calculations!$E$2="Shetland Health Board",Calculations!$E$2="Western Isles Health Board",Calculations!$E$2="Shetland Islands Local Authority",Calculations!$E$2="Eilean Siar Local Authority"),OR($F89=1,$F89=5)),0,new_yllv2(VALUE(LEFT(Options!$B$24,2)),$C89,$D89,$E89,$F89,2016,$I89+$J89,1,$H89,$G89*$H89,Options!$B$8))) -> 9742.281443 | O89: =IF(AND(OR(Calculations!$E$2="Orkney Health Board",Calculations!$E$2="Orkney Islands Local Authority"),$F89=1),0,IF(AND(OR(Calculations!$E$2="Shetland Health Board",Calculations!$E$2="Western Isles Health Board",Calculations!$E$2="Shetland Islands Local Authority",Calculations!$E$2="Eilean Siar Local Authority"),OR($F89=1,$F89=5)),0,hosp_count(VALUE(LEFT(Options!$B$24,2)),$C89,$E89,$F89,2016,$I89,1,$H89,$G89*$H89, Options!$B$8))) -> 12099.02518 | P89: =IF(AND(OR(Calculations!$E$2="Orkney Health Board",Calculations!$E$2="Orkney Islands Local Authority"),$F89=1),0,IF(AND(OR(Calculations!$E$2="Shetland Health Board",Calculations!$E$2="Western Isles Health Board",Calculations!$E$2="Shetland Islands Local Authority",Calculations!$E$2="Eilean Siar Local Authority"),OR($F89=1,$F89=5)),0,hosp_count(VALUE(LEFT(Options!$B$24,2)),$C89,$E89,$F89,2016,$I89+$J89,1,$H89,$G89*$H89, Options!$B$8))) -> 12026.33761 | Q89: =IF(AND(OR(Calculations!$E$2="Orkney Health Board",Calculations!$E$2="Orkney Islands Local Authority"),$F89=1),0,IF(AND(OR(Calculations!$E$2="Shetland Health Board",Calculations!$E$2="Western Isles Health Board",Calculations!$E$2="Shetland Islands Local Authority",Calculations!$E$2="Eilean Siar Local Authority"),OR($F89=1,$F89=5)),0,prem_mort(VALUE(LEFT(Options!$B$24,2)),$C89,$E89,$F89,2016,$I89,1,$H89,$G89*$H89,Options!$B$8))) -> 374.0214958 | R89: =IF(AND(OR(Calculations!$E$2="Orkney Health Board",Calculations!$E$2="Orkney Islands Local Authority"),$F89=1),0,IF(AND(OR(Calculations!$E$2="Shetland Health Board",Calculations!$E$2="Western Isles Health Board",Calculations!$E$2="Shetland Islands Local Authority",Calculations!$E$2="Eilean Siar Local Authority"),OR($F89=1,$F89=5)),0,prem_mort(VALUE(LEFT(Options!$B$24,2)),$C89,$E89,$F89,2016,$I89+$J89,1,$H89,$G89*$H89,Options!$B$8))) -> 360.9588736 | S89: 1013.00443 | T89: 977.6254635 | U89: 27340.99363 | V89: 26386.11517 | W89: 32769.14897 | X89: 32572.28106 | Y89: 1013.00443 | Z89: 977.6254635 | AA89: 7091031.012 | AB89: 6843378.244 | AC89: 191386955.4 | AD89: 184702806.2 | AE89: 229384042.8 | AF89: 228005967.4 | AG89: 7091031.012 | AH89: 6843378.244 | AI89: 7000
B90: Male 55-59 | C90: 56.950867 | D90: 80.66087 | E90: male | F90: 1 | G90: =HLOOKUP(Calculations!$E$2,'Prevalence Rates'!$C$3:$BC$249,'Prevalence Rates'!$BD90,FALSE) -> 0.3313598623 | H90: =HLOOKUP(Calculations!$E$2,'Population 2016'!$C$3:$BC$249,'Population 2016'!BD90,FALSE) -> 33251 | I90: 0 | J90: =HLOOKUP(Results!E$4,Targeting!$C$3:$F$249,Targeting!$G90,FALSE) -> 6709 | K90: =IF(AND(OR(Calculations!$E$2="Orkney Health Board",Calculations!$E$2="Orkney Islands Local Authority"),$F90=1),0,IF(AND(OR(Calculations!$E$2="Shetland Health Board",Calculations!$E$2="Western Isles Health Board",Calculations!$E$2="Shetland Islands Local Authority",Calculations!$E$2="Eilean Siar Local Authority"),OR($F90=1,$F90=5)),0,new_ci(VALUE(LEFT(Options!$B$24,2)),$C90,$E90,$F90,2016,$I90,1,$H90,$G90*$H90,Options!$B$8))) -> 488.3202329 | L90: =IF(AND(OR(Calculations!$E$2="Orkney Health Board",Calculations!$E$2="Orkney Islands Local Authority"),$F90=1),0,IF(AND(OR(Calculations!$E$2="Shetland Health Board",Calculations!$E$2="Western Isles Health Board",Calculations!$E$2="Shetland Islands Local Authority",Calculations!$E$2="Eilean Siar Local Authority"),OR($F90=1,$F90=5)),0,new_ci(VALUE(LEFT(Options!$B$24,2)),$C90,$E90,$F90,2016,$I90+$J90,1,$H90,$G90*$H90,Options!$B$8))) -> 471.1031 | M90: =IF(AND(OR(Calculations!$E$2="Orkney Health Board",Calculations!$E$2="Orkney Islands Local Authority"),$F90=1),0,IF(AND(OR(Calculations!$E$2="Shetland Health Board",Calculations!$E$2="Western Isles Health Board",Calculations!$E$2="Shetland Islands Local Authority",Calculations!$E$2="Eilean Siar Local Authority"),OR($F90=1,$F90=5)),0,new_yllv2(VALUE(LEFT(Options!$B$24,2)),$C90,$D90,$E90,$F90,2016,$I90,1,$H90,$G90*$H90,Options!$B$8))) -> 11089.75395 | N90: =IF(AND(OR(Calculations!$E$2="Orkney Health Board",Calculations!$E$2="Orkney Islands Local Authority"),$F90=1),0,IF(AND(OR(Calculations!$E$2="Shetland Health Board",Calculations!$E$2="Western Isles Health Board",Calculations!$E$2="Shetland Islands Local Authority",Calculations!$E$2="Eilean Siar Local Authority"),OR($F90=1,$F90=5)),0,new_yllv2(VALUE(LEFT(Options!$B$24,2)),$C90,$D90,$E90,$F90,2016,$I90+$J90,1,$H90,$G90*$H90,Options!$B$8))) -> 10698.75281 | O90: =IF(AND(OR(Calculations!$E$2="Orkney Health Board",Calculations!$E$2="Orkney Islands Local Authority"),$F90=1),0,IF(AND(OR(Calculations!$E$2="Shetland Health Board",Calculations!$E$2="Western Isles Health Board",Calculations!$E$2="Shetland Islands Local Authority",Calculations!$E$2="Eilean Siar Local Authority"),OR($F90=1,$F90=5)),0,hosp_count(VALUE(LEFT(Options!$B$24,2)),$C90,$E90,$F90,2016,$I90,1,$H90,$G90*$H90, Options!$B$8))) -> 12990.03024 | P90: =IF(AND(OR(Calculations!$E$2="Orkney Health Board",Calculations!$E$2="Orkney Islands Local Authority"),$F90=1),0,IF(AND(OR(Calculations!$E$2="Shetland Health Board",Calculations!$E$2="Western Isles Health Board",Calculations!$E$2="Shetland Islands Local Authority",Calculations!$E$2="Eilean Siar Local Authority"),OR($F90=1,$F90=5)),0,hosp_count(VALUE(LEFT(Options!$B$24,2)),$C90,$E90,$F90,2016,$I90+$J90,1,$H90,$G90*$H90, Options!$B$8))) -> 12911.28655 | Q90: =IF(AND(OR(Calculations!$E$2="Orkney Health Board",Calculations!$E$2="Orkney Islands Local Authority"),$F90=1),0,IF(AND(OR(Calculations!$E$2="Shetland Health Board",Calculations!$E$2="Western Isles Health Board",Calculations!$E$2="Shetland Islands Local Authority",Calculations!$E$2="Eilean Siar Local Authority"),OR($F90=1,$F90=5)),0,prem_mort(VALUE(LEFT(Options!$B$24,2)),$C90,$E90,$F90,2016,$I90,1,$H90,$G90*$H90,Options!$B$8))) -> 488.3202329 | R90: =IF(AND(OR(Calculations!$E$2="Orkney Health Board",Calculations!$E$2="Orkney Islands Local Authority"),$F90=1),0,IF(AND(OR(Calculations!$E$2="Shetland Health Board",Calculations!$E$2="Western Isles Health Board",Calculations!$E$2="Shetland Islands Local Authority",Calculations!$E$2="Eilean Siar Local Authority"),OR($F90=1,$F90=5)),0,prem_mort(VALUE(LEFT(Options!$B$24,2)),$C90,$E90,$F90,2016,$I90+$J90,1,$H90,$G90*$H90,Options!$B$8))) -> 471.1031 | S90: 1468.588111 | T90: 1416.808818 | U90: 33351.64042 | V90: 32175.7325 | W90: 39066.58519 | X90: 38829.76917 | Y90: 1468.588111 | Z90: 1416.808818 | AA90: 9545822.724 | AB90: 9209257.315 | AC90: 216785662.7 | AD90: 209142261.3 | AE90: 253932803.7 | AF90: 252393499.6 | AG90: 9545822.724 | AH90: 9209257.315 | AI90: 6500
B91: Male 60-64 | C91: 61.942989 | D91: 81.61299 | E91: male | F91: 1 | G91: =HLOOKUP(Calculations!$E$2,'Prevalence Rates'!$C$3:$BC$249,'Prevalence Rates'!$BD91,FALSE) -> 0.3313598623 | H91: =HLOOKUP(Calculations!$E$2,'Population 2016'!$C$3:$BC$249,'Population 2016'!BD91,FALSE) -> 27358 | I91: 0 | J91: =HLOOKUP(Results!E$4,Targeting!$C$3:$F$249,Targeting!$G91,FALSE) -> 5520 | K91: =IF(AND(OR(Calculations!$E$2="Orkney Health Board",Calculations!$E$2="Orkney Islands Local Authority"),$F91=1),0,IF(AND(OR(Calculations!$E$2="Shetland Health Board",Calculations!$E$2="Western Isles Health Board",Calculations!$E$2="Shetland Islands Local Authority",Calculations!$E$2="Eilean Siar Local Authority"),OR($F91=1,$F91=5)),0,new_ci(VALUE(LEFT(Options!$B$24,2)),$C91,$E91,$F91,2016,$I91,1,$H91,$G91*$H91,Options!$B$8))) -> 583.54574 | L91: =IF(AND(OR(Calculations!$E$2="Orkney Health Board",Calculations!$E$2="Orkney Islands Local Authority"),$F91=1),0,IF(AND(OR(Calculations!$E$2="Shetland Health Board",Calculations!$E$2="Western Isles Health Board",Calculations!$E$2="Shetland Islands Local Authority",Calculations!$E$2="Eilean Siar Local Authority"),OR($F91=1,$F91=5)),0,new_ci(VALUE(LEFT(Options!$B$24,2)),$C91,$E91,$F91,2016,$I91+$J91,1,$H91,$G91*$H91,Options!$B$8))) -> 563.0808147 | M91: =IF(AND(OR(Calculations!$E$2="Orkney Health Board",Calculations!$E$2="Orkney Islands Local Authority"),$F91=1),0,IF(AND(OR(Calculations!$E$2="Shetland Health Board",Calculations!$E$2="Western Isles Health Board",Calculations!$E$2="Shetland Islands Local Authority",Calculations!$E$2="Eilean Siar Local Authority"),OR($F91=1,$F91=5)),0,new_yllv2(VALUE(LEFT(Options!$B$24,2)),$C91,$D91,$E91,$F91,2016,$I91,1,$H91,$G91*$H91,Options!$B$8))) -> 10894.79955 | N91: =IF(AND(OR(Calculations!$E$2="Orkney Health Board",Calculations!$E$2="Orkney Islands Local Authority"),$F91=1),0,IF(AND(OR(Calculations!$E$2="Shetland Health Board",Calculations!$E$2="Western Isles Health Board",Calculations!$E$2="Shetland Islands Local Authority",Calculations!$E$2="Eilean Siar Local Authority"),OR($F91=1,$F91=5)),0,new_yllv2(VALUE(LEFT(Options!$B$24,2)),$C91,$D91,$E91,$F91,2016,$I91+$J91,1,$H91,$G91*$H91,Options!$B$8))) -> 10512.71937 | O91: =IF(AND(OR(Calculations!$E$2="Orkney Health Board",Calculations!$E$2="Orkney Islands Local Authority"),$F91=1),0,IF(AND(OR(Calculations!$E$2="Shetland Health Board",Calculations!$E$2="Western Isles Health Board",Calculations!$E$2="Shetland Islands Local Authority",Calculations!$E$2="Eilean Siar Local Authority"),OR($F91=1,$F91=5)),0,hosp_count(VALUE(LEFT(Options!$B$24,2)),$C91,$E91,$F91,2016,$I91,1,$H91,$G91*$H91, Options!$B$8))) -> 12759.83838 | P91: =IF(AND(OR(Calculations!$E$2="Orkney Health Board",Calculations!$E$2="Orkney Islands Local Authority"),$F91=1),0,IF(AND(OR(Calculations!$E$2="Shetland Health Board",Calculations!$E$2="Western Isles Health Board",Calculations!$E$2="Shetland Islands Local Authority",Calculations!$E$2="Eilean Siar Local Authority"),OR($F91=1,$F91=5)),0,hosp_count(VALUE(LEFT(Options!$B$24,2)),$C91,$E91,$F91,2016,$I91+$J91,1,$H91,$G91*$H91, Options!$B$8))) -> 12682.48978 | Q91: =IF(AND(OR(Calculations!$E$2="Orkney Health Board",Calculations!$E$2="Orkney Islands Local Authority"),$F91=1),0,IF(AND(OR(Calculations!$E$2="Shetland Health Board",Calculations!$E$2="Western Isles Health Board",Calculations!$E$2="Shetland Islands Local Authority",Calculations!$E$2="Eilean Siar Local Authority"),OR($F91=1,$F91=5)),0,prem_mort(VALUE(LEFT(Options!$B$24,2)),$C91,$E91,$F91,2016,$I91,1,$H91,$G91*$H91,Options!$B$8))) -> 583.54574 | R91: =IF(AND(OR(Calculations!$E$2="Orkney Health Board",Calculations!$E$2="Orkney Islands Local Authority"),$F91=1),0,IF(AND(OR(Calculations!$E$2="Shetland Health Board",Calculations!$E$2="Western Isles Health Board",Calculations!$E$2="Shetland Islands Local Authority",Calculations!$E$2="Eilean Siar Local Authority"),OR($F91=1,$F91=5)),0,prem_mort(VALUE(LEFT(Options!$B$24,2)),$C91,$E91,$F91,2016,$I91+$J91,1,$H91,$G91*$H91,Options!$B$8))) -> 563.0808147 | S91: 2132.998538 | T91: 2058.194366 | U91: 39823.08483 | V91: 38426.49088 | W91: 46640.24555 | X91: 46357.51802 | Y91: 2132.998538 | Z91: 2058.194366 | AA91: 12797991.23 | AB91: 12349166.2 | AC91: 238938509 | AD91: 230558945.3 | AE91: 279841473.3 | AF91: 278145108.1 | AG91: 12797991.23 | AH91: 12349166.2 | AI91: 6000
B92: Male 65-69 | C92: 67.05442 | D92: 82.95442 | E92: male | F92: 1 | G92: =HLOOKUP(Calculations!$E$2,'Prevalence Rates'!$C$3:$BC$249,'Prevalence Rates'!$BD92,FALSE) -> 0.3969263423 | H92: =HLOOKUP(Calculations!$E$2,'Population 2016'!$C$3:$BC$249,'Population 2016'!BD92,FALSE) -> 25567 | I92: 0 | J92: =HLOOKUP(Results!E$4,Targeting!$C$3:$F$249,Targeting!$G92,FALSE) -> 5159 | K92: =IF(AND(OR(Calculations!$E$2="Orkney Health Board",Calculations!$E$2="Orkney Islands Local Authority"),$F92=1),0,IF(AND(OR(Calculations!$E$2="Shetland Health Board",Calculations!$E$2="Western Isles Health Board",Calculations!$E$2="Shetland Islands Local Authority",Calculations!$E$2="Eilean Siar Local Authority"),OR($F92=1,$F92=5)),0,new_ci(VALUE(LEFT(Options!$B$24,2)),$C92,$E92,$F92,2016,$I92,1,$H92,$G92*$H92,Options!$B$8))) -> 797.7801023 | L92: =IF(AND(OR(Calculations!$E$2="Orkney Health Board",Calculations!$E$2="Orkney Islands Local Authority"),$F92=1),0,IF(AND(OR(Calculations!$E$2="Shetland Health Board",Calculations!$E$2="Western Isles Health Board",Calculations!$E$2="Shetland Islands Local Authority",Calculations!$E$2="Eilean Siar Local Authority"),OR($F92=1,$F92=5)),0,new_ci(VALUE(LEFT(Options!$B$24,2)),$C92,$E92,$F92,2016,$I92+$J92,1,$H92,$G92*$H92,Options!$B$8))) -> 771.0739568 | M92: =IF(AND(OR(Calculations!$E$2="Orkney Health Board",Calculations!$E$2="Orkney Islands Local Authority"),$F92=1),0,IF(AND(OR(Calculations!$E$2="Shetland Health Board",Calculations!$E$2="Western Isles Health Board",Calculations!$E$2="Shetland Islands Local Authority",Calculations!$E$2="Eilean Siar Local Authority"),OR($F92=1,$F92=5)),0,new_yllv2(VALUE(LEFT(Options!$B$24,2)),$C92,$D92,$E92,$F92,2016,$I92,1,$H92,$G92*$H92,Options!$B$8))) -> 11886.92352 | N92: =IF(AND(OR(Calculations!$E$2="Orkney Health Board",Calculations!$E$2="Orkney Islands Local Authority"),$F92=1),0,IF(AND(OR(Calculations!$E$2="Shetland Health Board",Calculations!$E$2="Western Isles Health Board",Calculations!$E$2="Shetland Islands Local Authority",Calculations!$E$2="Eilean Siar Local Authority"),OR($F92=1,$F92=5)),0,new_yllv2(VALUE(LEFT(Options!$B$24,2)),$C92,$D92,$E92,$F92,2016,$I92+$J92,1,$H92,$G92*$H92,Options!$B$8))) -> 11489.00196 | O92: =IF(AND(OR(Calculations!$E$2="Orkney Health Board",Calculations!$E$2="Orkney Islands Local Authority"),$F92=1),0,IF(AND(OR(Calculations!$E$2="Shetland Health Board",Calculations!$E$2="Western Isles Health Board",Calculations!$E$2="Shetland Islands Local Authority",Calculations!$E$2="Eilean Siar Local Authority"),OR($F92=1,$F92=5)),0,hosp_count(VALUE(LEFT(Options!$B$24,2)),$C92,$E92,$F92,2016,$I92,1,$H92,$G92*$H92, Options!$B$8))) -> 14296.67907 | P92: =IF(AND(OR(Calculations!$E$2="Orkney Health Board",Calculations!$E$2="Orkney Islands Local Authority"),$F92=1),0,IF(AND(OR(Calculations!$E$2="Shetland Health Board",Calculations!$E$2="Western Isles Health Board",Calculations!$E$2="Shetland Islands Local Authority",Calculations!$E$2="Eilean Siar Local Authority"),OR($F92=1,$F92=5)),0,hosp_count(VALUE(LEFT(Options!$B$24,2)),$C92,$E92,$F92,2016,$I92+$J92,1,$H92,$G92*$H92, Options!$B$8))) -> 14212.33927 | Q92: =IF(AND(OR(Calculations!$E$2="Orkney Health Board",Calculations!$E$2="Orkney Islands Local Authority"),$F92=1),0,IF(AND(OR(Calculations!$E$2="Shetland Health Board",Calculations!$E$2="Western Isles Health Board",Calculations!$E$2="Shetland Islands Local Authority",Calculations!$E$2="Eilean Siar Local Authority"),OR($F92=1,$F92=5)),0,prem_mort(VALUE(LEFT(Options!$B$24,2)),$C92,$E92,$F92,2016,$I92,1,$H92,$G92*$H92,Options!$B$8))) -> 797.7801023 | R92: =IF(AND(OR(Calculations!$E$2="Orkney Health Board",Calculations!$E$2="Orkney Islands Local Authority"),$F92=1),0,IF(AND(OR(Calculations!$E$2="Shetland Health Board",Calculations!$E$2="Western Isles Health Board",Calculations!$E$2="Shetland Islands Local Authority",Calculations!$E$2="Eilean Siar Local Authority"),OR($F92=1,$F92=5)),0,prem_mort(VALUE(LEFT(Options!$B$24,2)),$C92,$E92,$F92,2016,$I92+$J92,1,$H92,$G92*$H92,Options!$B$8))) -> 771.0739568 | S92: 3120.350852 | T92: 3015.895321 | U92: 46493.22769 | V92: 44936.84029 | W92: 55918.48504 | X92: 55588.60748 | Y92: 3120.350852 | Z92: 3015.895321 | AA92: 17161929.68 | AB92: 16587424.27 | AC92: 255712752.3 | AD92: 247152621.6 | AE92: =W92*$AI92 -> 307551667.7 | AF92: =X92*$AI92 -> 305737341.1 | AG92: =Y92*$AI92 -> 17161929.68 | AH92: =Z92*$AI92 -> 16587424.27 | AI92: 5500
B93: Male 70-74 | C93: 71.891098 | D93: 84.3411 | E93: male | F93: 1 | G93: =HLOOKUP(Calculations!$E$2,'Prevalence Rates'!$C$3:$BC$249,'Prevalence Rates'!$BD93,FALSE) -> 0.3969263423 | H93: =HLOOKUP(Calculations!$E$2,'Population 2016'!$C$3:$BC$249,'Population 2016'!BD93,FALSE) -> 18358 | I93: 0 | J93: =HLOOKUP(Results!E$4,Targeting!$C$3:$F$249,Targeting!$G93,FALSE) -> 3704 | K93: =IF(AND(OR(Calculations!$E$2="Orkney Health Board",Calculations!$E$2="Orkney Islands Local Authority"),$F93=1),0,IF(AND(OR(Calculations!$E$2="Shetland Health Board",Calculations!$E$2="Western Isles Health Board",Calculations!$E$2="Shetland Islands Local Authority",Calculations!$E$2="Eilean Siar Local Authority"),OR($F93=1,$F93=5)),0,new_ci(VALUE(LEFT(Options!$B$24,2)),$C93,$E93,$F93,2016,$I93,1,$H93,$G93*$H93,Options!$B$8))) -> 819.1131311 | L93: =IF(AND(OR(Calculations!$E$2="Orkney Health Board",Calculations!$E$2="Orkney Islands Local Authority"),$F93=1),0,IF(AND(OR(Calculations!$E$2="Shetland Health Board",Calculations!$E$2="Western Isles Health Board",Calculations!$E$2="Shetland Islands Local Authority",Calculations!$E$2="Eilean Siar Local Authority"),OR($F93=1,$F93=5)),0,new_ci(VALUE(LEFT(Options!$B$24,2)),$C93,$E93,$F93,2016,$I93+$J93,1,$H93,$G93*$H93,Options!$B$8))) -> 791.9775416 | M93: =IF(AND(OR(Calculations!$E$2="Orkney Health Board",Calculations!$E$2="Orkney Islands Local Authority"),$F93=1),0,IF(AND(OR(Calculations!$E$2="Shetland Health Board",Calculations!$E$2="Western Isles Health Board",Calculations!$E$2="Shetland Islands Local Authority",Calculations!$E$2="Eilean Siar Local Authority"),OR($F93=1,$F93=5)),0,new_yllv2(VALUE(LEFT(Options!$B$24,2)),$C93,$D93,$E93,$F93,2016,$I93,1,$H93,$G93*$H93,Options!$B$8))) -> 9378.84699 | N93: =IF(AND(OR(Calculations!$E$2="Orkney Health Board",Calculations!$E$2="Orkney Islands Local Authority"),$F93=1),0,IF(AND(OR(Calculations!$E$2="Shetland Health Board",Calculations!$E$2="Western Isles Health Board",Calculations!$E$2="Shetland Islands Local Authority",Calculations!$E$2="Eilean Siar Local Authority"),OR($F93=1,$F93=5)),0,new_yllv2(VALUE(LEFT(Options!$B$24,2)),$C93,$D93,$E93,$F93,2016,$I93+$J93,1,$H93,$G93*$H93,Options!$B$8))) -> 9068.144435 | O93: =IF(AND(OR(Calculations!$E$2="Orkney Health Board",Calculations!$E$2="Orkney Islands Local Authority"),$F93=1),0,IF(AND(OR(Calculations!$E$2="Shetland Health Board",Calculations!$E$2="Western Isles Health Board",Calculations!$E$2="Shetland Islands Local Authority",Calculations!$E$2="Eilean Siar Local Authority"),OR($F93=1,$F93=5)),0,hosp_count(VALUE(LEFT(Options!$B$24,2)),$C93,$E93,$F93,2016,$I93,1,$H93,$G93*$H93, Options!$B$8))) -> 12188.20958 | P93: =IF(AND(OR(Calculations!$E$2="Orkney Health Board",Calculations!$E$2="Orkney Islands Local Authority"),$F93=1),0,IF(AND(OR(Calculations!$E$2="Shetland Health Board",Calculations!$E$2="Western Isles Health Board",Calculations!$E$2="Shetland Islands Local Authority",Calculations!$E$2="Eilean Siar Local Authority"),OR($F93=1,$F93=5)),0,hosp_count(VALUE(LEFT(Options!$B$24,2)),$C93,$E93,$F93,2016,$I93+$J93,1,$H93,$G93*$H93, Options!$B$8))) -> 12116.31484 | Q93: =IF(AND(OR(Calculations!$E$2="Orkney Health Board",Calculations!$E$2="Orkney Islands Local Authority"),$F93=1),0,IF(AND(OR(Calculations!$E$2="Shetland Health Board",Calculations!$E$2="Western Isles Health Board",Calculations!$E$2="Shetland Islands Local Authority",Calculations!$E$2="Eilean Siar Local Authority"),OR($F93=1,$F93=5)),0,prem_mort(VALUE(LEFT(Options!$B$24,2)),$C93,$E93,$F93,2016,$I93,1,$H93,$G93*$H93,Options!$B$8))) -> 819.1131311 | R93: =IF(AND(OR(Calculations!$E$2="Orkney Health Board",Calculations!$E$2="Orkney Islands Local Authority"),$F93=1),0,IF(AND(OR(Calculations!$E$2="Shetland Health Board",Calculations!$E$2="Western Isles Health Board",Calculations!$E$2="Shetland Islands Local Authority",Calculations!$E$2="Eilean Siar Local Authority"),OR($F93=1,$F93=5)),0,prem_mort(VALUE(LEFT(Options!$B$24,2)),$C93,$E93,$F93,2016,$I93+$J93,1,$H93,$G93*$H93,Options!$B$8))) -> 791.9775416 | S93: 4461.886541 | T93: 4314.07311 | U93: 51088.60981 | V93: 49396.14574 | W93: 66391.81602 | X93: 66000.18978 | Y93: 4461.886541 | Z93: 4314.07311 | AA93: 22309432.7 | AB93: 21570365.55 | AC93: 255443049.1 | AD93: 246980728.7 | AE93: 331959080.1 | AF93: 330000948.9 | AG93: 22309432.7 | AH93: 21570365.55 | AI93: 5000
B94: Male 75-79 | C94: 76.9077 | D94: 86.3577 | E94: male | F94: 1 | G94: =HLOOKUP(Calculations!$E$2,'Prevalence Rates'!$C$3:$BC$249,'Prevalence Rates'!$BD94,FALSE) -> 0.2512395985 | H94: =HLOOKUP(Calculations!$E$2,'Population 2016'!$C$3:$BC$249,'Population 2016'!BD94,FALSE) -> 13914 | I94: 0 | J94: =HLOOKUP(Results!E$4,Targeting!$C$3:$F$249,Targeting!$G94,FALSE) -> 2807 | K94: =IF(AND(OR(Calculations!$E$2="Orkney Health Board",Calculations!$E$2="Orkney Islands Local Authority"),$F94=1),0,IF(AND(OR(Calculations!$E$2="Shetland Health Board",Calculations!$E$2="Western Isles Health Board",Calculations!$E$2="Shetland Islands Local Authority",Calculations!$E$2="Eilean Siar Local Authority"),OR($F94=1,$F94=5)),0,new_ci(VALUE(LEFT(Options!$B$24,2)),$C94,$E94,$F94,2016,$I94,1,$H94,$G94*$H94,Options!$B$8))) -> 896.6565477 | L94: =IF(AND(OR(Calculations!$E$2="Orkney Health Board",Calculations!$E$2="Orkney Islands Local Authority"),$F94=1),0,IF(AND(OR(Calculations!$E$2="Shetland Health Board",Calculations!$E$2="Western Isles Health Board",Calculations!$E$2="Shetland Islands Local Authority",Calculations!$E$2="Eilean Siar Local Authority"),OR($F94=1,$F94=5)),0,new_ci(VALUE(LEFT(Options!$B$24,2)),$C94,$E94,$F94,2016,$I94+$J94,1,$H94,$G94*$H94,Options!$B$8))) -> 864.8749672 | M94: =IF(AND(OR(Calculations!$E$2="Orkney Health Board",Calculations!$E$2="Orkney Islands Local Authority"),$F94=1),0,IF(AND(OR(Calculations!$E$2="Shetland Health Board",Calculations!$E$2="Western Isles Health Board",Calculations!$E$2="Shetland Islands Local Authority",Calculations!$E$2="Eilean Siar Local Authority"),OR($F94=1,$F94=5)),0,new_yllv2(VALUE(LEFT(Options!$B$24,2)),$C94,$D94,$E94,$F94,2016,$I94,1,$H94,$G94*$H94,Options!$B$8))) -> 7576.747828 | N94: =IF(AND(OR(Calculations!$E$2="Orkney Health Board",Calculations!$E$2="Orkney Islands Local Authority"),$F94=1),0,IF(AND(OR(Calculations!$E$2="Shetland Health Board",Calculations!$E$2="Western Isles Health Board",Calculations!$E$2="Shetland Islands Local Authority",Calculations!$E$2="Eilean Siar Local Authority"),OR($F94=1,$F94=5)),0,new_yllv2(VALUE(LEFT(Options!$B$24,2)),$C94,$D94,$E94,$F94,2016,$I94+$J94,1,$H94,$G94*$H94,Options!$B$8))) -> 7308.193473 | O94: =IF(AND(OR(Calculations!$E$2="Orkney Health Board",Calculations!$E$2="Orkney Islands Local Authority"),$F94=1),0,IF(AND(OR(Calculations!$E$2="Shetland Health Board",Calculations!$E$2="Western Isles Health Board",Calculations!$E$2="Shetland Islands Local Authority",Calculations!$E$2="Eilean Siar Local Authority"),OR($F94=1,$F94=5)),0,hosp_count(VALUE(LEFT(Options!$B$24,2)),$C94,$E94,$F94,2016,$I94,1,$H94,$G94*$H94, Options!$B$8))) -> 11038.22627 | P94: =IF(AND(OR(Calculations!$E$2="Orkney Health Board",Calculations!$E$2="Orkney Islands Local Authority"),$F94=1),0,IF(AND(OR(Calculations!$E$2="Shetland Health Board",Calculations!$E$2="Western Isles Health Board",Calculations!$E$2="Shetland Islands Local Authority",Calculations!$E$2="Eilean Siar Local Authority"),OR($F94=1,$F94=5)),0,hosp_count(VALUE(LEFT(Options!$B$24,2)),$C94,$E94,$F94,2016,$I94+$J94,1,$H94,$G94*$H94, Options!$B$8))) -> 10968.98516 | Q94: =IF(AND(OR(Calculations!$E$2="Orkney Health Board",Calculations!$E$2="Orkney Islands Local Authority"),$F94=1),0,IF(AND(OR(Calculations!$E$2="Shetland Health Board",Calculations!$E$2="Western Isles Health Board",Calculations!$E$2="Shetland Islands Local Authority",Calculations!$E$2="Eilean Siar Local Authority"),OR($F94=1,$F94=5)),0,prem_mort(VALUE(LEFT(Options!$B$24,2)),$C94,$E94,$F94,2016,$I94,1,$H94,$G94*$H94,Options!$B$8))) -> 0 | R94: =IF(AND(OR(Calculations!$E$2="Orkney Health Board",Calculations!$E$2="Orkney Islands Local Authority"),$F94=1),0,IF(AND(OR(Calculations!$E$2="Shetland Health Board",Calculations!$E$2="Western Isles Health Board",Calculations!$E$2="Shetland Islands Local Authority",Calculations!$E$2="Eilean Siar Local Authority"),OR($F94=1,$F94=5)),0,prem_mort(VALUE(LEFT(Options!$B$24,2)),$C94,$E94,$F94,2016,$I94+$J94,1,$H94,$G94*$H94,Options!$B$8))) -> 0 | S94: 6444.275892 | T94: 6215.861486 | U94: 54454.13129 | V94: 52524.02956 | W94: 79331.79723 | X94: 78834.16101 | Y94: 0 | Z94: 0 | AA94: 25777103.57 | AB94: 24863445.95 | AC94: 217816525.2 | AD94: 210096118.2 | AE94: 317327188.9 | AF94: 315336644.1 | AG94: 0 | AH94: 0 | AI94: 4000
B95: Male 80-84 | C95: 81.797089 | D95: 88.62709 | E95: male | F95: 1 | G95: =HLOOKUP(Calculations!$E$2,'Prevalence Rates'!$C$3:$BC$249,'Prevalence Rates'!$BD95,FALSE) -> 0.2512395985 | H95: =HLOOKUP(Calculations!$E$2,'Population 2016'!$C$3:$BC$249,'Population 2016'!BD95,FALSE) -> 9236 | I95: 0 | J95: =HLOOKUP(Results!E$4,Targeting!$C$3:$F$249,Targeting!$G95,FALSE) -> 1864 | K95: =IF(AND(OR(Calculations!$E$2="Orkney Health Board",Calculations!$E$2="Orkney Islands Local Authority"),$F95=1),0,IF(AND(OR(Calculations!$E$2="Shetland Health Board",Calculations!$E$2="Western Isles Health Board",Calculations!$E$2="Shetland Islands Local Authority",Calculations!$E$2="Eilean Siar Local Authority"),OR($F95=1,$F95=5)),0,new_ci(VALUE(LEFT(Options!$B$24,2)),$C95,$E95,$F95,2016,$I95,1,$H95,$G95*$H95,Options!$B$8))) -> 847.4322964 | L95: =IF(AND(OR(Calculations!$E$2="Orkney Health Board",Calculations!$E$2="Orkney Islands Local Authority"),$F95=1),0,IF(AND(OR(Calculations!$E$2="Shetland Health Board",Calculations!$E$2="Western Isles Health Board",Calculations!$E$2="Shetland Islands Local Authority",Calculations!$E$2="Eilean Siar Local Authority"),OR($F95=1,$F95=5)),0,new_ci(VALUE(LEFT(Options!$B$24,2)),$C95,$E95,$F95,2016,$I95+$J95,1,$H95,$G95*$H95,Options!$B$8))) -> 818.1532056 | M95: =IF(AND(OR(Calculations!$E$2="Orkney Health Board",Calculations!$E$2="Orkney Islands Local Authority"),$F95=1),0,IF(AND(OR(Calculations!$E$2="Shetland Health Board",Calculations!$E$2="Western Isles Health Board",Calculations!$E$2="Shetland Islands Local Authority",Calculations!$E$2="Eilean Siar Local Authority"),OR($F95=1,$F95=5)),0,new_yllv2(VALUE(LEFT(Options!$B$24,2)),$C95,$D95,$E95,$F95,2016,$I95,1,$H95,$G95*$H95,Options!$B$8))) -> 4940.531135 | N95: =IF(AND(OR(Calculations!$E$2="Orkney Health Board",Calculations!$E$2="Orkney Islands Local Authority"),$F95=1),0,IF(AND(OR(Calculations!$E$2="Shetland Health Board",Calculations!$E$2="Western Isles Health Board",Calculations!$E$2="Shetland Islands Local Authority",Calculations!$E$2="Eilean Siar Local Authority"),OR($F95=1,$F95=5)),0,new_yllv2(VALUE(LEFT(Options!$B$24,2)),$C95,$D95,$E95,$F95,2016,$I95+$J95,1,$H95,$G95*$H95,Options!$B$8))) -> 4769.834007 | O95: =IF(AND(OR(Calculations!$E$2="Orkney Health Board",Calculations!$E$2="Orkney Islands Local Authority"),$F95=1),0,IF(AND(OR(Calculations!$E$2="Shetland Health Board",Calculations!$E$2="Western Isles Health Board",Calculations!$E$2="Shetland Islands Local Authority",Calculations!$E$2="Eilean Siar Local Authority"),OR($F95=1,$F95=5)),0,hosp_count(VALUE(LEFT(Options!$B$24,2)),$C95,$E95,$F95,2016,$I95,1,$H95,$G95*$H95, Options!$B$8))) -> 8715.71314 | P95: =IF(AND(OR(Calculations!$E$2="Orkney Health Board",Calculations!$E$2="Orkney Islands Local Authority"),$F95=1),0,IF(AND(OR(Calculations!$E$2="Shetland Health Board",Calculations!$E$2="Western Isles Health Board",Calculations!$E$2="Shetland Islands Local Authority",Calculations!$E$2="Eilean Siar Local Authority"),OR($F95=1,$F95=5)),0,hosp_count(VALUE(LEFT(Options!$B$24,2)),$C95,$E95,$F95,2016,$I95+$J95,1,$H95,$G95*$H95, Options!$B$8))) -> 8661.019203 | Q95: =IF(AND(OR(Calculations!$E$2="Orkney Health Board",Calculations!$E$2="Orkney Islands Local Authority"),$F95=1),0,IF(AND(OR(Calculations!$E$2="Shetland Health Board",Calculations!$E$2="Western Isles Health Board",Calculations!$E$2="Shetland Islands Local Authority",Calculations!$E$2="Eilean Siar Local Authority"),OR($F95=1,$F95=5)),0,prem_mort(VALUE(LEFT(Options!$B$24,2)),$C95,$E95,$F95,2016,$I95,1,$H95,$G95*$H95,Options!$B$8))) -> 0 | R95: =IF(AND(OR(Calculations!$E$2="Orkney Health Board",Calculations!$E$2="Orkney Islands Local Authority"),$F95=1),0,IF(AND(OR(Calculations!$E$2="Shetland Health Board",Calculations!$E$2="Western Isles Health Board",Calculations!$E$2="Shetland Islands Local Authority",Calculations!$E$2="Eilean Siar Local Authority"),OR($F95=1,$F95=5)),0,prem_mort(VALUE(LEFT(Options!$B$24,2)),$C95,$E95,$F95,2016,$I95+$J95,1,$H95,$G95*$H95,Options!$B$8))) -> 0 | S95: 9175.317198 | T95: 8858.306687 | U95: 53492.10844 | V95: 51643.93685 | W95: 94366.75119 | X95: 93774.56911 | Y95: 0 | Z95: 0 | AA95: 22938292.99 | AB95: 22145766.72 | AC95: 133730271.1 | AD95: 129109842.1 | AE95: 235916878 | AF95: 234436422.8 | AG95: 0 | AH95: 0 | AI95: 2500
B96: Male 85-89 | C96: 86.630753 | D96: 91.42075 | E96: male | F96: 1 | G96: =HLOOKUP(Calculations!$E$2,'Prevalence Rates'!$C$3:$BC$249,'Prevalence Rates'!$BD96,FALSE) -> 0.2512395985 | H96: =HLOOKUP(Calculations!$E$2,'Population 2016'!$C$3:$BC$249,'Population 2016'!BD96,FALSE) -> 4449 | I96: 0 | J96: =HLOOKUP(Results!E$4,Targeting!$C$3:$F$249,Targeting!$G96,FALSE) -> 898 | K96: =IF(AND(OR(Calculations!$E$2="Orkney Health Board",Calculations!$E$2="Orkney Islands Local Authority"),$F96=1),0,IF(AND(OR(Calculations!$E$2="Shetland Health Board",Calculations!$E$2="Western Isles Health Board",Calculations!$E$2="Shetland Islands Local Authority",Calculations!$E$2="Eilean Siar Local Authority"),OR($F96=1,$F96=5)),0,new_ci(VALUE(LEFT(Options!$B$24,2)),$C96,$E96,$F96,2016,$I96,1,$H96,$G96*$H96,Options!$B$8))) -> 574.9869182 | L96: =IF(AND(OR(Calculations!$E$2="Orkney Health Board",Calculations!$E$2="Orkney Islands Local Authority"),$F96=1),0,IF(AND(OR(Calculations!$E$2="Shetland Health Board",Calculations!$E$2="Western Isles Health Board",Calculations!$E$2="Shetland Islands Local Authority",Calculations!$E$2="Eilean Siar Local Authority"),OR($F96=1,$F96=5)),0,new_ci(VALUE(LEFT(Options!$B$24,2)),$C96,$E96,$F96,2016,$I96+$J96,1,$H96,$G96*$H96,Options!$B$8))) -> 555.8443235 | M96: =IF(AND(OR(Calculations!$E$2="Orkney Health Board",Calculations!$E$2="Orkney Islands Local Authority"),$F96=1),0,IF(AND(OR(Calculations!$E$2="Shetland Health Board",Calculations!$E$2="Western Isles Health Board",Calculations!$E$2="Shetland Islands Local Authority",Calculations!$E$2="Eilean Siar Local Authority"),OR($F96=1,$F96=5)),0,new_yllv2(VALUE(LEFT(Options!$B$24,2)),$C96,$D96,$E96,$F96,2016,$I96,1,$H96,$G96*$H96,Options!$B$8))) -> 2179.198695 | N96: =IF(AND(OR(Calculations!$E$2="Orkney Health Board",Calculations!$E$2="Orkney Islands Local Authority"),$F96=1),0,IF(AND(OR(Calculations!$E$2="Shetland Health Board",Calculations!$E$2="Western Isles Health Board",Calculations!$E$2="Shetland Islands Local Authority",Calculations!$E$2="Eilean Siar Local Authority"),OR($F96=1,$F96=5)),0,new_yllv2(VALUE(LEFT(Options!$B$24,2)),$C96,$D96,$E96,$F96,2016,$I96+$J96,1,$H96,$G96*$H96,Options!$B$8))) -> 2106.648319 | O96: =IF(AND(OR(Calculations!$E$2="Orkney Health Board",Calculations!$E$2="Orkney Islands Local Authority"),$F96=1),0,IF(AND(OR(Calculations!$E$2="Shetland Health Board",Calculations!$E$2="Western Isles Health Board",Calculations!$E$2="Shetland Islands Local Authority",Calculations!$E$2="Eilean Siar Local Authority"),OR($F96=1,$F96=5)),0,hosp_count(VALUE(LEFT(Options!$B$24,2)),$C96,$E96,$F96,2016,$I96,1,$H96,$G96*$H96, Options!$B$8))) -> 4984.184367 | P96: =IF(AND(OR(Calculations!$E$2="Orkney Health Board",Calculations!$E$2="Orkney Islands Local Authority"),$F96=1),0,IF(AND(OR(Calculations!$E$2="Shetland Health Board",Calculations!$E$2="Western Isles Health Board",Calculations!$E$2="Shetland Islands Local Authority",Calculations!$E$2="Eilean Siar Local Authority"),OR($F96=1,$F96=5)),0,hosp_count(VALUE(LEFT(Options!$B$24,2)),$C96,$E96,$F96,2016,$I96+$J96,1,$H96,$G96*$H96, Options!$B$8))) -> 4952.903246 | Q96: =IF(AND(OR(Calculations!$E$2="Orkney Health Board",Calculations!$E$2="Orkney Islands Local Authority"),$F96=1),0,IF(AND(OR(Calculations!$E$2="Shetland Health Board",Calculations!$E$2="Western Isles Health Board",Calculations!$E$2="Shetland Islands Local Authority",Calculations!$E$2="Eilean Siar Local Authority"),OR($F96=1,$F96=5)),0,prem_mort(VALUE(LEFT(Options!$B$24,2)),$C96,$E96,$F96,2016,$I96,1,$H96,$G96*$H96,Options!$B$8))) -> 0 | R96: =IF(AND(OR(Calculations!$E$2="Orkney Health Board",Calculations!$E$2="Orkney Islands Local Authority"),$F96=1),0,IF(AND(OR(Calculations!$E$2="Shetland Health Board",Calculations!$E$2="Western Isles Health Board",Calculations!$E$2="Shetland Islands Local Authority",Calculations!$E$2="Eilean Siar Local Authority"),OR($F96=1,$F96=5)),0,prem_mort(VALUE(LEFT(Options!$B$24,2)),$C96,$E96,$F96,2016,$I96+$J96,1,$H96,$G96*$H96,Options!$B$8))) -> 0 | S96: 12923.9586 | T96: 12493.69125 | U96: 48981.76433 | V96: 47351.05234 | W96: 112029.3182 | X96: 111326.2137 | Y96: 0 | Z96: 0 | AA96: 19385937.9 | AB96: 18740536.87 | AC96: 73472646.5 | AD96: 71026578.51 | AE96: 168043977.3 | AF96: 166989320.5 | AG96: 0 | AH96: 0 | AI96: 1500
B97: Male 90+ | C97: 92.215477 | D97: 95.51548 | E97: male | F97: 1 | G97: =HLOOKUP(Calculations!$E$2,'Prevalence Rates'!$C$3:$BC$249,'Prevalence Rates'!$BD97,FALSE) -> 0.2512395985 | H97: =HLOOKUP(Calculations!$E$2,'Population 2016'!$C$3:$BC$249,'Population 2016'!BD97,FALSE) -> 1916 | I97: 0 | J97: =HLOOKUP(Results!E$4,Targeting!$C$3:$F$249,Targeting!$G97,FALSE) -> 387 | K97: =IF(AND(OR(Calculations!$E$2="Orkney Health Board",Calculations!$E$2="Orkney Islands Local Authority"),$F97=1),0,IF(AND(OR(Calculations!$E$2="Shetland Health Board",Calculations!$E$2="Western Isles Health Board",Calculations!$E$2="Shetland Islands Local Authority",Calculations!$E$2="Eilean Siar Local Authority"),OR($F97=1,$F97=5)),0,new_ci(VALUE(LEFT(Options!$B$24,2)),$C97,$E97,$F97,2016,$I97,1,$H97,$G97*$H97,Options!$B$8))) -> 363.4764194 | L97: =IF(AND(OR(Calculations!$E$2="Orkney Health Board",Calculations!$E$2="Orkney Islands Local Authority"),$F97=1),0,IF(AND(OR(Calculations!$E$2="Shetland Health Board",Calculations!$E$2="Western Isles Health Board",Calculations!$E$2="Shetland Islands Local Authority",Calculations!$E$2="Eilean Siar Local Authority"),OR($F97=1,$F97=5)),0,new_ci(VALUE(LEFT(Options!$B$24,2)),$C97,$E97,$F97,2016,$I97+$J97,1,$H97,$G97*$H97,Options!$B$8))) -> 352.1218057 | M97: =IF(AND(OR(Calculations!$E$2="Orkney Health Board",Calculations!$E$2="Orkney Islands Local Authority"),$F97=1),0,IF(AND(OR(Calculations!$E$2="Shetland Health Board",Calculations!$E$2="Western Isles Health Board",Calculations!$E$2="Shetland Islands Local Authority",Calculations!$E$2="Eilean Siar Local Authority"),OR($F97=1,$F97=5)),0,new_yllv2(VALUE(LEFT(Options!$B$24,2)),$C97,$D97,$E97,$F97,2016,$I97,1,$H97,$G97*$H97,Options!$B$8))) -> 835.996855 | N97: =IF(AND(OR(Calculations!$E$2="Orkney Health Board",Calculations!$E$2="Orkney Islands Local Authority"),$F97=1),0,IF(AND(OR(Calculations!$E$2="Shetland Health Board",Calculations!$E$2="Western Isles Health Board",Calculations!$E$2="Shetland Islands Local Authority",Calculations!$E$2="Eilean Siar Local Authority"),OR($F97=1,$F97=5)),0,new_yllv2(VALUE(LEFT(Options!$B$24,2)),$C97,$D97,$E97,$F97,2016,$I97+$J97,1,$H97,$G97*$H97,Options!$B$8))) -> 809.8812095 | O97: =IF(AND(OR(Calculations!$E$2="Orkney Health Board",Calculations!$E$2="Orkney Islands Local Authority"),$F97=1),0,IF(AND(OR(Calculations!$E$2="Shetland Health Board",Calculations!$E$2="Western Isles Health Board",Calculations!$E$2="Shetland Islands Local Authority",Calculations!$E$2="Eilean Siar Local Authority"),OR($F97=1,$F97=5)),0,hosp_count(VALUE(LEFT(Options!$B$24,2)),$C97,$E97,$F97,2016,$I97,1,$H97,$G97*$H97, Options!$B$8))) -> 2617.084529 | P97: =IF(AND(OR(Calculations!$E$2="Orkney Health Board",Calculations!$E$2="Orkney Islands Local Authority"),$F97=1),0,IF(AND(OR(Calculations!$E$2="Shetland Health Board",Calculations!$E$2="Western Isles Health Board",Calculations!$E$2="Shetland Islands Local Authority",Calculations!$E$2="Eilean Siar Local Authority"),OR($F97=1,$F97=5)),0,hosp_count(VALUE(LEFT(Options!$B$24,2)),$C97,$E97,$F97,2016,$I97+$J97,1,$H97,$G97*$H97, Options!$B$8))) -> 2600.648099 | Q97: =IF(AND(OR(Calculations!$E$2="Orkney Health Board",Calculations!$E$2="Orkney Islands Local Authority"),$F97=1),0,IF(AND(OR(Calculations!$E$2="Shetland Health Board",Calculations!$E$2="Western Isles Health Board",Calculations!$E$2="Shetland Islands Local Authority",Calculations!$E$2="Eilean Siar Local Authority"),OR($F97=1,$F97=5)),0,prem_mort(VALUE(LEFT(Options!$B$24,2)),$C97,$E97,$F97,2016,$I97,1,$H97,$G97*$H97,Options!$B$8))) -> 0 | R97: =IF(AND(OR(Calculations!$E$2="Orkney Health Board",Calculations!$E$2="Orkney Islands Local Authority"),$F97=1),0,IF(AND(OR(Calculations!$E$2="Shetland Health Board",Calculations!$E$2="Western Isles Health Board",Calculations!$E$2="Shetland Islands Local Authority",Calculations!$E$2="Eilean Siar Local Authority"),OR($F97=1,$F97=5)),0,prem_mort(VALUE(LEFT(Options!$B$24,2)),$C97,$E97,$F97,2016,$I97+$J97,1,$H97,$G97*$H97,Options!$B$8))) -> 0 | S97: 18970.58556 | T97: 18377.96481 | U97: 43632.4037 | V97: 42269.37419 | W97: 136591.0506 | X97: 135733.1993 | Y97: 0 | Z97: 0 | AA97: 18970585.56 | AB97: 18377964.81 | AC97: 43632403.7 | AD97: 42269374.19 | AE97: 136591050.6 | AF97: 135733199.3 | AG97: 0 | AH97: 0 | AI97: 1000
B98: Female 0-4 | C98: 2.0384007 | D98: 81.468401 | E98: female | F98: 2 | G98: =HLOOKUP(Calculations!$E$2,'Prevalence Rates'!$C$3:$BC$249,'Prevalence Rates'!$BD98,FALSE) -> 0 | H98: =HLOOKUP(Calculations!$E$2,'Population 2016'!$C$3:$BC$249,'Population 2016'!BD98,FALSE) -> 0 | I98: 0 | J98: =HLOOKUP(Results!E$4,Targeting!$C$3:$F$249,Targeting!$G98,FALSE) -> 0 | K98: =IF(AND(OR(Calculations!$E$2="Orkney Health Board",Calculations!$E$2="Orkney Islands Local Authority"),$F98=1),0,IF(AND(OR(Calculations!$E$2="Shetland Health Board",Calculations!$E$2="Western Isles Health Board",Calculations!$E$2="Shetland Islands Local Authority",Calculations!$E$2="Eilean Siar Local Authority"),OR($F98=1,$F98=5)),0,new_ci(VALUE(LEFT(Options!$B$24,2)),$C98,$E98,$F98,2016,$I98,1,$H98,$G98*$H98,Options!$B$8))) ->  | L98: =IF(AND(OR(Calculations!$E$2="Orkney Health Board",Calculations!$E$2="Orkney Islands Local Authority"),$F98=1),0,IF(AND(OR(Calculations!$E$2="Shetland Health Board",Calculations!$E$2="Western Isles Health Board",Calculations!$E$2="Shetland Islands Local Authority",Calculations!$E$2="Eilean Siar Local Authority"),OR($F98=1,$F98=5)),0,new_ci(VALUE(LEFT(Options!$B$24,2)),$C98,$E98,$F98,2016,$I98+$J98,1,$H98,$G98*$H98,Options!$B$8))) ->  | M98: =IF(AND(OR(Calculations!$E$2="Orkney Health Board",Calculations!$E$2="Orkney Islands Local Authority"),$F98=1),0,IF(AND(OR(Calculations!$E$2="Shetland Health Board",Calculations!$E$2="Western Isles Health Board",Calculations!$E$2="Shetland Islands Local Authority",Calculations!$E$2="Eilean Siar Local Authority"),OR($F98=1,$F98=5)),0,new_yllv2(VALUE(LEFT(Options!$B$24,2)),$C98,$D98,$E98,$F98,2016,$I98,1,$H98,$G98*$H98,Options!$B$8))) ->  | N98: =IF(AND(OR(Calculations!$E$2="Orkney Health Board",Calculations!$E$2="Orkney Islands Local Authority"),$F98=1),0,IF(AND(OR(Calculations!$E$2="Shetland Health Board",Calculations!$E$2="Western Isles Health Board",Calculations!$E$2="Shetland Islands Local Authority",Calculations!$E$2="Eilean Siar Local Authority"),OR($F98=1,$F98=5)),0,new_yllv2(VALUE(LEFT(Options!$B$24,2)),$C98,$D98,$E98,$F98,2016,$I98+$J98,1,$H98,$G98*$H98,Options!$B$8))) ->  | O98: =IF(AND(OR(Calculations!$E$2="Orkney Health Board",Calculations!$E$2="Orkney Islands Local Authority"),$F98=1),0,IF(AND(OR(Calculations!$E$2="Shetland Health Board",Calculations!$E$2="Western Isles Health Board",Calculations!$E$2="Shetland Islands Local Authority",Calculations!$E$2="Eilean Siar Local Authority"),OR($F98=1,$F98=5)),0,hosp_count(VALUE(LEFT(Options!$B$24,2)),$C98,$E98,$F98,2016,$I98,1,$H98,$G98*$H98, Options!$B$8))) ->  | P98: =IF(AND(OR(Calculations!$E$2="Orkney Health Board",Calculations!$E$2="Orkney Islands Local Authority"),$F98=1),0,IF(AND(OR(Calculations!$E$2="Shetland Health Board",Calculations!$E$2="Western Isles Health Board",Calculations!$E$2="Shetland Islands Local Authority",Calculations!$E$2="Eilean Siar Local Authority"),OR($F98=1,$F98=5)),0,hosp_count(VALUE(LEFT(Options!$B$24,2)),$C98,$E98,$F98,2016,$I98+$J98,1,$H98,$G98*$H98, Options!$B$8))) ->  | Q98: =IF(AND(OR(Calculations!$E$2="Orkney Health Board",Calculations!$E$2="Orkney Islands Local Authority"),$F98=1),0,IF(AND(OR(Calculations!$E$2="Shetland Health Board",Calculations!$E$2="Western Isles Health Board",Calculations!$E$2="Shetland Islands Local Authority",Calculations!$E$2="Eilean Siar Local Authority"),OR($F98=1,$F98=5)),0,prem_mort(VALUE(LEFT(Options!$B$24,2)),$C98,$E98,$F98,2016,$I98,1,$H98,$G98*$H98,Options!$B$8))) ->  | R98: =IF(AND(OR(Calculations!$E$2="Orkney Health Board",Calculations!$E$2="Orkney Islands Local Authority"),$F98=1),0,IF(AND(OR(Calculations!$E$2="Shetland Health Board",Calculations!$E$2="Western Isles Health Board",Calculations!$E$2="Shetland Islands Local Authority",Calculations!$E$2="Eilean Siar Local Authority"),OR($F98=1,$F98=5)),0,prem_mort(VALUE(LEFT(Options!$B$24,2)),$C98,$E98,$F98,2016,$I98+$J98,1,$H98,$G98*$H98,Options!$B$8))) ->  | AI98: 5000
B99: Female 5-9 | C99: 6.9792795 | D99: 81.43928 | E99: female | F99: 2 | G99: =HLOOKUP(Calculations!$E$2,'Prevalence Rates'!$C$3:$BC$249,'Prevalence Rates'!$BD99,FALSE) -> 0 | H99: =HLOOKUP(Calculations!$E$2,'Population 2016'!$C$3:$BC$249,'Population 2016'!BD99,FALSE) -> 0 | I99: 0 | J99: =HLOOKUP(Results!E$4,Targeting!$C$3:$F$249,Targeting!$G99,FALSE) -> 0 | K99: =IF(AND(OR(Calculations!$E$2="Orkney Health Board",Calculations!$E$2="Orkney Islands Local Authority"),$F99=1),0,IF(AND(OR(Calculations!$E$2="Shetland Health Board",Calculations!$E$2="Western Isles Health Board",Calculations!$E$2="Shetland Islands Local Authority",Calculations!$E$2="Eilean Siar Local Authority"),OR($F99=1,$F99=5)),0,new_ci(VALUE(LEFT(Options!$B$24,2)),$C99,$E99,$F99,2016,$I99,1,$H99,$G99*$H99,Options!$B$8))) ->  | L99: =IF(AND(OR(Calculations!$E$2="Orkney Health Board",Calculations!$E$2="Orkney Islands Local Authority"),$F99=1),0,IF(AND(OR(Calculations!$E$2="Shetland Health Board",Calculations!$E$2="Western Isles Health Board",Calculations!$E$2="Shetland Islands Local Authority",Calculations!$E$2="Eilean Siar Local Authority"),OR($F99=1,$F99=5)),0,new_ci(VALUE(LEFT(Options!$B$24,2)),$C99,$E99,$F99,2016,$I99+$J99,1,$H99,$G99*$H99,Options!$B$8))) ->  | M99: =IF(AND(OR(Calculations!$E$2="Orkney Health Board",Calculations!$E$2="Orkney Islands Local Authority"),$F99=1),0,IF(AND(OR(Calculations!$E$2="Shetland Health Board",Calculations!$E$2="Western Isles Health Board",Calculations!$E$2="Shetland Islands Local Authority",Calculations!$E$2="Eilean Siar Local Authority"),OR($F99=1,$F99=5)),0,new_yllv2(VALUE(LEFT(Options!$B$24,2)),$C99,$D99,$E99,$F99,2016,$I99,1,$H99,$G99*$H99,Options!$B$8))) ->  | N99: =IF(AND(OR(Calculations!$E$2="Orkney Health Board",Calculations!$E$2="Orkney Islands Local Authority"),$F99=1),0,IF(AND(OR(Calculations!$E$2="Shetland Health Board",Calculations!$E$2="Western Isles Health Board",Calculations!$E$2="Shetland Islands Local Authority",Calculations!$E$2="Eilean Siar Local Authority"),OR($F99=1,$F99=5)),0,new_yllv2(VALUE(LEFT(Options!$B$24,2)),$C99,$D99,$E99,$F99,2016,$I99+$J99,1,$H99,$G99*$H99,Options!$B$8))) ->  | O99: =IF(AND(OR(Calculations!$E$2="Orkney Health Board",Calculations!$E$2="Orkney Islands Local Authority"),$F99=1),0,IF(AND(OR(Calculations!$E$2="Shetland Health Board",Calculations!$E$2="Western Isles Health Board",Calculations!$E$2="Shetland Islands Local Authority",Calculations!$E$2="Eilean Siar Local Authority"),OR($F99=1,$F99=5)),0,hosp_count(VALUE(LEFT(Options!$B$24,2)),$C99,$E99,$F99,2016,$I99,1,$H99,$G99*$H99, Options!$B$8))) ->  | P99: =IF(AND(OR(Calculations!$E$2="Orkney Health Board",Calculations!$E$2="Orkney Islands Local Authority"),$F99=1),0,IF(AND(OR(Calculations!$E$2="Shetland Health Board",Calculations!$E$2="Western Isles Health Board",Calculations!$E$2="Shetland Islands Local Authority",Calculations!$E$2="Eilean Siar Local Authority"),OR($F99=1,$F99=5)),0,hosp_count(VALUE(LEFT(Options!$B$24,2)),$C99,$E99,$F99,2016,$I99+$J99,1,$H99,$G99*$H99, Options!$B$8))) ->  | Q99: =IF(AND(OR(Calculations!$E$2="Orkney Health Board",Calculations!$E$2="Orkney Islands Local Authority"),$F99=1),0,IF(AND(OR(Calculations!$E$2="Shetland Health Board",Calculations!$E$2="Western Isles Health Board",Calculations!$E$2="Shetland Islands Local Authority",Calculations!$E$2="Eilean Siar Local Authority"),OR($F99=1,$F99=5)),0,prem_mort(VALUE(LEFT(Options!$B$24,2)),$C99,$E99,$F99,2016,$I99,1,$H99,$G99*$H99,Options!$B$8))) ->  | R99: =IF(AND(OR(Calculations!$E$2="Orkney Health Board",Calculations!$E$2="Orkney Islands Local Authority"),$F99=1),0,IF(AND(OR(Calculations!$E$2="Shetland Health Board",Calculations!$E$2="Western Isles Health Board",Calculations!$E$2="Shetland Islands Local Authority",Calculations!$E$2="Eilean Siar Local Authority"),OR($F99=1,$F99=5)),0,prem_mort(VALUE(LEFT(Options!$B$24,2)),$C99,$E99,$F99,2016,$I99+$J99,1,$H99,$G99*$H99,Options!$B$8))) ->  | AI99: 5500
B100: Female 10-15 | C100: 12.478312 | D100: 81.94831 | E100: female | F100: 2 | G100: =HLOOKUP(Calculations!$E$2,'Prevalence Rates'!$C$3:$BC$249,'Prevalence Rates'!$BD100,FALSE) -> 0 | H100: =HLOOKUP(Calculations!$E$2,'Population 2016'!$C$3:$BC$249,'Population 2016'!BD100,FALSE) -> 0 | I100: 0 | J100: =HLOOKUP(Results!E$4,Targeting!$C$3:$F$249,Targeting!$G100,FALSE) -> 0 | K100: =IF(AND(OR(Calculations!$E$2="Orkney Health Board",Calculations!$E$2="Orkney Islands Local Authority"),$F100=1),0,IF(AND(OR(Calculations!$E$2="Shetland Health Board",Calculations!$E$2="Western Isles Health Board",Calculations!$E$2="Shetland Islands Local Authority",Calculations!$E$2="Eilean Siar Local Authority"),OR($F100=1,$F100=5)),0,new_ci(VALUE(LEFT(Options!$B$24,2)),$C100,$E100,$F100,2016,$I100,1,$H100,$G100*$H100,Options!$B$8))) ->  | L100: =IF(AND(OR(Calculations!$E$2="Orkney Health Board",Calculations!$E$2="Orkney Islands Local Authority"),$F100=1),0,IF(AND(OR(Calculations!$E$2="Shetland Health Board",Calculations!$E$2="Western Isles Health Board",Calculations!$E$2="Shetland Islands Local Authority",Calculations!$E$2="Eilean Siar Local Authority"),OR($F100=1,$F100=5)),0,new_ci(VALUE(LEFT(Options!$B$24,2)),$C100,$E100,$F100,2016,$I100+$J100,1,$H100,$G100*$H100,Options!$B$8))) ->  | M100: =IF(AND(OR(Calculations!$E$2="Orkney Health Board",Calculations!$E$2="Orkney Islands Local Authority"),$F100=1),0,IF(AND(OR(Calculations!$E$2="Shetland Health Board",Calculations!$E$2="Western Isles Health Board",Calculations!$E$2="Shetland Islands Local Authority",Calculations!$E$2="Eilean Siar Local Authority"),OR($F100=1,$F100=5)),0,new_yllv2(VALUE(LEFT(Options!$B$24,2)),$C100,$D100,$E100,$F100,2016,$I100,1,$H100,$G100*$H100,Options!$B$8))) ->  | N100: =IF(AND(OR(Calculations!$E$2="Orkney Health Board",Calculations!$E$2="Orkney Islands Local Authority"),$F100=1),0,IF(AND(OR(Calculations!$E$2="Shetland Health Board",Calculations!$E$2="Western Isles Health Board",Calculations!$E$2="Shetland Islands Local Authority",Calculations!$E$2="Eilean Siar Local Authority"),OR($F100=1,$F100=5)),0,new_yllv2(VALUE(LEFT(Options!$B$24,2)),$C100,$D100,$E100,$F100,2016,$I100+$J100,1,$H100,$G100*$H100,Options!$B$8))) ->  | O100: =IF(AND(OR(Calculations!$E$2="Orkney Health Board",Calculations!$E$2="Orkney Islands Local Authority"),$F100=1),0,IF(AND(OR(Calculations!$E$2="Shetland Health Board",Calculations!$E$2="Western Isles Health Board",Calculations!$E$2="Shetland Islands Local Authority",Calculations!$E$2="Eilean Siar Local Authority"),OR($F100=1,$F100=5)),0,hosp_count(VALUE(LEFT(Options!$B$24,2)),$C100,$E100,$F100,2016,$I100,1,$H100,$G100*$H100, Options!$B$8))) ->  | P100: =IF(AND(OR(Calculations!$E$2="Orkney Health Board",Calculations!$E$2="Orkney Islands Local Authority"),$F100=1),0,IF(AND(OR(Calculations!$E$2="Shetland Health Board",Calculations!$E$2="Western Isles Health Board",Calculations!$E$2="Shetland Islands Local Authority",Calculations!$E$2="Eilean Siar Local Authority"),OR($F100=1,$F100=5)),0,hosp_count(VALUE(LEFT(Options!$B$24,2)),$C100,$E100,$F100,2016,$I100+$J100,1,$H100,$G100*$H100, Options!$B$8))) ->  | Q100: =IF(AND(OR(Calculations!$E$2="Orkney Health Board",Calculations!$E$2="Orkney Islands Local Authority"),$F100=1),0,IF(AND(OR(Calculations!$E$2="Shetland Health Board",Calculations!$E$2="Western Isles Health Board",Calculations!$E$2="Shetland Islands Local Authority",Calculations!$E$2="Eilean Siar Local Authority"),OR($F100=1,$F100=5)),0,prem_mort(VALUE(LEFT(Options!$B$24,2)),$C100,$E100,$F100,2016,$I100,1,$H100,$G100*$H100,Options!$B$8))) ->  | R100: =IF(AND(OR(Calculations!$E$2="Orkney Health Board",Calculations!$E$2="Orkney Islands Local Authority"),$F100=1),0,IF(AND(OR(Calculations!$E$2="Shetland Health Board",Calculations!$E$2="Western Isles Health Board",Calculations!$E$2="Shetland Islands Local Authority",Calculations!$E$2="Eilean Siar Local Authority"),OR($F100=1,$F100=5)),0,prem_mort(VALUE(LEFT(Options!$B$24,2)),$C100,$E100,$F100,2016,$I100+$J100,1,$H100,$G100*$H100,Options!$B$8))) ->  | AI100: 6600
A101: SIMD Q2 | B101: Female 16-19 | C101: 17.570053 | D101: 81.10005 | E101: female | F101: 2 | G101: =HLOOKUP(Calculations!$E$2,'Prevalence Rates'!$C$3:$BC$249,'Prevalence Rates'!$BD101,FALSE) -> 0.1274116291 | H101: =HLOOKUP(Calculations!$E$2,'Population 2016'!$C$3:$BC$249,'Population 2016'!BD101,FALSE) -> 23121 | I101: 0 | J101: =HLOOKUP(Results!E$4,Targeting!$C$3:$F$249,Targeting!$G101,FALSE) -> 4665 | K101: =IF(AND(OR(Calculations!$E$2="Orkney Health Board",Calculations!$E$2="Orkney Islands Local Authority"),$F101=1),0,IF(AND(OR(Calculations!$E$2="Shetland Health Board",Calculations!$E$2="Western Isles Health Board",Calculations!$E$2="Shetland Islands Local Authority",Calculations!$E$2="Eilean Siar Local Authority"),OR($F101=1,$F101=5)),0,new_ci(VALUE(LEFT(Options!$B$24,2)),$C101,$E101,$F101,2016,$I101,1,$H101,$G101*$H101,Options!$B$8))) -> 5.147444147 | L101: =IF(AND(OR(Calculations!$E$2="Orkney Health Board",Calculations!$E$2="Orkney Islands Local Authority"),$F101=1),0,IF(AND(OR(Calculations!$E$2="Shetland Health Board",Calculations!$E$2="Western Isles Health Board",Calculations!$E$2="Shetland Islands Local Authority",Calculations!$E$2="Eilean Siar Local Authority"),OR($F101=1,$F101=5)),0,new_ci(VALUE(LEFT(Options!$B$24,2)),$C101,$E101,$F101,2016,$I101+$J101,1,$H101,$G101*$H101,Options!$B$8))) -> 4.93707224 | M101: =IF(AND(OR(Calculations!$E$2="Orkney Health Board",Calculations!$E$2="Orkney Islands Local Authority"),$F101=1),0,IF(AND(OR(Calculations!$E$2="Shetland Health Board",Calculations!$E$2="Western Isles Health Board",Calculations!$E$2="Shetland Islands Local Authority",Calculations!$E$2="Eilean Siar Local Authority"),OR($F101=1,$F101=5)),0,new_yllv2(VALUE(LEFT(Options!$B$24,2)),$C101,$D101,$E101,$F101,2016,$I101,1,$H101,$G101*$H101,Options!$B$8))) -> 321.8696671 | N101: =IF(AND(OR(Calculations!$E$2="Orkney Health Board",Calculations!$E$2="Orkney Islands Local Authority"),$F101=1),0,IF(AND(OR(Calculations!$E$2="Shetland Health Board",Calculations!$E$2="Western Isles Health Board",Calculations!$E$2="Shetland Islands Local Authority",Calculations!$E$2="Eilean Siar Local Authority"),OR($F101=1,$F101=5)),0,new_yllv2(VALUE(LEFT(Options!$B$24,2)),$C101,$D101,$E101,$F101,2016,$I101+$J101,1,$H101,$G101*$H101,Options!$B$8))) -> 308.7151123 | O101: =IF(AND(OR(Calculations!$E$2="Orkney Health Board",Calculations!$E$2="Orkney Islands Local Authority"),$F101=1),0,IF(AND(OR(Calculations!$E$2="Shetland Health Board",Calculations!$E$2="Western Isles Health Board",Calculations!$E$2="Shetland Islands Local Authority",Calculations!$E$2="Eilean Siar Local Authority"),OR($F101=1,$F101=5)),0,hosp_count(VALUE(LEFT(Options!$B$24,2)),$C101,$E101,$F101,2016,$I101,1,$H101,$G101*$H101, Options!$B$8))) -> 2679.139383 | P101: =IF(AND(OR(Calculations!$E$2="Orkney Health Board",Calculations!$E$2="Orkney Islands Local Authority"),$F101=1),0,IF(AND(OR(Calculations!$E$2="Shetland Health Board",Calculations!$E$2="Western Isles Health Board",Calculations!$E$2="Shetland Islands Local Authority",Calculations!$E$2="Eilean Siar Local Authority"),OR($F101=1,$F101=5)),0,hosp_count(VALUE(LEFT(Options!$B$24,2)),$C101,$E101,$F101,2016,$I101+$J101,1,$H101,$G101*$H101, Options!$B$8))) -> 2663.173334 | Q101: =IF(AND(OR(Calculations!$E$2="Orkney Health Board",Calculations!$E$2="Orkney Islands Local Authority"),$F101=1),0,IF(AND(OR(Calculations!$E$2="Shetland Health Board",Calculations!$E$2="Western Isles Health Board",Calculations!$E$2="Shetland Islands Local Authority",Calculations!$E$2="Eilean Siar Local Authority"),OR($F101=1,$F101=5)),0,prem_mort(VALUE(LEFT(Options!$B$24,2)),$C101,$E101,$F101,2016,$I101,1,$H101,$G101*$H101,Options!$B$8))) -> 5.147444147 | R101: =IF(AND(OR(Calculations!$E$2="Orkney Health Board",Calculations!$E$2="Orkney Islands Local Authority"),$F101=1),0,IF(AND(OR(Calculations!$E$2="Shetland Health Board",Calculations!$E$2="Western Isles Health Board",Calculations!$E$2="Shetland Islands Local Authority",Calculations!$E$2="Eilean Siar Local Authority"),OR($F101=1,$F101=5)),0,prem_mort(VALUE(LEFT(Options!$B$24,2)),$C101,$E101,$F101,2016,$I101+$J101,1,$H101,$G101*$H101,Options!$B$8))) -> 4.93707224 | S101: 22.26306884 | T101: 21.3531951 | U101: 1392.109628 | V101: 1335.215226 | W101: 11587.47192 | X101: 11518.4176 | Y101: 22.26306884 | Z101: 21.3531951 | AA101: 97957.5029 | AB101: 93954.05845 | AC101: 6125282.362 | AD101: 5874946.993 | AE101: 50984876.45 | AF101: 50681037.46 | AG101: 97957.5029 | AH101: 93954.05845 | AI101: 4400
B102: Female 20-24 | C102: 22.077057 | D102: 81.66706 | E102: female | F102: 2 | G102: =HLOOKUP(Calculations!$E$2,'Prevalence Rates'!$C$3:$BC$249,'Prevalence Rates'!$BD102,FALSE) -> 0.1274116291 | H102: =HLOOKUP(Calculations!$E$2,'Population 2016'!$C$3:$BC$249,'Population 2016'!BD102,FALSE) -> 36899 | I102: 0 | J102: =HLOOKUP(Results!E$4,Targeting!$C$3:$F$249,Targeting!$G102,FALSE) -> 7445 | K102: =IF(AND(OR(Calculations!$E$2="Orkney Health Board",Calculations!$E$2="Orkney Islands Local Authority"),$F102=1),0,IF(AND(OR(Calculations!$E$2="Shetland Health Board",Calculations!$E$2="Western Isles Health Board",Calculations!$E$2="Shetland Islands Local Authority",Calculations!$E$2="Eilean Siar Local Authority"),OR($F102=1,$F102=5)),0,new_ci(VALUE(LEFT(Options!$B$24,2)),$C102,$E102,$F102,2016,$I102,1,$H102,$G102*$H102,Options!$B$8))) -> 12.05197878 | L102: =IF(AND(OR(Calculations!$E$2="Orkney Health Board",Calculations!$E$2="Orkney Islands Local Authority"),$F102=1),0,IF(AND(OR(Calculations!$E$2="Shetland Health Board",Calculations!$E$2="Western Isles Health Board",Calculations!$E$2="Shetland Islands Local Authority",Calculations!$E$2="Eilean Siar Local Authority"),OR($F102=1,$F102=5)),0,new_ci(VALUE(LEFT(Options!$B$24,2)),$C102,$E102,$F102,2016,$I102+$J102,1,$H102,$G102*$H102,Options!$B$8))) -> 11.55946895 | M102: =IF(AND(OR(Calculations!$E$2="Orkney Health Board",Calculations!$E$2="Orkney Islands Local Authority"),$F102=1),0,IF(AND(OR(Calculations!$E$2="Shetland Health Board",Calculations!$E$2="Western Isles Health Board",Calculations!$E$2="Shetland Islands Local Authority",Calculations!$E$2="Eilean Siar Local Authority"),OR($F102=1,$F102=5)),0,new_yllv2(VALUE(LEFT(Options!$B$24,2)),$C102,$D102,$E102,$F102,2016,$I102,1,$H102,$G102*$H102,Options!$B$8))) -> 706.125473 | N102: =IF(AND(OR(Calculations!$E$2="Orkney Health Board",Calculations!$E$2="Orkney Islands Local Authority"),$F102=1),0,IF(AND(OR(Calculations!$E$2="Shetland Health Board",Calculations!$E$2="Western Isles Health Board",Calculations!$E$2="Shetland Islands Local Authority",Calculations!$E$2="Eilean Siar Local Authority"),OR($F102=1,$F102=5)),0,new_yllv2(VALUE(LEFT(Options!$B$24,2)),$C102,$D102,$E102,$F102,2016,$I102+$J102,1,$H102,$G102*$H102,Options!$B$8))) -> 677.2693206 | O102: =IF(AND(OR(Calculations!$E$2="Orkney Health Board",Calculations!$E$2="Orkney Islands Local Authority"),$F102=1),0,IF(AND(OR(Calculations!$E$2="Shetland Health Board",Calculations!$E$2="Western Isles Health Board",Calculations!$E$2="Shetland Islands Local Authority",Calculations!$E$2="Eilean Siar Local Authority"),OR($F102=1,$F102=5)),0,hosp_count(VALUE(LEFT(Options!$B$24,2)),$C102,$E102,$F102,2016,$I102,1,$H102,$G102*$H102, Options!$B$8))) -> 4788.927841 | P102: =IF(AND(OR(Calculations!$E$2="Orkney Health Board",Calculations!$E$2="Orkney Islands Local Authority"),$F102=1),0,IF(AND(OR(Calculations!$E$2="Shetland Health Board",Calculations!$E$2="Western Isles Health Board",Calculations!$E$2="Shetland Islands Local Authority",Calculations!$E$2="Eilean Siar Local Authority"),OR($F102=1,$F102=5)),0,hosp_count(VALUE(LEFT(Options!$B$24,2)),$C102,$E102,$F102,2016,$I102+$J102,1,$H102,$G102*$H102, Options!$B$8))) -> 4760.388398 | Q102: =IF(AND(OR(Calculations!$E$2="Orkney Health Board",Calculations!$E$2="Orkney Islands Local Authority"),$F102=1),0,IF(AND(OR(Calculations!$E$2="Shetland Health Board",Calculations!$E$2="Western Isles Health Board",Calculations!$E$2="Shetland Islands Local Authority",Calculations!$E$2="Eilean Siar Local Authority"),OR($F102=1,$F102=5)),0,prem_mort(VALUE(LEFT(Options!$B$24,2)),$C102,$E102,$F102,2016,$I102,1,$H102,$G102*$H102,Options!$B$8))) -> 12.05197878 | R102: =IF(AND(OR(Calculations!$E$2="Orkney Health Board",Calculations!$E$2="Orkney Islands Local Authority"),$F102=1),0,IF(AND(OR(Calculations!$E$2="Shetland Health Board",Calculations!$E$2="Western Isles Health Board",Calculations!$E$2="Shetland Islands Local Authority",Calculations!$E$2="Eilean Siar Local Authority"),OR($F102=1,$F102=5)),0,prem_mort(VALUE(LEFT(Options!$B$24,2)),$C102,$E102,$F102,2016,$I102+$J102,1,$H102,$G102*$H102,Options!$B$8))) -> 11.55946895 | S102: 32.66207426 | T102: 31.32732311 | U102: 1913.671029 | V102: 1835.467955 | W102: 12978.47595 | X102: 12901.13119 | Y102: 32.66207426 | Z102: 31.32732311 | AA102: 195972.4456 | AB102: 187963.9386 | AC102: 11482026.17 | AD102: 11012807.73 | AE102: 77870855.7 | AF102: 77406787.15 | AG102: 195972.4456 | AH102: 187963.9386 | AI102: 6000
B103: Female 25-29 | C103: 26.975187 | D103: 81.64519 | E103: female | F103: 2 | G103: =HLOOKUP(Calculations!$E$2,'Prevalence Rates'!$C$3:$BC$249,'Prevalence Rates'!$BD103,FALSE) -> 0.3307499409 | H103: =HLOOKUP(Calculations!$E$2,'Population 2016'!$C$3:$BC$249,'Population 2016'!BD103,FALSE) -> 40610 | I103: 0 | J103: =HLOOKUP(Results!E$4,Targeting!$C$3:$F$249,Targeting!$G103,FALSE) -> 8194 | K103: =IF(AND(OR(Calculations!$E$2="Orkney Health Board",Calculations!$E$2="Orkney Islands Local Authority"),$F103=1),0,IF(AND(OR(Calculations!$E$2="Shetland Health Board",Calculations!$E$2="Western Isles Health Board",Calculations!$E$2="Shetland Islands Local Authority",Calculations!$E$2="Eilean Siar Local Authority"),OR($F103=1,$F103=5)),0,new_ci(VALUE(LEFT(Options!$B$24,2)),$C103,$E103,$F103,2016,$I103,1,$H103,$G103*$H103,Options!$B$8))) -> 20.11708133 | L103: =IF(AND(OR(Calculations!$E$2="Orkney Health Board",Calculations!$E$2="Orkney Islands Local Authority"),$F103=1),0,IF(AND(OR(Calculations!$E$2="Shetland Health Board",Calculations!$E$2="Western Isles Health Board",Calculations!$E$2="Shetland Islands Local Authority",Calculations!$E$2="Eilean Siar Local Authority"),OR($F103=1,$F103=5)),0,new_ci(VALUE(LEFT(Options!$B$24,2)),$C103,$E103,$F103,2016,$I103+$J103,1,$H103,$G103*$H103,Options!$B$8))) -> 19.39971466 | M103: =IF(AND(OR(Calculations!$E$2="Orkney Health Board",Calculations!$E$2="Orkney Islands Local Authority"),$F103=1),0,IF(AND(OR(Calculations!$E$2="Shetland Health Board",Calculations!$E$2="Western Isles Health Board",Calculations!$E$2="Shetland Islands Local Authority",Calculations!$E$2="Eilean Siar Local Authority"),OR($F103=1,$F103=5)),0,new_yllv2(VALUE(LEFT(Options!$B$24,2)),$C103,$D103,$E103,$F103,2016,$I103,1,$H103,$G103*$H103,Options!$B$8))) -> 1079.683816 | N103: =IF(AND(OR(Calculations!$E$2="Orkney Health Board",Calculations!$E$2="Orkney Islands Local Authority"),$F103=1),0,IF(AND(OR(Calculations!$E$2="Shetland Health Board",Calculations!$E$2="Western Isles Health Board",Calculations!$E$2="Shetland Islands Local Authority",Calculations!$E$2="Eilean Siar Local Authority"),OR($F103=1,$F103=5)),0,new_yllv2(VALUE(LEFT(Options!$B$24,2)),$C103,$D103,$E103,$F103,2016,$I103+$J103,1,$H103,$G103*$H103,Options!$B$8))) -> 1041.182744 | O103: =IF(AND(OR(Calculations!$E$2="Orkney Health Board",Calculations!$E$2="Orkney Islands Local Authority"),$F103=1),0,IF(AND(OR(Calculations!$E$2="Shetland Health Board",Calculations!$E$2="Western Isles Health Board",Calculations!$E$2="Shetland Islands Local Authority",Calculations!$E$2="Eilean Siar Local Authority"),OR($F103=1,$F103=5)),0,hosp_count(VALUE(LEFT(Options!$B$24,2)),$C103,$E103,$F103,2016,$I103,1,$H103,$G103*$H103, Options!$B$8))) -> 5961.621382 | P103: =IF(AND(OR(Calculations!$E$2="Orkney Health Board",Calculations!$E$2="Orkney Islands Local Authority"),$F103=1),0,IF(AND(OR(Calculations!$E$2="Shetland Health Board",Calculations!$E$2="Western Isles Health Board",Calculations!$E$2="Shetland Islands Local Authority",Calculations!$E$2="Eilean Siar Local Authority"),OR($F103=1,$F103=5)),0,hosp_count(VALUE(LEFT(Options!$B$24,2)),$C103,$E103,$F103,2016,$I103+$J103,1,$H103,$G103*$H103, Options!$B$8))) -> 5928.123561 | Q103: =IF(AND(OR(Calculations!$E$2="Orkney Health Board",Calculations!$E$2="Orkney Islands Local Authority"),$F103=1),0,IF(AND(OR(Calculations!$E$2="Shetland Health Board",Calculations!$E$2="Western Isles Health Board",Calculations!$E$2="Shetland Islands Local Authority",Calculations!$E$2="Eilean Siar Local Authority"),OR($F103=1,$F103=5)),0,prem_mort(VALUE(LEFT(Options!$B$24,2)),$C103,$E103,$F103,2016,$I103,1,$H103,$G103*$H103,Options!$B$8))) -> 20.11708133 | R103: =IF(AND(OR(Calculations!$E$2="Orkney Health Board",Calculations!$E$2="Orkney Islands Local Authority"),$F103=1),0,IF(AND(OR(Calculations!$E$2="Shetland Health Board",Calculations!$E$2="Western Isles Health Board",Calculations!$E$2="Shetland Islands Local Authority",Calculations!$E$2="Eilean Siar Local Authority"),OR($F103=1,$F103=5)),0,prem_mort(VALUE(LEFT(Options!$B$24,2)),$C103,$E103,$F103,2016,$I103+$J103,1,$H103,$G103*$H103,Options!$B$8))) -> 19.39971466 | S103: 49.53726012 | T103: 47.77078222 | U103: 2658.664899 | V103: 2563.858025 | W103: 14680.1807 | X103: 14597.69407 | Y103: 49.53726012 | Z103: 47.77078222 | AA103: 297223.5607 | AB103: 286624.6933 | AC103: 15951989.39 | AD103: 15383148.15 | AE103: 88081084.2 | AF103: 87586164.41 | AG103: 297223.5607 | AH103: 286624.6933 | AI103: 6000
B104: Female 30-34 | C104: 31.999905 | D104: 81.7999 | E104: female | F104: 2 | G104: =HLOOKUP(Calculations!$E$2,'Prevalence Rates'!$C$3:$BC$249,'Prevalence Rates'!$BD104,FALSE) -> 0.3307499409 | H104: =HLOOKUP(Calculations!$E$2,'Population 2016'!$C$3:$BC$249,'Population 2016'!BD104,FALSE) -> 38102 | I104: 0 | J104: =HLOOKUP(Results!E$4,Targeting!$C$3:$F$249,Targeting!$G104,FALSE) -> 7688 | K104: =IF(AND(OR(Calculations!$E$2="Orkney Health Board",Calculations!$E$2="Orkney Islands Local Authority"),$F104=1),0,IF(AND(OR(Calculations!$E$2="Shetland Health Board",Calculations!$E$2="Western Isles Health Board",Calculations!$E$2="Shetland Islands Local Authority",Calculations!$E$2="Eilean Siar Local Authority"),OR($F104=1,$F104=5)),0,new_ci(VALUE(LEFT(Options!$B$24,2)),$C104,$E104,$F104,2016,$I104,1,$H104,$G104*$H104,Options!$B$8))) -> 28.93500815 | L104: =IF(AND(OR(Calculations!$E$2="Orkney Health Board",Calculations!$E$2="Orkney Islands Local Authority"),$F104=1),0,IF(AND(OR(Calculations!$E$2="Shetland Health Board",Calculations!$E$2="Western Isles Health Board",Calculations!$E$2="Shetland Islands Local Authority",Calculations!$E$2="Eilean Siar Local Authority"),OR($F104=1,$F104=5)),0,new_ci(VALUE(LEFT(Options!$B$24,2)),$C104,$E104,$F104,2016,$I104+$J104,1,$H104,$G104*$H104,Options!$B$8))) -> 27.9034054 | M104: =IF(AND(OR(Calculations!$E$2="Orkney Health Board",Calculations!$E$2="Orkney Islands Local Authority"),$F104=1),0,IF(AND(OR(Calculations!$E$2="Shetland Health Board",Calculations!$E$2="Western Isles Health Board",Calculations!$E$2="Shetland Islands Local Authority",Calculations!$E$2="Eilean Siar Local Authority"),OR($F104=1,$F104=5)),0,new_yllv2(VALUE(LEFT(Options!$B$24,2)),$C104,$D104,$E104,$F104,2016,$I104,1,$H104,$G104*$H104,Options!$B$8))) -> 1412.028253 | N104: =IF(AND(OR(Calculations!$E$2="Orkney Health Board",Calculations!$E$2="Orkney Islands Local Authority"),$F104=1),0,IF(AND(OR(Calculations!$E$2="Shetland Health Board",Calculations!$E$2="Western Isles Health Board",Calculations!$E$2="Shetland Islands Local Authority",Calculations!$E$2="Eilean Siar Local Authority"),OR($F104=1,$F104=5)),0,new_yllv2(VALUE(LEFT(Options!$B$24,2)),$C104,$D104,$E104,$F104,2016,$I104+$J104,1,$H104,$G104*$H104,Options!$B$8))) -> 1361.686044 | O104: =IF(AND(OR(Calculations!$E$2="Orkney Health Board",Calculations!$E$2="Orkney Islands Local Authority"),$F104=1),0,IF(AND(OR(Calculations!$E$2="Shetland Health Board",Calculations!$E$2="Western Isles Health Board",Calculations!$E$2="Shetland Islands Local Authority",Calculations!$E$2="Eilean Siar Local Authority"),OR($F104=1,$F104=5)),0,hosp_count(VALUE(LEFT(Options!$B$24,2)),$C104,$E104,$F104,2016,$I104,1,$H104,$G104*$H104, Options!$B$8))) -> 6347.018148 | P104: =IF(AND(OR(Calculations!$E$2="Orkney Health Board",Calculations!$E$2="Orkney Islands Local Authority"),$F104=1),0,IF(AND(OR(Calculations!$E$2="Shetland Health Board",Calculations!$E$2="Western Isles Health Board",Calculations!$E$2="Shetland Islands Local Authority",Calculations!$E$2="Eilean Siar Local Authority"),OR($F104=1,$F104=5)),0,hosp_count(VALUE(LEFT(Options!$B$24,2)),$C104,$E104,$F104,2016,$I104+$J104,1,$H104,$G104*$H104, Options!$B$8))) -> 6311.354601 | Q104: =IF(AND(OR(Calculations!$E$2="Orkney Health Board",Calculations!$E$2="Orkney Islands Local Authority"),$F104=1),0,IF(AND(OR(Calculations!$E$2="Shetland Health Board",Calculations!$E$2="Western Isles Health Board",Calculations!$E$2="Shetland Islands Local Authority",Calculations!$E$2="Eilean Siar Local Authority"),OR($F104=1,$F104=5)),0,prem_mort(VALUE(LEFT(Options!$B$24,2)),$C104,$E104,$F104,2016,$I104,1,$H104,$G104*$H104,Options!$B$8))) -> 28.93500815 | R104: =IF(AND(OR(Calculations!$E$2="Orkney Health Board",Calculations!$E$2="Orkney Islands Local Authority"),$F104=1),0,IF(AND(OR(Calculations!$E$2="Shetland Health Board",Calculations!$E$2="Western Isles Health Board",Calculations!$E$2="Shetland Islands Local Authority",Calculations!$E$2="Eilean Siar Local Authority"),OR($F104=1,$F104=5)),0,prem_mort(VALUE(LEFT(Options!$B$24,2)),$C104,$E104,$F104,2016,$I104+$J104,1,$H104,$G104*$H104,Options!$B$8))) -> 27.9034054 | S104: 75.94091687 | T104: 73.23344023 | U104: 3705.916364 | V104: 3573.791517 | W104: 16657.96585 | X104: 16564.36565 | Y104: 75.94091687 | Z104: 73.23344023 | AA104: 493615.9596 | AB104: 476017.3615 | AC104: 24088456.36 | AD104: 23229644.86 | AE104: 108276778 | AF104: 107668376.7 | AG104: 493615.9596 | AH104: 476017.3615 | AI104: 6500
B105: Female 35-39 | C105: 36.918118 | D105: 81.89812 | E105: female | F105: 2 | G105: =HLOOKUP(Calculations!$E$2,'Prevalence Rates'!$C$3:$BC$249,'Prevalence Rates'!$BD105,FALSE) -> 0.3889368769 | H105: =HLOOKUP(Calculations!$E$2,'Population 2016'!$C$3:$BC$249,'Population 2016'!BD105,FALSE) -> 33014 | I105: 0 | J105: =HLOOKUP(Results!E$4,Targeting!$C$3:$F$249,Targeting!$G105,FALSE) -> 6661 | K105: =IF(AND(OR(Calculations!$E$2="Orkney Health Board",Calculations!$E$2="Orkney Islands Local Authority"),$F105=1),0,IF(AND(OR(Calculations!$E$2="Shetland Health Board",Calculations!$E$2="Western Isles Health Board",Calculations!$E$2="Shetland Islands Local Authority",Calculations!$E$2="Eilean Siar Local Authority"),OR($F105=1,$F105=5)),0,new_ci(VALUE(LEFT(Options!$B$24,2)),$C105,$E105,$F105,2016,$I105,1,$H105,$G105*$H105,Options!$B$8))) -> 38.08491008 | L105: =IF(AND(OR(Calculations!$E$2="Orkney Health Board",Calculations!$E$2="Orkney Islands Local Authority"),$F105=1),0,IF(AND(OR(Calculations!$E$2="Shetland Health Board",Calculations!$E$2="Western Isles Health Board",Calculations!$E$2="Shetland Islands Local Authority",Calculations!$E$2="Eilean Siar Local Authority"),OR($F105=1,$F105=5)),0,new_ci(VALUE(LEFT(Options!$B$24,2)),$C105,$E105,$F105,2016,$I105+$J105,1,$H105,$G105*$H105,Options!$B$8))) -> 36.77524624 | M105: =IF(AND(OR(Calculations!$E$2="Orkney Health Board",Calculations!$E$2="Orkney Islands Local Authority"),$F105=1),0,IF(AND(OR(Calculations!$E$2="Shetland Health Board",Calculations!$E$2="Western Isles Health Board",Calculations!$E$2="Shetland Islands Local Authority",Calculations!$E$2="Eilean Siar Local Authority"),OR($F105=1,$F105=5)),0,new_yllv2(VALUE(LEFT(Options!$B$24,2)),$C105,$D105,$E105,$F105,2016,$I105,1,$H105,$G105*$H105,Options!$B$8))) -> 1674.974421 | N105: =IF(AND(OR(Calculations!$E$2="Orkney Health Board",Calculations!$E$2="Orkney Islands Local Authority"),$F105=1),0,IF(AND(OR(Calculations!$E$2="Shetland Health Board",Calculations!$E$2="Western Isles Health Board",Calculations!$E$2="Shetland Islands Local Authority",Calculations!$E$2="Eilean Siar Local Authority"),OR($F105=1,$F105=5)),0,new_yllv2(VALUE(LEFT(Options!$B$24,2)),$C105,$D105,$E105,$F105,2016,$I105+$J105,1,$H105,$G105*$H105,Options!$B$8))) -> 1617.375403 | O105: =IF(AND(OR(Calculations!$E$2="Orkney Health Board",Calculations!$E$2="Orkney Islands Local Authority"),$F105=1),0,IF(AND(OR(Calculations!$E$2="Shetland Health Board",Calculations!$E$2="Western Isles Health Board",Calculations!$E$2="Shetland Islands Local Authority",Calculations!$E$2="Eilean Siar Local Authority"),OR($F105=1,$F105=5)),0,hosp_count(VALUE(LEFT(Options!$B$24,2)),$C105,$E105,$F105,2016,$I105,1,$H105,$G105*$H105, Options!$B$8))) -> 6223.679334 | P105: =IF(AND(OR(Calculations!$E$2="Orkney Health Board",Calculations!$E$2="Orkney Islands Local Authority"),$F105=1),0,IF(AND(OR(Calculations!$E$2="Shetland Health Board",Calculations!$E$2="Western Isles Health Board",Calculations!$E$2="Shetland Islands Local Authority",Calculations!$E$2="Eilean Siar Local Authority"),OR($F105=1,$F105=5)),0,hosp_count(VALUE(LEFT(Options!$B$24,2)),$C105,$E105,$F105,2016,$I105+$J105,1,$H105,$G105*$H105, Options!$B$8))) -> 6189.273671 | Q105: =IF(AND(OR(Calculations!$E$2="Orkney Health Board",Calculations!$E$2="Orkney Islands Local Authority"),$F105=1),0,IF(AND(OR(Calculations!$E$2="Shetland Health Board",Calculations!$E$2="Western Isles Health Board",Calculations!$E$2="Shetland Islands Local Authority",Calculations!$E$2="Eilean Siar Local Authority"),OR($F105=1,$F105=5)),0,prem_mort(VALUE(LEFT(Options!$B$24,2)),$C105,$E105,$F105,2016,$I105,1,$H105,$G105*$H105,Options!$B$8))) -> 38.08491008 | R105: =IF(AND(OR(Calculations!$E$2="Orkney Health Board",Calculations!$E$2="Orkney Islands Local Authority"),$F105=1),0,IF(AND(OR(Calculations!$E$2="Shetland Health Board",Calculations!$E$2="Western Isles Health Board",Calculations!$E$2="Shetland Islands Local Authority",Calculations!$E$2="Eilean Siar Local Authority"),OR($F105=1,$F105=5)),0,prem_mort(VALUE(LEFT(Options!$B$24,2)),$C105,$E105,$F105,2016,$I105+$J105,1,$H105,$G105*$H105,Options!$B$8))) -> 36.77524624 | S105: 115.3598779 | T105: 111.3928825 | U105: 5073.527659 | V105: 4899.059196 | W105: 18851.63668 | X105: 18747.42131 | Y105: 115.3598779 | Z105: 111.3928825 | AA105: 807519.145 | AB105: 779750.1777 | AC105: 35514693.61 | AD105: 34293414.37 | AE105: 131961456.8 | AF105: 131231949.2 | AG105: 807519.145 | AH105: 779750.1777 | AI105: 7000
B106: Female 40-44 | C106: 42.077438 | D106: 82.30744 | E106: female | F106: 2 | G106: =HLOOKUP(Calculations!$E$2,'Prevalence Rates'!$C$3:$BC$249,'Prevalence Rates'!$BD106,FALSE) -> 0.3889368769 | H106: =HLOOKUP(Calculations!$E$2,'Population 2016'!$C$3:$BC$249,'Population 2016'!BD106,FALSE) -> 33442 | I106: 0 | J106: =HLOOKUP(Results!E$4,Targeting!$C$3:$F$249,Targeting!$G106,FALSE) -> 6748 | K106: =IF(AND(OR(Calculations!$E$2="Orkney Health Board",Calculations!$E$2="Orkney Islands Local Authority"),$F106=1),0,IF(AND(OR(Calculations!$E$2="Shetland Health Board",Calculations!$E$2="Western Isles Health Board",Calculations!$E$2="Shetland Islands Local Authority",Calculations!$E$2="Eilean Siar Local Authority"),OR($F106=1,$F106=5)),0,new_ci(VALUE(LEFT(Options!$B$24,2)),$C106,$E106,$F106,2016,$I106,1,$H106,$G106*$H106,Options!$B$8))) -> 59.81019397 | L106: =IF(AND(OR(Calculations!$E$2="Orkney Health Board",Calculations!$E$2="Orkney Islands Local Authority"),$F106=1),0,IF(AND(OR(Calculations!$E$2="Shetland Health Board",Calculations!$E$2="Western Isles Health Board",Calculations!$E$2="Shetland Islands Local Authority",Calculations!$E$2="Eilean Siar Local Authority"),OR($F106=1,$F106=5)),0,new_ci(VALUE(LEFT(Options!$B$24,2)),$C106,$E106,$F106,2016,$I106+$J106,1,$H106,$G106*$H106,Options!$B$8))) -> 57.75421333 | M106: =IF(AND(OR(Calculations!$E$2="Orkney Health Board",Calculations!$E$2="Orkney Islands Local Authority"),$F106=1),0,IF(AND(OR(Calculations!$E$2="Shetland Health Board",Calculations!$E$2="Western Isles Health Board",Calculations!$E$2="Shetland Islands Local Authority",Calculations!$E$2="Eilean Siar Local Authority"),OR($F106=1,$F106=5)),0,new_yllv2(VALUE(LEFT(Options!$B$24,2)),$C106,$D106,$E106,$F106,2016,$I106,1,$H106,$G106*$H106,Options!$B$8))) -> 2346.354029 | N106: =IF(AND(OR(Calculations!$E$2="Orkney Health Board",Calculations!$E$2="Orkney Islands Local Authority"),$F106=1),0,IF(AND(OR(Calculations!$E$2="Shetland Health Board",Calculations!$E$2="Western Isles Health Board",Calculations!$E$2="Shetland Islands Local Authority",Calculations!$E$2="Eilean Siar Local Authority"),OR($F106=1,$F106=5)),0,new_yllv2(VALUE(LEFT(Options!$B$24,2)),$C106,$D106,$E106,$F106,2016,$I106+$J106,1,$H106,$G106*$H106,Options!$B$8))) -> 2265.697904 | O106: =IF(AND(OR(Calculations!$E$2="Orkney Health Board",Calculations!$E$2="Orkney Islands Local Authority"),$F106=1),0,IF(AND(OR(Calculations!$E$2="Shetland Health Board",Calculations!$E$2="Western Isles Health Board",Calculations!$E$2="Shetland Islands Local Authority",Calculations!$E$2="Eilean Siar Local Authority"),OR($F106=1,$F106=5)),0,hosp_count(VALUE(LEFT(Options!$B$24,2)),$C106,$E106,$F106,2016,$I106,1,$H106,$G106*$H106, Options!$B$8))) -> 7177.98054 | P106: =IF(AND(OR(Calculations!$E$2="Orkney Health Board",Calculations!$E$2="Orkney Islands Local Authority"),$F106=1),0,IF(AND(OR(Calculations!$E$2="Shetland Health Board",Calculations!$E$2="Western Isles Health Board",Calculations!$E$2="Shetland Islands Local Authority",Calculations!$E$2="Eilean Siar Local Authority"),OR($F106=1,$F106=5)),0,hosp_count(VALUE(LEFT(Options!$B$24,2)),$C106,$E106,$F106,2016,$I106+$J106,1,$H106,$G106*$H106, Options!$B$8))) -> 7138.295526 | Q106: =IF(AND(OR(Calculations!$E$2="Orkney Health Board",Calculations!$E$2="Orkney Islands Local Authority"),$F106=1),0,IF(AND(OR(Calculations!$E$2="Shetland Health Board",Calculations!$E$2="Western Isles Health Board",Calculations!$E$2="Shetland Islands Local Authority",Calculations!$E$2="Eilean Siar Local Authority"),OR($F106=1,$F106=5)),0,prem_mort(VALUE(LEFT(Options!$B$24,2)),$C106,$E106,$F106,2016,$I106,1,$H106,$G106*$H106,Options!$B$8))) -> 59.81019397 | R106: =IF(AND(OR(Calculations!$E$2="Orkney Health Board",Calculations!$E$2="Orkney Islands Local Authority"),$F106=1),0,IF(AND(OR(Calculations!$E$2="Shetland Health Board",Calculations!$E$2="Western Isles Health Board",Calculations!$E$2="Shetland Islands Local Authority",Calculations!$E$2="Eilean Siar Local Authority"),OR($F106=1,$F106=5)),0,prem_mort(VALUE(LEFT(Options!$B$24,2)),$C106,$E106,$F106,2016,$I106+$J106,1,$H106,$G106*$H106,Options!$B$8))) -> 57.75421333 | S106: 178.8475389 | T106: 172.6996392 | U106: 7016.18931 | V106: 6775.00719 | W106: 21463.96908 | X106: 21345.3009 | Y106: 178.8475389 | Z106: 172.6996392 | AA106: 1251932.773 | AB106: 1208897.474 | AC106: 49113325.17 | AD106: 47425050.33 | AE106: 150247783.6 | AF106: 149417106.3 | AG106: 1251932.773 | AH106: 1208897.474 | AI106: 7000
B107: Female 45-49 | C107: 47.025772 | D107: 82.58577 | E107: female | F107: 2 | G107: =HLOOKUP(Calculations!$E$2,'Prevalence Rates'!$C$3:$BC$249,'Prevalence Rates'!$BD107,FALSE) -> 0.351778194 | H107: =HLOOKUP(Calculations!$E$2,'Population 2016'!$C$3:$BC$249,'Population 2016'!BD107,FALSE) -> 39170 | I107: 0 | J107: =HLOOKUP(Results!E$4,Targeting!$C$3:$F$249,Targeting!$G107,FALSE) -> 7904 | K107: =IF(AND(OR(Calculations!$E$2="Orkney Health Board",Calculations!$E$2="Orkney Islands Local Authority"),$F107=1),0,IF(AND(OR(Calculations!$E$2="Shetland Health Board",Calculations!$E$2="Western Isles Health Board",Calculations!$E$2="Shetland Islands Local Authority",Calculations!$E$2="Eilean Siar Local Authority"),OR($F107=1,$F107=5)),0,new_ci(VALUE(LEFT(Options!$B$24,2)),$C107,$E107,$F107,2016,$I107,1,$H107,$G107*$H107,Options!$B$8))) -> 106.6596235 | L107: =IF(AND(OR(Calculations!$E$2="Orkney Health Board",Calculations!$E$2="Orkney Islands Local Authority"),$F107=1),0,IF(AND(OR(Calculations!$E$2="Shetland Health Board",Calculations!$E$2="Western Isles Health Board",Calculations!$E$2="Shetland Islands Local Authority",Calculations!$E$2="Eilean Siar Local Authority"),OR($F107=1,$F107=5)),0,new_ci(VALUE(LEFT(Options!$B$24,2)),$C107,$E107,$F107,2016,$I107+$J107,1,$H107,$G107*$H107,Options!$B$8))) -> 102.9117767 | M107: =IF(AND(OR(Calculations!$E$2="Orkney Health Board",Calculations!$E$2="Orkney Islands Local Authority"),$F107=1),0,IF(AND(OR(Calculations!$E$2="Shetland Health Board",Calculations!$E$2="Western Isles Health Board",Calculations!$E$2="Shetland Islands Local Authority",Calculations!$E$2="Eilean Siar Local Authority"),OR($F107=1,$F107=5)),0,new_yllv2(VALUE(LEFT(Options!$B$24,2)),$C107,$D107,$E107,$F107,2016,$I107,1,$H107,$G107*$H107,Options!$B$8))) -> 3686.156375 | N107: =IF(AND(OR(Calculations!$E$2="Orkney Health Board",Calculations!$E$2="Orkney Islands Local Authority"),$F107=1),0,IF(AND(OR(Calculations!$E$2="Shetland Health Board",Calculations!$E$2="Western Isles Health Board",Calculations!$E$2="Shetland Islands Local Authority",Calculations!$E$2="Eilean Siar Local Authority"),OR($F107=1,$F107=5)),0,new_yllv2(VALUE(LEFT(Options!$B$24,2)),$C107,$D107,$E107,$F107,2016,$I107+$J107,1,$H107,$G107*$H107,Options!$B$8))) -> 3556.630797 | O107: =IF(AND(OR(Calculations!$E$2="Orkney Health Board",Calculations!$E$2="Orkney Islands Local Authority"),$F107=1),0,IF(AND(OR(Calculations!$E$2="Shetland Health Board",Calculations!$E$2="Western Isles Health Board",Calculations!$E$2="Shetland Islands Local Authority",Calculations!$E$2="Eilean Siar Local Authority"),OR($F107=1,$F107=5)),0,hosp_count(VALUE(LEFT(Options!$B$24,2)),$C107,$E107,$F107,2016,$I107,1,$H107,$G107*$H107, Options!$B$8))) -> 9521.815112 | P107: =IF(AND(OR(Calculations!$E$2="Orkney Health Board",Calculations!$E$2="Orkney Islands Local Authority"),$F107=1),0,IF(AND(OR(Calculations!$E$2="Shetland Health Board",Calculations!$E$2="Western Isles Health Board",Calculations!$E$2="Shetland Islands Local Authority",Calculations!$E$2="Eilean Siar Local Authority"),OR($F107=1,$F107=5)),0,hosp_count(VALUE(LEFT(Options!$B$24,2)),$C107,$E107,$F107,2016,$I107+$J107,1,$H107,$G107*$H107, Options!$B$8))) -> 9468.623631 | Q107: =IF(AND(OR(Calculations!$E$2="Orkney Health Board",Calculations!$E$2="Orkney Islands Local Authority"),$F107=1),0,IF(AND(OR(Calculations!$E$2="Shetland Health Board",Calculations!$E$2="Western Isles Health Board",Calculations!$E$2="Shetland Islands Local Authority",Calculations!$E$2="Eilean Siar Local Authority"),OR($F107=1,$F107=5)),0,prem_mort(VALUE(LEFT(Options!$B$24,2)),$C107,$E107,$F107,2016,$I107,1,$H107,$G107*$H107,Options!$B$8))) -> 106.6596235 | R107: =IF(AND(OR(Calculations!$E$2="Orkney Health Board",Calculations!$E$2="Orkney Islands Local Authority"),$F107=1),0,IF(AND(OR(Calculations!$E$2="Shetland Health Board",Calculations!$E$2="Western Isles Health Board",Calculations!$E$2="Shetland Islands Local Authority",Calculations!$E$2="Eilean Siar Local Authority"),OR($F107=1,$F107=5)),0,prem_mort(VALUE(LEFT(Options!$B$24,2)),$C107,$E107,$F107,2016,$I107+$J107,1,$H107,$G107*$H107,Options!$B$8))) -> 102.9117767 | S107: 272.2992686 | T107: 262.7311123 | U107: 9410.662177 | V107: 9079.986717 | W107: 24308.94846 | X107: 24173.15198 | Y107: 272.2992686 | Z107: 262.7311123 | AA107: 1906094.88 | AB107: 1839117.786 | AC107: 65874635.24 | AD107: 63559907.02 | AE107: 170162639.2 | AF107: 169212063.9 | AG107: 1906094.88 | AH107: 1839117.786 | AI107: 7000
B108: Female 50-54 | C108: 51.990826 | D108: 82.98083 | E108: female | F108: 2 | G108: =HLOOKUP(Calculations!$E$2,'Prevalence Rates'!$C$3:$BC$249,'Prevalence Rates'!$BD108,FALSE) -> 0.351778194 | H108: =HLOOKUP(Calculations!$E$2,'Population 2016'!$C$3:$BC$249,'Population 2016'!BD108,FALSE) -> 40518 | I108: 0 | J108: =HLOOKUP(Results!E$4,Targeting!$C$3:$F$249,Targeting!$G108,FALSE) -> 8176 | K108: =IF(AND(OR(Calculations!$E$2="Orkney Health Board",Calculations!$E$2="Orkney Islands Local Authority"),$F108=1),0,IF(AND(OR(Calculations!$E$2="Shetland Health Board",Calculations!$E$2="Western Isles Health Board",Calculations!$E$2="Shetland Islands Local Authority",Calculations!$E$2="Eilean Siar Local Authority"),OR($F108=1,$F108=5)),0,new_ci(VALUE(LEFT(Options!$B$24,2)),$C108,$E108,$F108,2016,$I108,1,$H108,$G108*$H108,Options!$B$8))) -> 168.1739597 | L108: =IF(AND(OR(Calculations!$E$2="Orkney Health Board",Calculations!$E$2="Orkney Islands Local Authority"),$F108=1),0,IF(AND(OR(Calculations!$E$2="Shetland Health Board",Calculations!$E$2="Western Isles Health Board",Calculations!$E$2="Shetland Islands Local Authority",Calculations!$E$2="Eilean Siar Local Authority"),OR($F108=1,$F108=5)),0,new_ci(VALUE(LEFT(Options!$B$24,2)),$C108,$E108,$F108,2016,$I108+$J108,1,$H108,$G108*$H108,Options!$B$8))) -> 162.271124 | M108: =IF(AND(OR(Calculations!$E$2="Orkney Health Board",Calculations!$E$2="Orkney Islands Local Authority"),$F108=1),0,IF(AND(OR(Calculations!$E$2="Shetland Health Board",Calculations!$E$2="Western Isles Health Board",Calculations!$E$2="Shetland Islands Local Authority",Calculations!$E$2="Eilean Siar Local Authority"),OR($F108=1,$F108=5)),0,new_yllv2(VALUE(LEFT(Options!$B$24,2)),$C108,$D108,$E108,$F108,2016,$I108,1,$H108,$G108*$H108,Options!$B$8))) -> 5043.537725 | N108: =IF(AND(OR(Calculations!$E$2="Orkney Health Board",Calculations!$E$2="Orkney Islands Local Authority"),$F108=1),0,IF(AND(OR(Calculations!$E$2="Shetland Health Board",Calculations!$E$2="Western Isles Health Board",Calculations!$E$2="Shetland Islands Local Authority",Calculations!$E$2="Eilean Siar Local Authority"),OR($F108=1,$F108=5)),0,new_yllv2(VALUE(LEFT(Options!$B$24,2)),$C108,$D108,$E108,$F108,2016,$I108+$J108,1,$H108,$G108*$H108,Options!$B$8))) -> 4866.511658 | O108: =IF(AND(OR(Calculations!$E$2="Orkney Health Board",Calculations!$E$2="Orkney Islands Local Authority"),$F108=1),0,IF(AND(OR(Calculations!$E$2="Shetland Health Board",Calculations!$E$2="Western Isles Health Board",Calculations!$E$2="Shetland Islands Local Authority",Calculations!$E$2="Eilean Siar Local Authority"),OR($F108=1,$F108=5)),0,hosp_count(VALUE(LEFT(Options!$B$24,2)),$C108,$E108,$F108,2016,$I108,1,$H108,$G108*$H108, Options!$B$8))) -> 11159.71138 | P108: =IF(AND(OR(Calculations!$E$2="Orkney Health Board",Calculations!$E$2="Orkney Islands Local Authority"),$F108=1),0,IF(AND(OR(Calculations!$E$2="Shetland Health Board",Calculations!$E$2="Western Isles Health Board",Calculations!$E$2="Shetland Islands Local Authority",Calculations!$E$2="Eilean Siar Local Authority"),OR($F108=1,$F108=5)),0,hosp_count(VALUE(LEFT(Options!$B$24,2)),$C108,$E108,$F108,2016,$I108+$J108,1,$H108,$G108*$H108, Options!$B$8))) -> 11097.37023 | Q108: =IF(AND(OR(Calculations!$E$2="Orkney Health Board",Calculations!$E$2="Orkney Islands Local Authority"),$F108=1),0,IF(AND(OR(Calculations!$E$2="Shetland Health Board",Calculations!$E$2="Western Isles Health Board",Calculations!$E$2="Shetland Islands Local Authority",Calculations!$E$2="Eilean Siar Local Authority"),OR($F108=1,$F108=5)),0,prem_mort(VALUE(LEFT(Options!$B$24,2)),$C108,$E108,$F108,2016,$I108,1,$H108,$G108*$H108,Options!$B$8))) -> 168.1739597 | R108: =IF(AND(OR(Calculations!$E$2="Orkney Health Board",Calculations!$E$2="Orkney Islands Local Authority"),$F108=1),0,IF(AND(OR(Calculations!$E$2="Shetland Health Board",Calculations!$E$2="Western Isles Health Board",Calculations!$E$2="Shetland Islands Local Authority",Calculations!$E$2="Eilean Siar Local Authority"),OR($F108=1,$F108=5)),0,prem_mort(VALUE(LEFT(Options!$B$24,2)),$C108,$E108,$F108,2016,$I108+$J108,1,$H108,$G108*$H108,Options!$B$8))) -> 162.271124 | S108: 415.0598739 | T108: 400.4914458 | U108: 12447.64728 | V108: 12010.74006 | W108: 27542.60176 | X108: 27388.74137 | Y108: 415.0598739 | Z108: 400.4914458 | AA108: 2905419.118 | AB108: 2803440.121 | AC108: 87133530.96 | AD108: 84075180.43 | AE108: 192798212.3 | AF108: 191721189.6 | AG108: 2905419.118 | AH108: 2803440.121 | AI108: 7000
